Service Area,Expenses Type,Date,Transaction Number,Amount,Supplier Name
Heating and Loft insulation,Capital Grants,14/04/2011,1900330343,"3,820.80",JOHN GROVES IW LTD
Housing Renewal Assistance,Capital Grants,14/04/2011,1900330342,"6,000.00",JOHN GROVES IW LTD
Housing Renewal Assistance,Capital Grants,17/05/2011,1900343324,"4,000.00",JOHN GROVES IW LTD
Housing Renewal Assistance,Capital Grants,25/05/2011,1900345195,"7,000.00",JOHN GROVES IW LTD
Housing Renewal Assistance,Capital Grants,02/06/2011,1900350817,"2,286.00",JOHN GROVES IW LTD
Housing Renewal Assistance,Capital Grants,21/06/2011,1900357283,"10,000.00",JOHN GROVES IW LTD
Transport Fleet Administration,Vehicle Fuel Costs,05/04/2011,5000135776,591.49,BROADWAY GARAGE
Elections,Printing Costs,15/04/2011,5000137508,"1,678.80",CROSSPRINT LTD
Print Unit,Printing Costs,18/04/2011,5000137653,754.00,CROSSPRINT LTD
Benefit Reviews & Overpayments,Printing Costs,16/05/2011,5000141483,"1,499.00",CROSSPRINT LTD
Community & Family Learning,Consultants Fees,20/06/2011,5000146303,625.00,CITY AND GUILDS
General Insur. Fund,Insurance Premiums P,06/06/2011,5000144248,575.00,WM DOWNER & SONS I W -IN LIQUID
Pupils with statements - Non-Maint Schs,Transport of Clients,03/05/2011,5000139355,"1,664.00",HAMPSHIRE COUNTY COUNCIL
SEN Inter-Authority Recoupment,Transport of Clients,25/05/2011,5000142941,"1,664.00",HAMPSHIRE COUNTY COUNCIL
Emergency Management,Professional Subs,27/05/2011,5000143337,"7,500.00",HAMPSHIRE COUNTY COUNCIL
SEN Inter-Authority Recoupment,Pay to Other LAs,31/05/2011,5000143602,"2,955.39",HAMPSHIRE COUNTY COUNCIL
Democratic Representation & Management,Professional Subs,01/06/2011,5000143716,"4,750.00",HAMPSHIRE COUNTY COUNCIL
CADDIE,Comp S/ware & Cons,02/06/2011,5000143902,"1,636.00",HAMPSHIRE COUNTY COUNCIL
Remand Fostering,Pay to Other LAs,08/06/2011,5000144556,"2,257.50",HAMPSHIRE COUNTY COUNCIL
Youth Offending Team,Office Equipment,21/06/2011,5000146624,"29,266.50",HAMPSHIRE COUNTY COUNCIL
Youth Offending Team,Office Equipment,21/06/2011,5000146622,"27,398.00",HAMPSHIRE COUNTY COUNCIL
Youth Offending Team,Office Equipment,21/06/2011,5000146623,"17,500.00",HAMPSHIRE COUNTY COUNCIL
Local Development Framework,Consultants Fees,24/06/2011,5000147124,"1,424.80",HAMPSHIRE COUNTY COUNCIL
ICT Contracts,Computer Maintenance,28/06/2011,5105672328,"-3,466.00",HAMPSHIRE COUNTY COUNCIL
Traffic Management,Advertising & Public,21/04/2011,5000138340,513.71,IW COUNTY PRESS LTD
LA 21,Advertising & Public,03/05/2011,5000139345,600.00,IW COUNTY PRESS LTD
IOW Festival of Walking,Advertising & Public,04/05/2011,5000139748,"1,020.00",IW COUNTY PRESS LTD
Bus Infrastructure,Other Capital Exp,05/05/2011,5000139829,684.95,IW COUNTY PRESS LTD
Traffic Management,Advertising & Public,02/06/2011,5000143904,587.10,IW COUNTY PRESS LTD
Traffic Management,Advertising & Public,03/06/2011,5000144057,"1,198.66",IW COUNTY PRESS LTD
Traffic Management,Advertising & Public,10/06/2011,5000145119,"1,198.66",IW COUNTY PRESS LTD
IOW Festival (Seaclose),Advertising & Public,14/06/2011,5000145568,571.20,IW COUNTY PRESS LTD
Learning Partnership,Advertising & Public,16/06/2011,5000146111,600.00,IW COUNTY PRESS LTD
Traffic Management,Advertising & Public,17/06/2011,5000146202,508.82,IW COUNTY PRESS LTD
Traffic Management,Advertising & Public,24/06/2011,5000147267,508.82,IW COUNTY PRESS LTD
Agency Placements,Professional Service,17/06/2011,5000146241,983.00,HERTFORDSHIRE COUNTY COUNCIL
Statutory Assessment and Review Team,Professional Service,17/06/2011,5000146241,983.00,HERTFORDSHIRE COUNTY COUNCIL
Youth- Newport,Building & Room Rent,21/06/2011,5105670231,"3,703.75",NEWPORT GRAMMAR SCH CHARITY TR[RE]
Elections,Stationery,05/04/2011,5000135667,"1,339.20",SHAW & SONS LTD
Play Development,Pay to Pvte Contract,12/04/2011,5000136604,686.88,THE RIVERSIDE CENTRE LTD
SEN Inter-Authority Recoupment,Pay to Other LAs,03/05/2011,5000139357,"6,735.09",SOMERSET COUNTY COUNCIL
SEN Inter-Authority Recoupment,Pay to Other LAs,03/05/2011,5000139356,"6,207.31",SOMERSET COUNTY COUNCIL
SSEYCCG - East Cowes Children Centre,Electricity,08/04/2011,5000136285,909.28,SOUTHERN ELECTRIC
Castle Haven CP Scheme,Electricity,13/04/2011,1900326130,"1,490.53",SOUTHERN ELECTRIC
Gouldings Resource Centre,Electricity,13/04/2011,1900326121,"2,481.61",SOUTHERN ELECTRIC
17 Fairlee Road,Electricity,14/04/2011,1900330419,"1,740.88",SOUTHERN ELECTRIC
Enterprise House,Electricity,14/04/2011,1900330413,"1,046.69",SOUTHERN ELECTRIC
Thompson House Admin,Electricity,14/04/2011,1900330410,887.25,SOUTHERN ELECTRIC
Castle Haven CP Scheme,Electricity,15/04/2011,5000137358,"1,526.91",SOUTHERN ELECTRIC
"Civic Centre,Sandown",Electricity,20/04/2011,1900331104,"1,026.82",SOUTHERN ELECTRIC
Museums & Collections Mgmt,Electricity,20/04/2011,1900330966,"1,472.05",SOUTHERN ELECTRIC
Museums & Collections Mgmt,Electricity,20/04/2011,1900330966,"1,310.90",SOUTHERN ELECTRIC
Museums & Collections Mgmt,Electricity,20/04/2011,1900330966,766.09,SOUTHERN ELECTRIC
Adelaide Resource Centre,Electricity,27/04/2011,1900332191,"3,898.20",SOUTHERN ELECTRIC
Dinosaur Isle Museum (Sandown Geology),Electricity,27/04/2011,1900332183,"1,823.09",SOUTHERN ELECTRIC
IWHC Community Home - Beaulieu,Electricity,27/04/2011,1900332204,"2,755.00",SOUTHERN ELECTRIC
Seaclose Offices,Electricity,27/04/2011,1900332202,"1,205.33",SOUTHERN ELECTRIC
The Heights,Electricity,27/04/2011,1900332195,"6,134.73",SOUTHERN ELECTRIC
Ventnor Botanic Garden,Electricity,27/04/2011,1900332192,"1,974.67",SOUTHERN ELECTRIC
Waterside pool,Electricity,27/04/2011,1900332176,"2,226.61",SOUTHERN ELECTRIC
"Westridge, Ryde",Electricity,27/04/2011,1900332206,"4,432.87",SOUTHERN ELECTRIC
"7 High St,Newport",Electricity,04/05/2011,1900337301,933.67,SOUTHERN ELECTRIC
"7 High St,Newport",Electricity,04/05/2011,1900337301,852.61,SOUTHERN ELECTRIC
Cowes Week Parade Infrastructure,Electricity,04/05/2011,1900337302,"1,250.58",SOUTHERN ELECTRIC
Cowes Week Parade Infrastructure,Electricity,04/05/2011,1900337302,-626.46,SOUTHERN ELECTRIC
Ryde Town Hall,Electricity,04/05/2011,1900337297,724.32,SOUTHERN ELECTRIC
Operations & Fire Resilience,Electricity,10/05/2011,1700042336,"2,988.71",SOUTHERN ELECTRIC
Operations & Fire Resilience,Electricity,10/05/2011,1700042336,-803.07,SOUTHERN ELECTRIC
Operations & Fire Resilience,Electricity,10/05/2011,1700042336,"-2,988.71",SOUTHERN ELECTRIC
Avenues Day Centre,Electricity,12/05/2011,1900342903,603.56,SOUTHERN ELECTRIC
Lynnbottom Leachate Treatment Works,Electricity,12/05/2011,1900342906,"1,567.71",SOUTHERN ELECTRIC
"Salisbury Gardens, Ventnor",Electricity,16/05/2011,1900343214,768.32,SOUTHERN ELECTRIC
Gouldings Resource Centre,Electricity,18/05/2011,1900343699,"4,159.34",SOUTHERN ELECTRIC
Roman Villa Newport,Electricity,18/05/2011,1900343698,"1,194.05",SOUTHERN ELECTRIC
The Heights,Electricity,18/05/2011,1900343704,"5,538.59",SOUTHERN ELECTRIC
Ventnor Botanic Garden,Electricity,18/05/2011,1900343705,"2,167.18",SOUTHERN ELECTRIC
"County Hall,Newport",Electricity,19/05/2011,1900343781,"12,096.51",SOUTHERN ELECTRIC
Ryde Town Hall,Electricity,19/05/2011,1700042719,"3,127.95",SOUTHERN ELECTRIC
Ryde Town Hall,Electricity,19/05/2011,1700042719,"1,539.79",SOUTHERN ELECTRIC
Ryde Town Hall,Electricity,19/05/2011,1700042719,"-3,124.27",SOUTHERN ELECTRIC
Ryde Town Hall,Electricity,19/05/2011,1700042719,"-4,004.90",SOUTHERN ELECTRIC
Seaclose Offices,Electricity,20/05/2011,1900343962,643.34,SOUTHERN ELECTRIC
Thompson House Admin,Electricity,20/05/2011,1900343956,529.66,SOUTHERN ELECTRIC
Adelaide Resource Centre,Electricity,24/05/2011,1900344338,"3,048.80",SOUTHERN ELECTRIC
Childrens Service Centre,Vehicle Hire Interna,24/05/2011,1900344410,"1,020.56",SOUTHERN ELECTRIC
Dinosaur Isle Museum (Sandown Geology),Electricity,24/05/2011,1900344336,"1,212.86",SOUTHERN ELECTRIC
Rew Valley Sports Centre Mgmt,Electricity,24/05/2011,1900344360,863.25,SOUTHERN ELECTRIC
Waterside pool,Electricity,24/05/2011,1900344334,"1,998.09",SOUTHERN ELECTRIC
"Westridge, Ryde",Electricity,24/05/2011,1900344343,"2,519.40",SOUTHERN ELECTRIC
Ryde Library,Electricity,26/05/2011,1900349966,774.35,SOUTHERN ELECTRIC
Jubilee Stores,Electricity,27/05/2011,1900350329,633.69,SOUTHERN ELECTRIC
Westminster House,Electricity,31/05/2011,1900350453,853.15,SOUTHERN ELECTRIC
Youth Offending Team,Electricity,31/05/2011,1900350457,580.15,SOUTHERN ELECTRIC
Newport Library,Electricity,01/06/2011,1900350770,"2,242.85",SOUTHERN ELECTRIC
Operations & Fire Resilience,Electricity,01/06/2011,1900350714,703.05,SOUTHERN ELECTRIC
"Salisbury Gardens, Ventnor",Electricity,01/06/2011,1900350732,"1,931.18",SOUTHERN ELECTRIC
2 Langley Court,Electricity,02/06/2011,1900350838,930.03,SOUTHERN ELECTRIC
Operations & Fire Resilience,Electricity,02/06/2011,1900350839,"1,374.43",SOUTHERN ELECTRIC
Browns,Electricity,07/06/2011,1700043048,"-1,030.76",SOUTHERN ELECTRIC
Youth- Sandown/Lake,Electricity,07/06/2011,1900351320,598.84,SOUTHERN ELECTRIC
Castle Haven CP Scheme,Electricity,08/06/2011,5000144641,"1,512.90",SOUTHERN ELECTRIC
"Civic Centre,Sandown",Electricity,09/06/2011,5000144759,719.96,SOUTHERN ELECTRIC
Enterprise House,Electricity,09/06/2011,5000145033,960.52,SOUTHERN ELECTRIC
"Westridge, Ryde",Electricity,09/06/2011,5000144829,"2,491.03",SOUTHERN ELECTRIC
Enterprise House,Electricity,13/06/2011,5000145373,961.03,SOUTHERN ELECTRIC
"Civic Centre,Sandown",Electricity,14/06/2011,5000145784,715.27,SOUTHERN ELECTRIC
Thompson House Admin,Electricity,14/06/2011,5000145639,682.71,SOUTHERN ELECTRIC
"County Hall,Newport",Electricity,16/06/2011,5000146068,"11,549.10",SOUTHERN ELECTRIC
"County Hall,Newport",Electricity,16/06/2011,5000146066,"11,026.47",SOUTHERN ELECTRIC
Education Social Workers - LACES,Electricity,16/06/2011,1900356975,"1,435.85",SOUTHERN ELECTRIC
Adelaide Resource Centre,Electricity,17/06/2011,1900357004,"2,733.13",SOUTHERN ELECTRIC
Bembridge Library,Electricity,17/06/2011,1900357007,526.90,SOUTHERN ELECTRIC
Dinosaur Isle Museum (Sandown Geology),Electricity,17/06/2011,1900356998,991.76,SOUTHERN ELECTRIC
Public Con - General (was Attendance),Electricity,17/06/2011,1900356999,526.84,SOUTHERN ELECTRIC
Seaclose Offices,Electricity,17/06/2011,1900357035,632.20,SOUTHERN ELECTRIC
The Heights,Electricity,17/06/2011,1900357006,"5,459.38",SOUTHERN ELECTRIC
Ventnor Botanic Garden,Electricity,17/06/2011,1900357005,"2,680.64",SOUTHERN ELECTRIC
Waterside pool,Electricity,17/06/2011,1900356997,"2,136.18",SOUTHERN ELECTRIC
Ryde Town Hall,Electricity,22/06/2011,1900357391,502.77,SOUTHERN ELECTRIC
Ferry Maintenance,Vehicle Maint Costs,08/06/2011,5000144711,893.27,EDWARD WATTS & SONS LTD
Transport Fleet Administration,Vehicle Fuel Costs,12/04/2011,5000136707,889.04,WESTRIDGE GARAGE (RYDE) LTD
Transport Fleet Administration,Vehicle Fuel Costs,12/04/2011,5000136706,520.02,WESTRIDGE GARAGE (RYDE) LTD
Transport Fleet Administration,Vehicle Fuel Costs,20/05/2011,5000142276,"1,146.64",WESTRIDGE GARAGE (RYDE) LTD
Transport Fleet Administration,Vehicle Fuel Costs,21/06/2011,5000146638,971.47,WESTRIDGE GARAGE (RYDE) LTD
Yarmouth T.I.C.,Building & Room Rent,06/04/2011,5000135950,625.00,YARMOUTH (IW) HARBOUR COMMISSIONERS
PR - Bridges - Yarmouth,Pay to Pvte Contract,03/05/2011,5000139174,"3,424.75",YARMOUTH (IW) HARBOUR COMMISSIONERS
Leader 2009/13 Grant Claims,Grants to Ext Bodies,11/05/2011,1900337893,"49,985.86",YARMOUTH (IW) HARBOUR COMMISSIONERS
Leader 2009/13 Grant Claims,Grants to Ext Bodies,11/05/2011,1900337892,"26,826.53",YARMOUTH (IW) HARBOUR COMMISSIONERS
WW Landscape Partnership,Printing Costs,19/05/2011,5000142101,"1,224.00",YARMOUTH (IW) HARBOUR COMMISSIONERS
PR - Bridges - Yarmouth,Pay to Pvte Contract,25/05/2011,5000142981,"3,424.75",YARMOUTH (IW) HARBOUR COMMISSIONERS
PR - Bridges - Yarmouth,Pay to Pvte Contract,23/06/2011,5000147014,"3,424.75",YARMOUTH (IW) HARBOUR COMMISSIONERS
Childrens Services Finance Team,Train and Conference,08/04/2011,5000136226,"2,760.00",CIPFA
Financial Management Overheads,Professional Subs,24/05/2011,5000142855,"8,960.00",CIPFA
Financial Management Overheads,Professional Service,25/05/2011,5000143016,"6,765.00",CIPFA
Financial Management Overheads,Professional Service,25/05/2011,5000143020,"6,125.00",CIPFA
Financial Management Overheads,Publications,16/06/2011,5000146064,"3,700.00",CIPFA
Business Management,Comp Software Licenc,22/06/2011,5000146793,695.00,CIPFA
Sustainable Development Fund,Grants to Ext Bodies,17/05/2011,1900343382,"2,710.25",ISLE OF WIGHT COLLEGE
Trading Standards,Train and Conference,18/05/2011,5000141910,750.00,ISLE OF WIGHT COLLEGE
Homecare Domiciliary Team,Train and Conference,26/05/2011,5000143086,"-1,095.00",ISLE OF WIGHT COLLEGE
Homecare Domiciliary Team,Train and Conference,26/05/2011,5000143086,"-1,290.00",ISLE OF WIGHT COLLEGE
SSEYCCG - Disabled Child Access Ch/care,Train and Conference,26/05/2011,5000143087,"1,080.00",ISLE OF WIGHT COLLEGE
Independent Sector Training,Train and Conference,21/06/2011,5000146673,880.00,ISLE OF WIGHT COLLEGE
Independent Sector Training,Train and Conference,21/06/2011,5000146671,719.00,ISLE OF WIGHT COLLEGE
Independent Sector Training,Train and Conference,21/06/2011,5000146674,719.00,ISLE OF WIGHT COLLEGE
Independent Sector Training,Train and Conference,21/06/2011,5000146672,600.00,ISLE OF WIGHT COLLEGE
NLDC Neighbourhood Lrng Deprived Comm.,Grants to Ext Bodies,23/06/2011,5000147013,"2,900.00",ISLE OF WIGHT COLLEGE
Leisure Facility Improvement,Cap Contractor Pmts,04/05/2011,5000139672,944.29,REDACTED PERSONAL DATA
Westminster House,Water and Sewerage,20/04/2011,1900331122,748.44,SOUTHERN WATER AUTHORITY
Public Con - General (was Attendance),Water and Sewerage,27/04/2011,1900336924,542.16,SOUTHERN WATER AUTHORITY
Seaclose Offices,Water and Sewerage,27/04/2011,1900332209,543.32,SOUTHERN WATER AUTHORITY
Public Con - General (was Attendance),Water and Sewerage,04/05/2011,1900337324,532.76,SOUTHERN WATER AUTHORITY
Public Con - General (was Attendance),Water and Sewerage,04/05/2011,1700042064,-996.70,SOUTHERN WATER AUTHORITY
Technical Support,Fire Fighting Equipm,10/05/2011,5000140423,573.00,SOUTHERN WATER AUTHORITY
Technical Support,Fire Fighting Equipm,10/05/2011,5000140425,573.00,SOUTHERN WATER AUTHORITY
Technical Support,Fire Fighting Equipm,12/05/2011,5000140936,573.00,SOUTHERN WATER AUTHORITY
The Heights,Water and Sewerage,12/05/2011,1900342912,881.75,SOUTHERN WATER AUTHORITY
DO NOT USE - Public Con - General,Water and Sewerage,18/05/2011,1900343701,634.72,SOUTHERN WATER AUTHORITY
Properties Industrial Estates,Water and Sewerage,18/05/2011,1900343411,570.52,SOUTHERN WATER AUTHORITY
Public Con - General (was Attendance),Water and Sewerage,18/05/2011,1900343707,586.96,SOUTHERN WATER AUTHORITY
Public Con - General (was Attendance),Water and Sewerage,18/05/2011,1900343527,584.85,SOUTHERN WATER AUTHORITY
The Heights,Water and Sewerage,18/05/2011,1900343525,"1,080.69",SOUTHERN WATER AUTHORITY
The Heights,Water and Sewerage,18/05/2011,1900343409,925.42,SOUTHERN WATER AUTHORITY
Public Con - General (was Attendance),Water and Sewerage,19/05/2011,1900343771,576.12,SOUTHERN WATER AUTHORITY
Public Con - General (was Attendance),Water and Sewerage,19/05/2011,1900343762,514.43,SOUTHERN WATER AUTHORITY
Public Con - General (was Attendance),Water and Sewerage,24/05/2011,1900344417,687.53,SOUTHERN WATER AUTHORITY
Gouldings Resource Centre,Water and Sewerage,27/05/2011,1900350330,"2,061.45",SOUTHERN WATER AUTHORITY
Operations & Fire Resilience,Water and Sewerage,27/05/2011,1900350331,655.78,SOUTHERN WATER AUTHORITY
The Heights,Water and Sewerage,27/05/2011,1900350345,"1,180.36",SOUTHERN WATER AUTHORITY
Public Con - General (was Attendance),Water and Sewerage,02/06/2011,1900351002,634.05,SOUTHERN WATER AUTHORITY
Public Con - General (was Attendance),Water and Sewerage,02/06/2011,1900350906,537.77,SOUTHERN WATER AUTHORITY
Ryde Concessions,Water and Sewerage,02/06/2011,1700042765,935.08,SOUTHERN WATER AUTHORITY
Ryde Concessions,Water and Sewerage,02/06/2011,1900350997,935.08,SOUTHERN WATER AUTHORITY
Ryde Concessions,Water and Sewerage,02/06/2011,1700042764,-935.08,SOUTHERN WATER AUTHORITY
Public Con - General (was Attendance),Water and Sewerage,06/06/2011,1900351290,584.64,SOUTHERN WATER AUTHORITY
The Heights,Water and Sewerage,07/06/2011,1900351294,856.93,SOUTHERN WATER AUTHORITY
Adelaide Resource Centre,Water and Sewerage,14/06/2011,1900356599,809.79,SOUTHERN WATER AUTHORITY
Medina Leisure Centre,Water and Sewerage,21/06/2011,1900357347,"1,715.54",SOUTHERN WATER AUTHORITY
Public Con - General (was Attendance),Water and Sewerage,21/06/2011,1900357342,"1,402.96",SOUTHERN WATER AUTHORITY
Public Con - General (was Attendance),Water and Sewerage,22/06/2011,1900362780,587.62,SOUTHERN WATER AUTHORITY
Public Con - General (was Attendance),Water and Sewerage,22/06/2011,1700043910,-587.62,SOUTHERN WATER AUTHORITY
Public Con - General (was Attendance),Water and Sewerage,22/06/2011,1700043911,-587.62,SOUTHERN WATER AUTHORITY
DO NOT USE - Public Con - General,Water and Sewerage,23/06/2011,1700043913,-509.37,SOUTHERN WATER AUTHORITY
Eastern Esplanade Ryde - Water A/C,Water and Sewerage,23/06/2011,1700043914,"-3,202.02",SOUTHERN WATER AUTHORITY
Public Con - General (was Attendance),Water and Sewerage,28/06/2011,1900363280,535.41,SOUTHERN WATER AUTHORITY
Seaclose Offices,Water and Sewerage,30/06/2011,1900363706,"1,344.54",SOUTHERN WATER AUTHORITY
Rights of Way Operations,Operational Equipmen,07/04/2011,5105657037,"1,355.60",I T S TOOLS LTD
Rights of Way Operations,Operational Equipmen,07/04/2011,5105658479,"-1,355.60",I T S TOOLS LTD
Rights of Way Operations,Operational Equipmen,13/04/2011,5000136955,861.60,I T S TOOLS LTD
Rights of Way Operations,Operational Equipmen,13/04/2011,5000136951,"-2,225.00",I T S TOOLS LTD
Bus Infrastructure,Cap Contractor Pmts,24/06/2011,5000147200,748.14,GLASDON UK LTD
Bus Infrastructure,Cap Contractor Pmts,27/06/2011,5000147418,-748.14,GLASDON UK LTD
Westridge Squash Courts,Operational Equipmen,31/05/2011,5000143551,558.72,J P LENNARD LTD
Fire Control,Consultants Fees,12/04/2011,5000136608,"40,026.00",REMSDAQ LTD
Ferry Maintenance,Maint of Op Equip,05/04/2011,5000135707,520.00,WIGHT FIRE CO LTD [SB]
Housing Renewal Assistance,Capital Grants,19/04/2011,1900330795,536.40,WIGHT FIRE CO LTD [SB]
Administration and Inspection Schemes,Comp S/ware & Cons,05/04/2011,5000135868,"3,420.00",ISLAND COMPUTER SYSTEMS LTD
Administration and Inspection Schemes,Comp S/ware & Cons,05/04/2011,5000135867,"-3,420.00",ISLAND COMPUTER SYSTEMS LTD
Administration and Inspection Schemes,Comp S/ware & Cons,11/04/2011,5000136457,"2,850.00",ISLAND COMPUTER SYSTEMS LTD
Administration and Inspection Schemes,Comp S/ware & Cons,11/04/2011,5000136452,"-3,420.00",ISLAND COMPUTER SYSTEMS LTD
Weston Community School Devolved Capital,"Pl, Equip & Furn - C",16/05/2011,1900343282,"2,103.00",ISLAND COMPUTER SYSTEMS LTD
Weston Community School Devolved Capital,"Pl, Equip & Furn - C",18/05/2011,1900343446,"4,519.00",ISLAND COMPUTER SYSTEMS LTD
Carisbrooke Primary Devolved Capital,"Pl, Equip & Furn - C",14/06/2011,1900356598,"2,016.00",WIGHT BUSINESS SERVICES
Gouldings Resource Centre,Catering Purchases,15/04/2011,5000137424,550.63,MEDINA QUAY MEATS LTD
Gouldings Resource Centre,Catering Purchases,21/06/2011,5000146594,555.96,MEDINA QUAY MEATS LTD
SSEYCCG - Every Child a Talker,Purchase of Books,01/04/2011,5000135543,527.16,MACMILLAN DISTRIBUTION LTD
St James Centre,"Ref Collect, Disp &",06/04/2011,5000135971,"3,204.00",BIFFA WASTE SERVICES LTD
Newport Harbour - General,"Ref Collect, Disp &",12/04/2011,5000136687,546.64,BIFFA WASTE SERVICES LTD
Adelaide Resource Centre,"Ref Collect, Disp &",13/06/2011,5000145407,"1,202.21",BIFFA WASTE SERVICES LTD
IWHC Community Home - Beaulieu,Furniture & Fittings,01/04/2011,5000135403,632.00,ISLAND FURNISHING LTD
FRS Modernisation,Office Equipment,07/06/2011,5000144339,894.00,ISLAND FURNISHING LTD
Premises Development,Vehicle Hire Externa,27/05/2011,5000143288,707.14,BARTLETTS SERVICE STATION
School Reorganisation Consultation Costs,Professional Service,15/06/2011,5000145869,730.71,BARTLETTS SERVICE STATION
Financial Management Overheads,Comp Software Licenc,09/05/2011,5000140140,"4,631.00",REED BUSINESS INFORMATION LTD
Development Control,Advertising & Public,18/04/2011,5000137544,724.81,ALEXANDER ADVERTISING (INT) LTD
Development Control,Advertising & Public,18/04/2011,5000137547,558.30,ALEXANDER ADVERTISING (INT) LTD
Thompson House Tuition Centre (PRU),Taxis - Contract Hir,04/04/2011,5000135583,732.00,AMAR CABS
SEN Transport,Transport of Clients,05/04/2011,5000135801,"1,012.00",AMAR CABS
SEN Transport,Transport of Clients,05/04/2011,5000135797,621.00,AMAR CABS
SEN Transport,Transport of Clients,05/04/2011,5000135796,-729.00,AMAR CABS
SEN Transport,Transport of Clients,05/04/2011,5000135798,-882.00,AMAR CABS
Thompson House Tuition Centre (PRU),Taxis - Contract Hir,27/05/2011,5000143240,786.20,AMAR CABS
SEN Transport,Transport of Clients,03/06/2011,5000144070,836.00,AMAR CABS
SEN Transport,Transport of Clients,03/06/2011,5000144069,513.00,AMAR CABS
High Sector Home to School Transport,Transport of Clients,01/04/2011,5000135524,573.50,METEOR TAXIS
High Sector Home to School Transport,Transport of Clients,01/04/2011,5000135523,-961.00,METEOR TAXIS
Primary Sector Home to School Transport,Transport of Clients,01/04/2011,5000135526,782.00,METEOR TAXIS
Primary Sector Home to School Transport,Transport of Clients,01/04/2011,5000135525,-986.00,METEOR TAXIS
Primary Sector Home to School Transport,Transport of Clients,31/05/2011,5000143494,646.00,METEOR TAXIS
Highway Maintenance Inspection,Operational Equipmen,31/05/2011,5000143390,"1,233.36",ARCO LTD
Highway Maintenance Inspection,Operational Equipmen,01/06/2011,5000143775,"-1,233.36",ARCO LTD
Adelaide Resource Centre,Maint of Op Equip,31/05/2011,5000143614,913.06,ARJO MED AB LTD
Integrated Community Equipment Service,Operational Equipmen,13/06/2011,5000145284,"1,111.00",ARJO MED AB LTD
Integrated Community Equipment Service,Operational Equipmen,24/06/2011,5000147263,"-1,111.00",ARJO MED AB LTD
Elections,Professional Service,09/05/2011,5000140158,"2,085.00",ALAN SHEPARD (IOW)
Trans. Stocks - St. Light,Order Settlement,24/05/2011,5000142724,"5,557.55",MARWOOD ELECTRICAL CO LTD
Administration and Inspection Schemes,ICT H/ware & S/ware,04/04/2011,5000135644,"3,706.50",XMA LTD
Social Services Admin Computer Equipment,ICT H/ware & S/ware,27/05/2011,5000143361,617.75,XMA LTD
Social Services Admin Computer Equipment,ICT H/ware & S/ware,29/06/2011,5000147693,"1,235.50",XMA LTD
Leisure Facility Improvement,Cap Contractor Pmts,16/06/2011,5000145970,785.00,SIGNPOST EXPRESS
Coroner,Transport of Clients,05/04/2011,5000135900,"2,316.22",HAMILTON AND MARSHALL
Coroner,Transport of Clients,10/05/2011,5000140335,"3,303.04",HAMILTON AND MARSHALL
Coroner,Transport of Clients,08/06/2011,5000144603,"3,660.67",HAMILTON AND MARSHALL
Environmental Health - Geographical Team,Professional Service,08/06/2011,5000144695,940.00,HAMILTON AND MARSHALL
Environmental Health - Geographical Team,Professional Service,08/06/2011,5000144695,793.00,HAMILTON AND MARSHALL
Newport Nine Acres Devolved Capital,Cap Contractor Pmts,15/06/2011,1900356634,844.35,CHANT LOCK & SECURITY SERVICE
Exhibitions,Consultants Fees,08/04/2011,5000136315,"2,000.00",TOURISM SOUTH EAST
Research,Professional Service,15/06/2011,5000145896,"5,807.50",TOURISM SOUTH EAST
Dinosaur Isle Museum (Sandown Geology),Marketing Costs,20/06/2011,5000146371,"3,500.00",TOURISM SOUTH EAST
Corporate Management (Treasurers),Professional Service,24/05/2011,5000142853,"27,148.50",AUDIT COMMISSION
Corporate Management (Treasurers),Professional Service,24/05/2011,5000142852,"3,045.00",AUDIT COMMISSION
Corporate Management (Treasurers),Professional Service,27/05/2011,5000143313,"1,825.00",AUDIT COMMISSION
Corporate Management (Treasurers),Professional Service,03/06/2011,5000143989,"3,045.00",AUDIT COMMISSION
Corporate Management (Treasurers),Professional Service,07/06/2011,5000144318,"25,667.00",AUDIT COMMISSION
PR - Bridges - Yarmouth,Pay to Pvte Contract,14/06/2011,5000145742,"1,935.00",MID-ANGLIA ENGINEERING LTD
PR - Bridges - Yarmouth,Pay to Pvte Contract,14/06/2011,5000145534,795.00,MID-ANGLIA ENGINEERING LTD
Homelessness,Accomm Costs - Lease,11/04/2011,5000136354,659.41,CALOR GAS LIMITED
CCTV - Control Room,Pay to Pvte Contract,19/05/2011,5000142183,"26,253.94",BRITISH TELECOM PLC
Overheads,Fixed Telephones,25/05/2011,1900345151,"4,473.12",BRITISH TELECOM PLC
Crematorium,Operational Equipmen,15/04/2011,5000137463,831.68,LUSHINGTON GARDEN BUILDINGS LTD
Diversity & Workforce,Train and Conference,18/04/2011,5000137620,"2,395.00",FIRE SERVICE COLLEGE
Diversity & Workforce,Train and Conference,05/05/2011,5000139754,"1,095.00",FIRE SERVICE COLLEGE
Diversity & Workforce,Train and Conference,05/05/2011,5000139755,"1,095.00",FIRE SERVICE COLLEGE
Diversity & Workforce,Train and Conference,05/05/2011,5000139756,595.00,FIRE SERVICE COLLEGE
Diversity & Workforce,Train and Conference,23/05/2011,5000142567,"1,295.00",FIRE SERVICE COLLEGE
Diversity & Workforce,Train and Conference,13/06/2011,5000145318,"1,095.00",FIRE SERVICE COLLEGE
Diversity & Workforce,Train and Conference,27/06/2011,5000147334,945.00,FIRE SERVICE COLLEGE
Ferry Management,Building & Room Rent,13/04/2011,5000137037,927.00,SOUTHERN WATER SERVICES LTD
Fire Capital Projects,"Pl, Equip & Furn - C",05/05/2011,5000139785,"95,740.00",ANGLOCO LTD
Fire Capital Projects,"Pl, Equip & Furn - C",05/05/2011,5000139789,"-95,740.00",ANGLOCO LTD
Beach Safety & Inspection / Beach Awards,Building & Room Rent,05/05/2011,5000139752,"1,122.00",CROWN ESTATE COMMISSIONERS [RE]
Whitegates Pontoons,Building & Room Rent,01/06/2011,5105666981,650.00,CROWN ESTATE COMMISSIONERS [RE]
Wightlink Tickets - Sports Unit,Order Settlement,20/05/2011,5000142301,620.80,WIGHTLINK LTD
Aiming High for Disabled Children,Grants to Ext Bodies,13/04/2011,1900326131,"4,000.00",U K SAILING ACADEMY
Outside Promotions,Pay to Pvte Contract,07/06/2011,1900351300,541.00,I W YOUTH SENIORS CONCERT BAND
Cowes Youth Centre 40% income susp,Bldg/Room Rental Inc,04/05/2011,1900337222,"1,009.72",COWES YOUTH CENTRE
Chief Fire Officer,Professional Service,07/06/2011,5000144317,"5,900.00",HYMANS ROBERTSON LLP
Democratic Representation & Management,Professional Subs,20/04/2011,5000138153,"8,989.90",SOUTH EAST EMPLOYERS
Medina Vending Machine Stock,Order Settlement,07/04/2011,5000136176,870.78,3663 (BFS GROUP LTD)
Heights Vending Stock,Order Settlement,13/04/2011,5000136895,709.62,3663 (BFS GROUP LTD)
Provision Of Meals- Medina House Special,Catering Purchases,04/05/2011,5000139681,-837.56,3663 (BFS GROUP LTD)
Avenues Day Centre,Catering Purchases,06/05/2011,5000140051,-652.68,3663 (BFS GROUP LTD)
Heights Vending Stock,Order Settlement,12/05/2011,5000141010,505.47,3663 (BFS GROUP LTD)
Medina Vending Machine Stock,Order Settlement,13/05/2011,5000141167,755.20,3663 (BFS GROUP LTD)
Medina Vending Machine Stock,Order Settlement,02/06/2011,5000143898,602.66,3663 (BFS GROUP LTD)
Medina Vending Machine Stock,Order Settlement,13/06/2011,5000145374,"1,021.75",3663 (BFS GROUP LTD)
Heights Vending Stock,Order Settlement,15/06/2011,5000145948,601.69,3663 (BFS GROUP LTD)
Trans. Stocks - St. Light,Order Settlement,27/05/2011,5105666654,641.50,PUDSEY DIAMOND ENGINEERING LTD
Youth Offending Team,Fixed Telephones,19/04/2011,1900330831,934.32,BRITISH TELECOMMUNICATIONS PLC
Telephones,Fixed Telephones,03/05/2011,1900337209,"15,344.00",BRITISH TELECOMMUNICATIONS PLC
Telephones,Fixed Telephones,05/05/2011,1900337473,"104,862.21",BRITISH TELECOMMUNICATIONS PLC
Public Lib Central,Fixed Telephones,12/05/2011,1900342663,"15,138.94",BRITISH TELECOMMUNICATIONS PLC
CSDP/Lifeline Telephone - OP,Fixed Telephones,18/05/2011,1900343542,565.94,BRITISH TELECOMMUNICATIONS PLC
CSDP/Lifeline Telephone - PD,Fixed Telephones,18/05/2011,1900343544,630.15,BRITISH TELECOMMUNICATIONS PLC
Public Lib Central,Fixed Telephones,02/06/2011,1900351038,550.00,BRITISH TELECOMMUNICATIONS PLC
CSDP/Lifeline Telephone - OP,Fixed Telephones,20/06/2011,1900357255,563.39,BRITISH TELECOMMUNICATIONS PLC
17 Fairlee Road,Fixed Telephones,28/06/2011,1900363269,"6,921.72",BRITISH TELECOMMUNICATIONS PLC
Non-Delegated Building Maintenance,Prop Svs-Planned Mtc,03/05/2011,5000139321,"1,022.00",PICKERINGS EUROPE LTD
Newport Barton Primary Devolved Capital,"Pl, Equip & Furn - C",16/05/2011,1900343279,"1,001.00",THE CONSORTIUM
Highway Maintenance Inspection,Consultants Fees,14/04/2011,5105658229,"2,250.00",MAYRISE LIMITED
Highway Maintenance Inspection,Consultants Fees,14/04/2011,5105658229,"2,000.00",MAYRISE LIMITED
Highways Network Management,Consultants Fees,14/04/2011,5105658229,"4,000.00",MAYRISE LIMITED
Highways Network Management,Consultants Fees,14/04/2011,5105658229,"1,500.00",MAYRISE LIMITED
Highways Network Management,Consultants Fees,14/04/2011,5105658229,900.00,MAYRISE LIMITED
Transport Strategy,Consultants Fees,14/04/2011,5105658229,"2,000.00",MAYRISE LIMITED
Medina Leisure Centre,Pay to Pvte Contract,15/04/2011,5000137400,683.76,CANNON HYGIENE
Adelaide Resource Centre,Waste Contractors,26/04/2011,5000138676,760.80,CANNON HYGIENE
Waterside pool,Cons Cleaning Materi,04/05/2011,5000139727,918.84,CANNON HYGIENE
Westminster House,Cleaning Contracts,04/05/2011,5000139569,"1,150.20",CANNON HYGIENE
The Heights,Pay to Pvte Contract,12/05/2011,5000140918,"1,790.40",CANNON HYGIENE
Administrative Buildings,Cons Cleaning Materi,31/05/2011,5000143636,892.32,CANNON HYGIENE
FRS Modernisation,Catering Equipment,06/04/2011,5000136058,833.32,BUYWISE
Transport Fleet Administration,Vehicle Fuel Costs,12/04/2011,5000136643,904.61,SOUTHERN CO-OPERATIVES LTD
Transport Fleet Administration,Vehicle Fuel Costs,20/05/2011,5000142275,"1,012.72",SOUTHERN CO-OPERATIVES LTD
Transport Fleet Administration,Vehicle Fuel Costs,08/06/2011,5000144726,"1,195.36",SOUTHERN CO-OPERATIVES LTD
Pension Administration,Train and Conference,27/04/2011,5000138932,900.00,HEYWOOD LTD
Diversity & Workforce,Train and Conference,01/06/2011,5000143796,675.00,EMERGENCY PLANNING COLLEGE
Miscellaneous Non-rechargeable,Professional Service,06/06/2011,5000144188,"1,128.00",GLANVILLES
Miscellaneous Non-rechargeable,Professional Service,14/06/2011,5000145761,"1,030.00",GLANVILLES
Miscellaneous Non-rechargeable,Professional Service,14/06/2011,5000145759,"-1,128.00",GLANVILLES
DINO ISLE Sandown Museum Stocks,Order Settlement,06/04/2011,5000135948,"1,284.09",KEY CRAFT
Youth & Community Service,Licences,13/04/2011,5000136868,"1,040.60",PHONOGRAPHIC PERFORMANCE LTD
Medina Leisure Centre,Licences,10/06/2011,5105668667,533.42,PHONOGRAPHIC PERFORMANCE LTD
The Heights,Licences,10/06/2011,5105668667,810.54,PHONOGRAPHIC PERFORMANCE LTD
Ventnor Youth Centre 40% income susp,Bldg/Room Rental Inc,15/04/2011,1900330548,674.92,VENTNOR YOUTH CENTRE
"Westridge, Ryde",Grounds Maintenance,07/06/2011,5000144450,800.00,REDACTED PERSONAL DATA
Development Control,Hire of facilities,16/05/2011,5000141371,648.00,COWES YACHT HAVEN LTD
Development Control,Hire of facilities,16/05/2011,5000141371,648.00,COWES YACHT HAVEN LTD
Development Control,Hire of facilities,16/05/2011,5000141371,648.00,COWES YACHT HAVEN LTD
Wightcare Control Room,Operational Equipmen,10/05/2011,5000140405,"7,425.00",TUNSTALL TELECOM LTD
Wightcare Control Room,Operational Equipmen,01/06/2011,5000143799,936.75,TUNSTALL TELECOM LTD
Gouldings Resource Centre,Agency staff,19/04/2011,5000137804,509.38,ANCHOR RECRUITMENT
Gouldings Resource Centre,Agency staff,27/04/2011,5000138864,721.88,ANCHOR RECRUITMENT
Gouldings Resource Centre,Agency staff,10/05/2011,5000140483,525.00,ANCHOR RECRUITMENT
Gouldings Resource Centre,Agency staff,11/05/2011,5000140745,509.38,ANCHOR RECRUITMENT
Gouldings Resource Centre,Agency staff,24/05/2011,5000142729,506.25,ANCHOR RECRUITMENT
Gouldings Resource Centre,Agency staff,01/06/2011,5000143771,512.50,ANCHOR RECRUITMENT
Gouldings Resource Centre,Agency staff,07/06/2011,5000144434,571.88,ANCHOR RECRUITMENT
Business Support,Publications,20/04/2011,5000138151,"4,250.00",CFOA (SERVICES) LTD
Elections,Postage,15/04/2011,5000137502,"18,314.03",ROYAL MAIL GROUP PLC
Elections,Postage,09/05/2011,5000140152,"1,617.77",ROYAL MAIL GROUP PLC
Payroll,Postage,10/05/2011,1900337880,"1,196.97",ROYAL MAIL GROUP PLC
Elections,Postage,13/05/2011,5000141225,"1,390.39",ROYAL MAIL GROUP PLC
Payroll,Postage,18/05/2011,1900343714,"1,187.27",ROYAL MAIL GROUP PLC
Elections,Postage,23/05/2011,5000142446,677.77,ROYAL MAIL GROUP PLC
Elections,Postage,23/05/2011,5000142446,611.00,ROYAL MAIL GROUP PLC
Payroll,Postage,22/06/2011,1900357359,"2,279.91",ROYAL MAIL GROUP PLC
"29,High St,Newport",Building & Room Rent,25/06/2011,5105672039,"11,000.00",IWCP RENT ACCOUNT [RE]
Insurance Suspense - Renewals,Insurance Premiums P,17/05/2011,5000141641,"3,097.00",STANDARD SECURITIES
Newport Harbour - General,Pay to Pvte Contract,18/04/2011,5000137525,"2,240.00",ISLAND CRANE HIRE LTD
Highway Maintenance Inspection,General Materials,18/05/2011,5000141933,819.00,MEON MARKETING LLP
Ventnor Botanic Gifts/Seed STOCK A/C,Order Settlement,01/04/2011,5000135415,650.76,BLUE CHIP PRODUCTS LTD
Ventnor Botanic Gifts/Seed STOCK A/C,Order Settlement,24/04/2011,5000138462,675.84,BLUE CHIP PRODUCTS LTD
Ventnor Botanic Gifts/Seed STOCK A/C,Order Settlement,03/05/2011,5000139349,675.84,BLUE CHIP PRODUCTS LTD
Disabled Facilities Grants,Capital Grants,02/06/2011,1900350842,"1,036.57",PRISM MEDICAL UK
ASW Training,Train and Conference,13/05/2011,5000141161,"1,400.00",DAVE SHEPPARD ASSOCIATES LTD
DoLS/MCA,Professional Subs,14/06/2011,5000145459,"1,000.00",DAVE SHEPPARD ASSOCIATES LTD
Summary Revenue Account,Parish precepts paid,11/04/2011,1900325234,"135,000.00",VENTNOR TOWN COUNCIL
Homelessness Prevention,Accom Csts Serv Usrs,07/06/2011,1900351347,525.00,KINGSTON & GRIST
Summary Revenue Account,Parish precepts paid,11/04/2011,1900325256,"98,469.00",FRESHWATER PARISH COUNCIL
TIC Agency Income Suspense,Professional Service,08/04/2011,5000136246,679.95,THE MAYFLOWER THEATRE TRUST LTD
Summary Revenue Account,Parish precepts paid,11/04/2011,1900325243,"127,245.00",NEWPORT PARISH COUNCIL
Allotments,Operational Equipmen,18/05/2011,5000141915,"2,000.00",NEWPORT PARISH COUNCIL
Retaining Walls & Other Earthworks,Pay to Pvte Contract,18/04/2011,5000137533,750.00,COWAN CONSULTANCY LTD
Strategic Projects,Ext Design & Superv,25/05/2011,5000142915,764.75,COWAN CONSULTANCY LTD
Grounds Maintenance Contingency Non-Del,Grounds Maintenance,20/05/2011,5000142289,651.20,COUNTY FENCING SUPPLIES
Grounds Maintenance Contingency Non-Del,Grounds Maintenance,27/06/2011,5000147392,567.15,COUNTY FENCING SUPPLIES
Wightlink Tickets - Sports Unit,Order Settlement,28/06/2011,5000147598,620.80,WIGHTLINK LTD
Crematorium,Operational Equipmen,11/05/2011,5000140668,535.00,F G MARSHALL LTD
Crematorium,Operational Equipmen,17/05/2011,5000141678,609.18,F G MARSHALL LTD
DINO ISLE Sandown Museum Stocks,Order Settlement,16/05/2011,5000141320,645.47,W J NIGH & SONS LTD
DINO ISLE Sandown Museum Stocks,Order Settlement,31/05/2011,5000143545,559.97,W J NIGH & SONS LTD
DINO ISLE Sandown Museum Stocks,Office Equipment,06/06/2011,5000144219,557.53,W J NIGH & SONS LTD
Parks and Gardens Capital,"Pl, Equip & Furn - C",28/04/2011,5000139038,"10,000.00",WICKSTEED LEISURE LTD
Parks and Gardens Capital,"Pl, Equip & Furn - C",28/04/2011,5000139043,"3,055.50",WICKSTEED LEISURE LTD
Parks and Gardens Capital,"Pl, Equip & Furn - C",18/05/2011,5000141775,"5,841.00",WICKSTEED LEISURE LTD
Parks and Gardens Capital,"Pl, Equip & Furn - C",18/05/2011,5000141774,"4,812.50",WICKSTEED LEISURE LTD
Parks and Gardens Capital,"Pl, Equip & Furn - C",18/05/2011,5105664138,"-2,271.50",WICKSTEED LEISURE LTD
Parks and Gardens Capital,"Pl, Equip & Furn - C",25/05/2011,5400001131,"2,271.50",WICKSTEED LEISURE LTD
Homelessness Prevention,Accom Csts Serv Usrs,23/06/2011,1900362783,550.00,DALTON ENTERPRISES
Medina Bar Stock,Order Settlement,07/04/2011,5000136178,872.45,ISLAND ALES LTD
Medina Bar Stock,Order Settlement,07/04/2011,5000136180,-872.45,ISLAND ALES LTD
Medina Bar Stock,Order Settlement,14/06/2011,5000145688,569.56,ISLAND ALES LTD
Beach Safety & Inspection / Beach Awards,Pay to Pvte Contract,02/06/2011,5000143925,"5,600.00",OFFSHORE MARINE SERVICES LTD
Shanklin Lift,Pay to Pvte Contract,17/06/2011,5000146232,"3,289.01",OTIS LTD
Shanklin Lift,Pay to Pvte Contract,30/06/2011,5000147959,"3,289.01",OTIS LTD
Shanklin Lift,Pay to Pvte Contract,30/06/2011,5000147956,"1,769.00",OTIS LTD
Shanklin Lift,Pay to Pvte Contract,30/06/2011,5000147957,"1,509.00",OTIS LTD
Fire Capital Projects,Building & Room Rent,28/06/2011,5000147540,898.95,LINK LOCKERS
Workforce Development (A&C Services),Pay to Other LAs,15/04/2011,5000137388,"6,003.57",PORTSMOUTH CITY COUNCIL
Childrens Rights & Participation,Agency staff,20/04/2011,5000138237,"1,049.80",PORTSMOUTH CITY COUNCIL
Childrens Rights & Participation,Agency staff,20/04/2011,5000138237,948.44,PORTSMOUTH CITY COUNCIL
Connexions Grant,Agency staff,20/04/2011,5000138237,515.85,PORTSMOUTH CITY COUNCIL
Litigation Costs,Legal Fees - Other P,10/05/2011,5000140361,600.00,PORTSMOUTH CITY COUNCIL
Litigation Costs,Legal Fees - Other P,10/05/2011,5000140362,600.00,PORTSMOUTH CITY COUNCIL
LEA Developments,Train and Conference,26/05/2011,5000143185,"1,598.40",PORTSMOUTH CITY COUNCIL
Connexions Grant,Agency staff,07/06/2011,5000144360,"1,545.74",PORTSMOUTH CITY COUNCIL
RASP - Rural Community Council,Grants to Ext Bodies,07/04/2011,1900324887,"20,413.00",IW RURAL COMMUNITY COUNCIL
RCC Network Coordinator,Pay to Vol and Other,07/06/2011,5000144485,"6,750.00",IW RURAL COMMUNITY COUNCIL
RASP - Rural Community Council,Grants to Ext Bodies,08/06/2011,1900352009,"18,613.00",IW RURAL COMMUNITY COUNCIL
Public Con - General (was Attendance),Prop Svs-Planned Mtc,04/05/2011,5000139683,"12,282.00",WALLGATE LTD
ROW Capital Programme,Cap Contractor Pmts,05/05/2011,5000139810,-975.39,H J BENNETT LTD
ROW Capital Programme,Cap Contractor Pmts,25/05/2011,5000142895,"1,542.69",H J BENNETT LTD
ROW Capital Programme,Cap Contractor Pmts,25/05/2011,5000142893,"-1,852.00",H J BENNETT LTD
Summary Revenue Account,Parish precepts paid,11/04/2011,1900325237,"127,980.50",SHANKLIN TOWN COUNCIL
Children Centres Central Funding,Security of Building,08/04/2011,5000136265,937.25,LIFELINE ALARM SYSTEMS LTD
Shalfleet Primary Devolved Capital,Cap Contractor Pmts,02/06/2011,1900350822,"3,042.38",LIFELINE ALARM SYSTEMS LTD
Accounts Receivable,Sundry Office Expens,16/05/2011,5000141283,995.00,GEMINI CONSULTANTS LTD
Accounts Receivable,Sundry Office Expens,08/06/2011,5000144576,"1,648.26",GEMINI CONSULTANTS LTD
Accounts Receivable,Sundry Office Expens,08/06/2011,5000144575,-995.00,GEMINI CONSULTANTS LTD
Accounts Receivable,Sundry Office Expens,20/06/2011,5000146475,"-1,648.26",GEMINI CONSULTANTS LTD
Customer Accounts SSC Team,Sundry Office Expens,20/06/2011,5000146479,"1,648.28",GEMINI CONSULTANTS LTD
Ryde T.I.C.,Building & Room Rent,07/04/2011,5105656727,"2,312.50",ARCADIA (RYDE) LTD
Ryde THI,Capital Grants,20/05/2011,1900343963,"9,601.41",ARCADIA (RYDE) LTD
"St Thomas Church, Ryde",Marketing Costs,07/04/2011,5000136130,"2,120.00",BROXAP LTD
"St Thomas Church, Ryde",Marketing Costs,19/04/2011,5000137759,"-2,120.00",BROXAP LTD
"St Thomas Church, Ryde",Marketing Costs,20/04/2011,5000138086,"2,120.00",BROXAP LTD
Ferry Maintenance,Vehicle Maint Costs,03/05/2011,5000139452,"1,538.12",TONEY HYDRAULIC SERVICES
Head of Exchequer & Resident Services,Pay to Pvte Contract,18/05/2011,5000141874,809.87,BIFFA WASTE SERVICES LTD
Library Management,"Ref Collect, Disp &",02/06/2011,5000143892,-627.50,BIFFA WASTE SERVICES LTD
Public Lib Central,"Ref Collect, Disp &",02/06/2011,5000143845,680.00,BIFFA WASTE SERVICES LTD
Children in Need S.17,Transport of Clients,11/04/2011,5000136520,533.00,GO SOUTH COAST LTD
Leaving Care  Costs,Transport of Clients,11/04/2011,5000136520,533.00,GO SOUTH COAST LTD
Support for Looked After Children,Transport of Clients,11/04/2011,5000136520,533.00,GO SOUTH COAST LTD
Support for Looked After Children,Transport of Clients,11/04/2011,5000136516,518.00,GO SOUTH COAST LTD
Concessionary Fares- Over 60s,Concessionary Fares,20/04/2011,5000138240,"750,095.49",GO SOUTH COAST LTD
Subsidised Bus Services,Pub Trspt Subsidy,20/04/2011,5000138238,"16,281.00",GO SOUTH COAST LTD
Subsidised Bus Services,Pay to Pvte Contract,20/04/2011,5000138241,"3,519.00",GO SOUTH COAST LTD
Concessionary Fares- Over 60s,Concessionary Fares,17/05/2011,5000141521,"340,201.07",GO SOUTH COAST LTD
Subsidised Bus Services,Pub Trspt Subsidy,17/05/2011,5000141604,"16,281.00",GO SOUTH COAST LTD
Subsidised Bus Services,Pay to Pvte Contract,17/05/2011,5000141605,"3,519.00",GO SOUTH COAST LTD
Home to School Transport,Transport of Clients,18/05/2011,5000141828,"220,000.00",GO SOUTH COAST LTD
Post 16 Transport,Pay to Pvte Contract,02/06/2011,5000143894,535.50,GO SOUTH COAST LTD
Subsidised Bus Services,Pay to Pvte Contract,08/06/2011,5000144529,"3,519.00",GO SOUTH COAST LTD
Subsidised Bus Services,Pub Trspt Subsidy,09/06/2011,5000144742,"49,338.00",GO SOUTH COAST LTD
Home to School Transport,Transport of Clients,14/06/2011,5000145751,"220,000.00",GO SOUTH COAST LTD
Subsidised Bus Services,Pub Trspt Subsidy,15/06/2011,5000145798,"16,281.00",GO SOUTH COAST LTD
Subsidised Bus Services,Pay to Pvte Contract,15/06/2011,5000145799,"3,519.00",GO SOUTH COAST LTD
Concessionary Fares- Over 60s,Concessionary Fares,16/06/2011,5000145959,"342,405.25",GO SOUTH COAST LTD
Clatterford Pupil Referral Unit (PRU),Transport of Clients,17/06/2011,5000146131,"1,795.20",GO SOUTH COAST LTD
Home to School Transport,Transport of Clients,17/06/2011,5000146131,"5,385.60",GO SOUTH COAST LTD
I W College - Home to College Transport,Transport of Clients,17/06/2011,5000146131,"55,334.40",GO SOUTH COAST LTD
Post 16 Transport,Pay to Pvte Contract,17/06/2011,5000146187,538.50,GO SOUTH COAST LTD
Post 16 Transport,Pay to Pvte Contract,17/06/2011,5000146183,-535.50,GO SOUTH COAST LTD
SEN Transport,Transport of Clients,17/06/2011,5000146131,739.20,GO SOUTH COAST LTD
Thompson House Tuition Centre (PRU),Transport of Clients,17/06/2011,5000146131,633.60,GO SOUTH COAST LTD
I W College - Home to College Transport,Transport of Clients,29/06/2011,5000147751,"13,440.00",GO SOUTH COAST LTD
Wootton Youth Centre 40% income susp,Bldg/Room Rental Inc,15/04/2011,1900330553,526.84,WOOTTON YOUTH CENTRE
"Medina Village, Cowes",Building & Room Rent,21/04/2011,5000138380,600.00,BROOKSIDE HEALTH CENTRE
Homelessness Prevention,Accom Csts Serv Usrs,15/06/2011,1900356612,950.00,COUNTRYWIDE RESIDENTIAL LETTINGS
"Car Park - Little London,Newport",Building & Room Rent,21/04/2011,5000138437,"13,750.00",W HURST & SON (IW) LTD
"Car Park - Little London,Newport",Building & Room Rent,10/06/2011,5000145164,"13,750.00",W HURST & SON (IW) LTD
Restorative Justice,Operational Equipmen,14/06/2011,5000145502,825.86,W HURST & SON (IW) LTD
Pan Neighbourhood Management,Capital Grants,20/04/2011,5000138255,"80,000.00",VECTIS HOUSING ASSOCIATION LTD
Homelessness,Accomm Costs - Lease,04/05/2011,5000139654,"6,609.46",VECTIS HOUSING ASSOCIATION LTD
Homelessness,Accomm Costs - Lease,04/05/2011,5000139654,"1,317.59",VECTIS HOUSING ASSOCIATION LTD
Homelessness,Accomm Costs - Lease,25/05/2011,5000142990,"8,927.74",VECTIS HOUSING ASSOCIATION LTD
Homelessness,Accomm Costs - Lease,23/06/2011,5000147059,"7,099.02",VECTIS HOUSING ASSOCIATION LTD
Disabled Facilities Grants,Capital Grants,25/05/2011,1900345226,"7,170.00",ISLAND MOBILITY
Disabled Facilities Grants,Capital Grants,24/06/2011,1900362946,"7,600.00",ISLAND MOBILITY
Ferry Maintenance,Vehicle Maint Costs,03/05/2011,5000139459,"9,412.50",SEATEK ENGINEERING
Ferry Maintenance,Vehicle Maint Costs,03/06/2011,5000144086,"1,578.50",SEATEK ENGINEERING
Homelessness Prevention,Accom Csts Serv Usrs,04/05/2011,1900337218,675.00,ARTHUR WHEELER ESTATE AGENTS
Ryde Youth Centre 40% income susp,Bldg/Room Rental Inc,15/04/2011,1900330555,807.64,RYDE YOUTH CENTRE
Ryde Annexe 40% income susp,Bldg/Room Rental Inc,04/05/2011,1900337214,883.03,RYDE YOUTH CENTRE
Summary Revenue Account,Parish precepts paid,11/04/2011,1900325251,"115,000.00",SANDOWN TOWN COUNCIL
School Reorganisation Consultation Costs,Pay to Pvte Contract,14/04/2011,5000137320,"137,179.89",RM EDUCATION PLC
School Reorganisation Consultation Costs,Pay to Pvte Contract,12/05/2011,5105663111,"2,096.00",RM EDUCATION PLC
School Reorganisation Consultation Costs,Pay to Pvte Contract,13/05/2011,5105663436,"-2,072.50",RM EDUCATION PLC
Harnessing Technology Grant,"Pl, Equip & Furn - C",27/05/2011,5105666687,-521.15,RM EDUCATION PLC
Harnessing Technology Grant,ICT H/ware & S/ware,09/06/2011,5105668380,"-1,000.00",RM EDUCATION PLC
School Reorganisation Consultation Costs,Pay to Pvte Contract,27/06/2011,5105672183,-914.25,RM EDUCATION PLC
Legal Services Section,Train and Conference,21/06/2011,5000146737,650.00,CENTRAL LAW TRAINING LTD
Traffic Maintenance - Other Roads,Pay to Pvte Contract,19/04/2011,5000137888,709.59,EUROSIGNS (UK) LTD
Rights of Way Operations,General Materials,20/06/2011,5000146324,823.76,EUROSIGNS (UK) LTD
Bus Infrastructure,Cap Contractor Pmts,24/06/2011,5000147269,"1,118.86",EUROSIGNS (UK) LTD
Schools Library Service,Purchase of Books,14/04/2011,1900330405,"1,293.61",PETERS LTD
Library Management,Purchase of Books,04/05/2011,1900337246,607.10,PETERS LTD
Library Management,Purchase of Books,10/05/2011,1900337879,"1,828.59",PETERS LTD
Schools Library Service,Purchase of Books,18/05/2011,1900343477,846.30,PETERS LTD
Library Management,Purchase of Books,03/06/2011,1900351075,675.75,PETERS LTD
Homelessness Prevention,Pay to Pvte Contract,04/05/2011,5000139560,599.59,MEDINA HOUSING ASSOC [RE]
Cycleway Strategy,Operational Equipmen,01/04/2011,5000135458,582.33,HALFORDS
Cycleway Strategy,Operational Equipmen,01/04/2011,5000135451,-727.79,HALFORDS
Environmental Health - Geographical Team,Train and Conference,25/05/2011,5000142961,"1,090.00",UNIVERSITY OF THE WEST OF ENGLAND
Training - Childrens,Train and Conference,07/04/2011,5000136177,700.00,BEVAN YOUNG ASSOCIATES
Human Resources,Consultants Fees,08/04/2011,5000136286,700.00,BEVAN YOUNG ASSOCIATES
Human Resources,Consultants Fees,08/04/2011,5000136289,700.00,BEVAN YOUNG ASSOCIATES
Training - Childrens,Train and Conference,16/05/2011,5000141403,"3,500.00",BEVAN YOUNG ASSOCIATES
"Bugle House,Newport",Building & Room Rent,01/04/2011,5000135449,"6,250.00",BAE SYSTEMS PENSION FUNDS TRUST.LTD
"Bugle House,Newport",Building & Room Rent,01/04/2011,5000135450,"1,976.40",BAE SYSTEMS PENSION FUNDS TRUST.LTD
"Bugle House,Newport",Building & Room Rent,16/06/2011,5000146105,"6,250.00",BAE SYSTEMS PENSION FUNDS TRUST.LTD
"Bugle House,Newport",Building & Room Rent,16/06/2011,5000146107,"1,462.50",BAE SYSTEMS PENSION FUNDS TRUST.LTD
"Bugle House,Newport",Service Charges,16/06/2011,5000146106,"1,285.35",BAE SYSTEMS PENSION FUNDS TRUST.LTD
Medina Leisure Centre,Operational Equipmen,11/04/2011,5000136445,-700.00,TECHNOGYM UK LTD
Traffic Management,Other Capital Exp,04/04/2011,5000135611,871.04,SIEMENS PLC MOBILITY DIVISION
Traffic Management,Other Capital Exp,04/04/2011,5000135610,-909.30,SIEMENS PLC MOBILITY DIVISION
Traffic Signals Mtce - Principal Roads,Highways Minor Works,04/04/2011,5000135607,914.74,SIEMENS PLC MOBILITY DIVISION
Traffic Signals Mtce - Principal Roads,Highways Minor Works,04/04/2011,5000135606,"-1,039.53",SIEMENS PLC MOBILITY DIVISION
Highway Structures Capital,Cap Contractor Pmts,13/04/2011,5000137077,"2,721.42",SIEMENS PLC MOBILITY DIVISION
Highway Structures Capital,Cap Contractor Pmts,13/04/2011,5000137076,"-3,219.43",SIEMENS PLC MOBILITY DIVISION
DFT Emergency Maintenance Works,Highways Minor Works,26/04/2011,5000138668,509.95,SIEMENS PLC MOBILITY DIVISION
Traffic Signals Mtce - Principal Roads,Highways Minor Works,26/04/2011,5000138664,807.23,SIEMENS PLC MOBILITY DIVISION
Traffic Signals Mtce - Principal Roads,Highways Minor Works,28/04/2011,5000139100,575.68,SIEMENS PLC MOBILITY DIVISION
Other Highways maintenance,Cap Contractor Pmts,03/05/2011,5000139227,808.98,SIEMENS PLC MOBILITY DIVISION
Traffic Signals Mtce - Principal Roads,Highways Minor Works,03/05/2011,5000139309,935.57,SIEMENS PLC MOBILITY DIVISION
Traffic Signals Mtce - Principal Roads,Highways Minor Works,03/05/2011,5000139305,527.97,SIEMENS PLC MOBILITY DIVISION
Traffic Signals Mtce - Principal Roads,Highways Minor Works,25/05/2011,5000143037,656.59,SIEMENS PLC MOBILITY DIVISION
Other Highways maintenance,Cap Contractor Pmts,27/05/2011,5000143315,"3,100.54",SIEMENS PLC MOBILITY DIVISION
Integrated Community Equipment Service,Operational Equipmen,31/05/2011,5000143640,"2,476.00",JAMES LECKEY DESIGN LTD
Integrated Community Equipment Service,Operational Equipmen,06/06/2011,5000144247,"3,020.00",JAMES LECKEY DESIGN LTD
Integrated Community Equipment Service,Operational Equipmen,06/06/2011,5000144166,"2,037.00",JAMES LECKEY DESIGN LTD
Integrated Community Equipment Service,Operational Equipmen,06/06/2011,5000144230,888.00,JAMES LECKEY DESIGN LTD
Medina Leisure Centre,Delegated Minor Main,14/06/2011,5000145669,600.00,K COGHLAN PLANT & TRANSPORT LTD
SEN Inter-Authority Recoupment,Pay to Other LAs,31/05/2011,5000143593,"15,221.28",SOUTHAMPTON CITY COUNCIL
Youth - Duke of Edinburgh Award,Licences,21/04/2011,5000138396,730.00,THE AWARD SCHEME LTD
Youth - Duke of Edinburgh Award,Professional Subs,04/05/2011,5000139665,730.00,THE AWARD SCHEME LTD
Waterside pool,Fuel Oil,07/04/2011,5000136218,854.40,VECTIS OILS
Waterside pool,Fuel Oil,19/04/2011,5000137858,"1,440.00",VECTIS OILS
Waterside pool,Fuel Oil,03/05/2011,5000139324,"1,369.90",VECTIS OILS
Waterside pool,Fuel Oil,23/05/2011,5000142392,"1,440.00",VECTIS OILS
Waterside pool,Fuel Oil,27/05/2011,5000143381,"1,440.00",VECTIS OILS
Waterside pool,Fuel Oil,15/06/2011,5000145862,"1,469.40",VECTIS OILS
Waterside pool,Fuel Oil,24/06/2011,5000147312,"1,460.40",VECTIS OILS
Library Management,Vehicle Maint Costs,05/04/2011,5000135710,721.78,ADAMS MOREY LTD
WIGHTBUS Trading Account,Vehicle Maint Costs,05/04/2011,5000135710,"1,529.08",ADAMS MOREY LTD
WIGHTBUS Trading Account,Vehicle Maint Costs,17/05/2011,5000141714,"1,810.32",ADAMS MOREY LTD
WIGHTBUS Trading Account,Vehicle Maint Costs,17/05/2011,5000141714,"1,464.53",ADAMS MOREY LTD
WIGHTBUS Trading Account,Vehicle Maint Costs,26/05/2011,5000143120,619.42,ADAMS MOREY LTD
WIGHTBUS Trading Account,Vehicle Maint Costs,16/06/2011,5000146083,"2,374.09",ADAMS MOREY LTD
Grounds Maintenance - Delegated,Grounds Maintenance,23/05/2011,5000142528,"8,567.71",WYEVALE GROUNDS MAINTENANCE
Grounds Maintenance - Delegated,Grounds Maintenance,01/06/2011,5000143780,"10,039.62",WYEVALE GROUNDS MAINTENANCE
Grounds Maintenance - Delegated,Grounds Maintenance,08/06/2011,5000144565,"2,017.00",WYEVALE GROUNDS MAINTENANCE
Grounds Maintenance - Delegated,Grounds Maintenance,08/06/2011,5000144566,"2,017.00",WYEVALE GROUNDS MAINTENANCE
Grounds Maintenance - Delegated,Grounds Maintenance,16/06/2011,5000145976,"1,472.14",WYEVALE GROUNDS MAINTENANCE
Public Con - General (was Attendance),Pay to Pvte Contract,15/06/2011,5000145812,750.00,JMC AG LTD
Statutory Assessment and Review Team,Pay to Pvte Contract,04/04/2011,5000135657,"1,919.51",KENT COUNTY COUNCIL
Statutory Assessment and Review Team,Pay to Pvte Contract,13/04/2011,5000136944,"-1,919.51",KENT COUNTY COUNCIL
Beach Safety & Inspection / Beach Awards,Operational Equipmen,30/06/2011,5000147849,"1,809.40",COSALT INTERNATIONAL LTD
Seaclose Offices,Prop Svs-Planned Mtc,20/06/2011,5000146503,657.44,OTIS INVESTMENTS PLC
Island Waste Recycling Contract,Waste Contractors,09/05/2011,5105662308,"65,749.98",ISLAND WASTE SERVICES LTD
Island Waste Recycling Contract,Waste Contractors,09/05/2011,5105662308,543.39,ISLAND WASTE SERVICES LTD
Island Waste Refuse Collection Contract,Waste Contractors,09/05/2011,5105662308,"247,241.67",ISLAND WASTE SERVICES LTD
Island Waste Refuse Collection Contract,Waste Contractors,09/05/2011,5105662308,"7,064.05",ISLAND WASTE SERVICES LTD
Island Waste Refuse Disposal Contract,Waste Contractors,09/05/2011,5105662308,"212,464.83",ISLAND WASTE SERVICES LTD
Island Waste Refuse Disposal Contract,Waste Contractors,09/05/2011,5105662308,"5,433.88",ISLAND WASTE SERVICES LTD
Island Waste Refuse Disposal Contract,Waste Contractors,09/05/2011,5105662308,"4,890.50",ISLAND WASTE SERVICES LTD
Island Waste Recycling Contract,Waste Contractors,01/06/2011,5105667110,"65,537.03",ISLAND WASTE SERVICES LTD
Island Waste Recycling Contract,Waste Contractors,01/06/2011,5105667110,541.63,ISLAND WASTE SERVICES LTD
Island Waste Refuse Collection Contract,Waste Contractors,01/06/2011,5105667110,"247,524.14",ISLAND WASTE SERVICES LTD
Island Waste Refuse Collection Contract,Waste Contractors,01/06/2011,5105667110,"7,582.80",ISLAND WASTE SERVICES LTD
Island Waste Refuse Disposal Contract,Waste Contractors,01/06/2011,5105667110,"211,235.05",ISLAND WASTE SERVICES LTD
Island Waste Refuse Disposal Contract,Waste Contractors,01/06/2011,5105667110,"4,874.65",ISLAND WASTE SERVICES LTD
Island Waste Refuse Disposal Contract,Waste Contractors,01/06/2011,5105667110,"4,333.03",ISLAND WASTE SERVICES LTD
Island Waste Recycling Contract,Waste Contractors,27/06/2011,5105672219,"66,225.65",ISLAND WASTE SERVICES LTD
Island Waste Refuse Collection Contract,Waste Contractors,27/06/2011,5105672219,"255,131.58",ISLAND WASTE SERVICES LTD
Island Waste Refuse Disposal Contract,Waste Contractors,27/06/2011,5105672219,"217,133.27",ISLAND WASTE SERVICES LTD
Island Waste Refuse Disposal Contract,Waste Contractors,27/06/2011,5105672219,"4,342.67",ISLAND WASTE SERVICES LTD
SEN Inter-Authority Recoupment,Pay to Other LAs,11/04/2011,5000136420,"18,388.80",BOURNEMOUTH BOROUGH COUNCIL
DAT Team - Adult Treatment,Professional Service,08/04/2011,5000136241,"60,390.75",CRANSTOUN DRUG SERVICES
Drug Interventions Programme (DIP),Professional Service,08/04/2011,5000136241,"30,353.25",CRANSTOUN DRUG SERVICES
Drugs / Alcohol,Professional Service,08/04/2011,5000136241,"7,500.00",CRANSTOUN DRUG SERVICES
High Sector Home to School Transport,Transport of Clients,06/04/2011,5000136043,717.50,RYDE TAXIS LTD
High Sector Home to School Transport,Transport of Clients,06/04/2011,5000136036,-892.82,RYDE TAXIS LTD
High Sector Home to School Transport,Transport of Clients,06/04/2011,5000136041,-965.00,RYDE TAXIS LTD
Middle Sector Home to School Transport,Transport of Clients,06/04/2011,5000136052,643.23,RYDE TAXIS LTD
Middle Sector Home to School Transport,Transport of Clients,06/04/2011,5000136053,-790.00,RYDE TAXIS LTD
Middle Sector Home to School Transport,Transport of Clients,06/04/2011,5000136050,"-1,416.44",RYDE TAXIS LTD
Primary Sector Home to School Transport,Transport of Clients,06/04/2011,5000136034,"1,338.35",RYDE TAXIS LTD
Primary Sector Home to School Transport,Transport of Clients,06/04/2011,5000136024,"1,335.83",RYDE TAXIS LTD
Primary Sector Home to School Transport,Transport of Clients,06/04/2011,5000136023,"-1,026.09",RYDE TAXIS LTD
Primary Sector Home to School Transport,Transport of Clients,06/04/2011,5000136033,"-1,404.34",RYDE TAXIS LTD
SEN Transport,Transport of Clients,06/04/2011,5000136028,"1,095.71",RYDE TAXIS LTD
SEN Transport,Transport of Clients,06/04/2011,5000136026,"1,045.00",RYDE TAXIS LTD
SEN Transport,Transport of Clients,06/04/2011,5000136030,540.00,RYDE TAXIS LTD
SEN Transport,Transport of Clients,06/04/2011,5000136019,-654.82,RYDE TAXIS LTD
SEN Transport,Transport of Clients,06/04/2011,5000136029,-720.00,RYDE TAXIS LTD
SEN Transport,Transport of Clients,06/04/2011,5000136025,"-1,081.54",RYDE TAXIS LTD
SEN Transport,Transport of Clients,06/04/2011,5000136027,"-1,341.85",RYDE TAXIS LTD
Middle Sector Home to School Transport,Transport of Clients,20/04/2011,5105659536,836.67,RYDE TAXIS LTD
Primary Sector Home to School Transport,Transport of Clients,20/04/2011,5105659536,"1,303.33",RYDE TAXIS LTD
Primary Sector Home to School Transport,Transport of Clients,03/05/2011,5000139393,540.00,RYDE TAXIS LTD
Primary Sector Home to School Transport,Transport of Clients,03/05/2011,5000139386,525.00,RYDE TAXIS LTD
Primary Sector Home to School Transport,Transport of Clients,18/05/2011,5105664010,720.00,RYDE TAXIS LTD
High Sector Home to School Transport,Transport of Clients,01/06/2011,5000143759,791.54,RYDE TAXIS LTD
High Sector Home to School Transport,Transport of Clients,01/06/2011,5000143748,595.00,RYDE TAXIS LTD
Middle Sector Home to School Transport,Transport of Clients,01/06/2011,5000143756,541.58,RYDE TAXIS LTD
Primary Sector Home to School Transport,Transport of Clients,01/06/2011,5000143737,"1,140.00",RYDE TAXIS LTD
Primary Sector Home to School Transport,Transport of Clients,01/06/2011,5000143744,"1,140.00",RYDE TAXIS LTD
SEN Transport,Transport of Clients,01/06/2011,5000143740,886.54,RYDE TAXIS LTD
SEN Transport,Transport of Clients,01/06/2011,5000143738,855.00,RYDE TAXIS LTD
SEN Transport,Transport of Clients,01/06/2011,5000143741,510.00,RYDE TAXIS LTD
Primary Sector Home to School Transport,Transport of Clients,10/06/2011,5105668707,"1,520.00",RYDE TAXIS LTD
Wroxall Primary Devolved Capital,"Pl, Equip & Furn - C",18/05/2011,1900343449,"3,730.00",NOVATECH LTD
Wroxall Primary Devolved Capital,"Pl, Equip & Furn - C",18/05/2011,1900343454,"2,121.60",NOVATECH LTD
Wroxall Primary Devolved Capital,"Pl, Equip & Furn - C",18/05/2011,1900343448,"1,880.84",NOVATECH LTD
Wroxall Primary Devolved Capital,"Pl, Equip & Furn - C",18/05/2011,1900343451,779.55,NOVATECH LTD
Library Management,Purchase of Books,02/06/2011,1900351049,739.56,ASKEWS LIBRARY SERVICES LTD
Library Management,Purchase of Books,02/06/2011,1900351047,721.33,ASKEWS LIBRARY SERVICES LTD
Public Lib Central,Purchase of Books,02/06/2011,1900351051,"1,500.00",ASKEWS LIBRARY SERVICES LTD
Library Management,Purchase of Books,07/06/2011,1900351333,972.28,ASKEWS LIBRARY SERVICES LTD
Diversity & Workforce,Train and Conference,07/04/2011,5000136131,"5,106.00",HAMPSHIRE FIRE AND RESCUE SERVICE
Library Services green sacks,Order Settlement,06/04/2011,5000135985,"1,530.00",ISLAND WASTE SERVICES
Island Waste Landfill Tax,Pay to Pvte Contract,07/04/2011,5000136133,"39,368.64",ISLAND WASTE SERVICES
Public Lib Central,"Ref Collect, Disp &",08/04/2011,5000136305,"3,000.00",ISLAND WASTE SERVICES
Island Waste Landfill Tax,Pay to Pvte Contract,20/04/2011,5000138252,"44,196.80",ISLAND WASTE SERVICES
Public Lib Central,"Ref Collect, Disp &",20/04/2011,5000138089,"2,400.00",ISLAND WASTE SERVICES
Library Services green sacks,Order Settlement,26/04/2011,5000138630,"2,295.00",ISLAND WASTE SERVICES
Island Waste Landfill Tax,Pay to Pvte Contract,04/05/2011,5000139594,"45,334.24",ISLAND WASTE SERVICES
Island Waste Landfill Tax,Pay to Pvte Contract,04/05/2011,5000139600,"15,543.36",ISLAND WASTE SERVICES
Island Waste Landfill Tax,Pay to Pvte Contract,06/05/2011,5000140052,"11,141.76",ISLAND WASTE SERVICES
Newport Help Centre,General Materials,06/05/2011,5000139915,600.00,ISLAND WASTE SERVICES
Island Waste Landfill Tax,Pay to Pvte Contract,11/05/2011,5000140722,"28,145.60",ISLAND WASTE SERVICES
Library Services green sacks,Order Settlement,12/05/2011,5000140984,"2,295.00",ISLAND WASTE SERVICES
Island Waste Landfill Tax,Pay to Pvte Contract,19/05/2011,5000142073,"14,469.28",ISLAND WASTE SERVICES
Library Services green sacks,Order Settlement,26/05/2011,5000143077,"3,060.00",ISLAND WASTE SERVICES
Lynnbottom Leachate Treatment Works,Pay to Pvte Contract,26/05/2011,5000143216,"10,344.83",ISLAND WASTE SERVICES
Stag Lane Landfill Site,Pay to Pvte Contract,26/05/2011,5000143216,"3,345.60",ISLAND WASTE SERVICES
Island Waste Landfill Tax,Pay to Pvte Contract,27/05/2011,5000143352,"14,393.12",ISLAND WASTE SERVICES
Island Waste Landfill Tax,Pay to Pvte Contract,02/06/2011,5000143897,"19,197.92",ISLAND WASTE SERVICES
Library Services green sacks,Order Settlement,02/06/2011,5000143893,-765.00,ISLAND WASTE SERVICES
Island Waste Landfill Tax,Pay to Pvte Contract,14/06/2011,5000145628,"16,739.52",ISLAND WASTE SERVICES
Island Waste Landfill Tax,Pay to Pvte Contract,16/06/2011,5000146090,"21,972.16",ISLAND WASTE SERVICES
Library Services green sacks,Order Settlement,17/06/2011,5000146216,"4,590.00",ISLAND WASTE SERVICES
Public Lib Central,"Ref Collect, Disp &",20/06/2011,5000146483,"5,295.00",ISLAND WASTE SERVICES
Public Lib Central,"Ref Collect, Disp &",20/06/2011,5000146484,"2,295.00",ISLAND WASTE SERVICES
Island Waste Landfill Tax,Pay to Pvte Contract,22/06/2011,5000146878,"19,820.64",ISLAND WASTE SERVICES
Island Waste Landfill Tax,Pay to Pvte Contract,29/06/2011,5000147769,"20,058.08",ISLAND WASTE SERVICES
Newport Help Centre,General Materials,29/06/2011,5000147835,900.00,ISLAND WASTE SERVICES
Gouldings Resource Centre,Cons Cleaning Materi,27/04/2011,5000138912,588.24,BETA PAK
Medina Vending Machine Stock,Order Settlement,19/05/2011,5000142178,519.65,BETA PAK
Sandown High Devolved Capital,"Pl, Equip & Furn - C",02/06/2011,1900350804,"1,319.82",BETA PAK
Medina Vending Machine Stock,Order Settlement,14/06/2011,5000145705,"1,142.11",BETA PAK
Medina Vending Machine Stock,Order Settlement,28/06/2011,5000147661,709.83,BETA PAK
"Guildhall,Newport",Sundry Office Expens,09/05/2011,5000140182,624.54,ADT FIRE AND SECURITY PLC
Medina Leisure Centre,Pay to Pvte Contract,09/05/2011,5000140171,"2,198.89",ADT FIRE AND SECURITY PLC
Medina Leisure Centre,Pay to Pvte Contract,16/05/2011,5000141463,809.42,ADT FIRE AND SECURITY PLC
Non-Delegated Building Maintenance,Prop Svs-Planned Mtc,20/05/2011,5000142241,"2,081.97",ADT FIRE AND SECURITY PLC
Non-Delegated Building Maintenance,Prop Svs-Planned Mtc,20/05/2011,5000142240,579.37,ADT FIRE AND SECURITY PLC
Seaclose Offices,Security of Building,23/06/2011,5000146983,719.97,ADT FIRE AND SECURITY PLC
Democratic Representation & Management,Professional Subs,14/04/2011,5000137282,"12,200.00",COUNTY COUNCILS NETWORK
Childrens Services Finance Team,Licences,11/04/2011,5000136502,"1,763.33",EDUCATIONAL RECORDING AGENCY LTD
Childrens Services Finance Team,Licences,11/04/2011,5000136502,"1,594.80",EDUCATIONAL RECORDING AGENCY LTD
Childrens Services Finance Team,Licences,12/04/2011,5000136746,611.86,EDUCATIONAL RECORDING AGENCY LTD
ICT Contracts,Comp Software Licenc,16/06/2011,5000146017,"30,153.89",INSIGHT DIRECT (UK) LTD
ICT Contracts,Comp Software Licenc,16/06/2011,5000146017,"8,212.68",INSIGHT DIRECT (UK) LTD
ICT Contracts,Comp Software Licenc,16/06/2011,5000146017,"7,709.52",INSIGHT DIRECT (UK) LTD
ICT Contracts,Comp Software Licenc,16/06/2011,5000146017,"2,859.45",INSIGHT DIRECT (UK) LTD
ICT Contracts,Comp Software Licenc,16/06/2011,5000146017,626.76,INSIGHT DIRECT (UK) LTD
Data Network Business Continuity,ICT H/ware & S/ware,17/06/2011,5000146271,"5,610.00",INSIGHT DIRECT (UK) LTD
Data Network Business Continuity,ICT H/ware & S/ware,17/06/2011,5000146271,"1,412.70",INSIGHT DIRECT (UK) LTD
Ventnor Botanic Garden,Prop Svs-Planned Mtc,07/04/2011,5000136100,628.30,D A R E S LTD
Education Fair Funding Primary Schools,Cap Contractor Pmts,20/04/2011,5000138302,"1,000.00",D A R E S LTD
Public Con - General (was Attendance),Prop Svs-Planned Mtc,04/05/2011,5000139613,746.55,D A R E S LTD
Public Con - General (was Attendance),Prop Svs-Planned Mtc,07/06/2011,5000144376,959.85,D A R E S LTD
Ventnor Botanic Garden,Prop Svs-Planned Mtc,07/06/2011,5000144375,666.00,D A R E S LTD
LPSA 2 Night Time Economy,Grants to Ext Bodies,10/05/2011,5000140354,"39,480.19",THE HAMPTON TRUST(HANTS & I W)
Children Centres Central Funding,B/in Prof Svs - Curr,19/05/2011,5105664416,"5,814.40",HOMESTART IOW
Family Support and Interention Team,B/in Prof Svs - Curr,19/05/2011,5105664416,"3,876.26",HOMESTART IOW
Diversity & Workforce,Train and Conference,07/04/2011,5000136132,"1,700.00",INNOGISTIC SOFTWARE PLC
ICT Contracts,Computer Maintenance,12/05/2011,5000140788,"6,000.00",WDM LIMITED
ICT Contracts,Computer Maintenance,12/05/2011,5000140951,"6,000.00",WDM LIMITED
ICT Contracts,Computer Maintenance,12/05/2011,5000140964,"6,000.00",WDM LIMITED
ICT Contracts,Computer Maintenance,12/05/2011,5000141056,"6,000.00",WDM LIMITED
ICT Contracts,Computer Maintenance,12/05/2011,5000140983,"-6,000.00",WDM LIMITED
ICT Contracts,Computer Maintenance,12/05/2011,5000140965,"-6,000.00",WDM LIMITED
ICT Contracts,Computer Maintenance,12/05/2011,5000141091,"-6,000.00",WDM LIMITED
Independent Sector Training,Hire of facilities,05/04/2011,5000135790,732.00,RIVERSIDE VENTURES LTD
Independent Sector Training,Catering Purchases,05/04/2011,5000135790,534.33,RIVERSIDE VENTURES LTD
2 Langley Court,Building & Room Rent,16/06/2011,5000146097,"7,050.00",S A PAYNE & CO [RE]
5 Langley Court,Building & Room Rent,16/06/2011,5000146099,"2,437.50",S A PAYNE & CO [RE]
"7 High St,Newport",Building & Room Rent,16/06/2011,5000146098,"6,500.00",S A PAYNE & CO [RE]
PNP Mgmt & Admin,Building & Room Rent,16/06/2011,5000146101,"1,500.00",S A PAYNE & CO [RE]
Provision Of Meals,Sch Catering Contrac,04/04/2011,5000135553,"168,570.05",PABULUM
School Meals Payments To Pabulum,Order Settlement,08/04/2011,1900325087,"100,000.00",PABULUM
School Meals Payments To Pabulum,Order Settlement,08/04/2011,1900325090,"83,532.83",PABULUM
School Meals Payments To Pabulum,Order Settlement,08/04/2011,1900325090,"-53,979.34",PABULUM
School Meals Payments To Pabulum,Order Settlement,20/04/2011,1900330852,"47,549.60",PABULUM
School Meals Payments To Pabulum,Order Settlement,20/04/2011,1900330852,"-13,930.12",PABULUM
School Meals Payments To Pabulum,Order Settlement,19/05/2011,1900343787,"100,000.00",PABULUM
School Meals Payments To Pabulum,Order Settlement,19/05/2011,1700042718,"-10,927.11",PABULUM
School Meals Payments To Pabulum,Order Settlement,19/05/2011,1700042718,"-25,862.90",PABULUM
Targeted School Meals Grant,Pay to Pvte Contract,20/05/2011,5000142247,"1,172.54",PABULUM
School Meals Payments To Pabulum,Order Settlement,23/06/2011,1900362937,"100,000.00",PABULUM
School Meals Payments To Pabulum,Order Settlement,23/06/2011,1900362936,"63,952.26",PABULUM
School Meals Payments To Pabulum,Order Settlement,23/06/2011,1900362936,"-47,277.45",PABULUM
Fostering by Other Agencies,Pay to Vol and Other,01/04/2011,5000135421,"7,224.00",FIVE RIVERS CHILD CARE LTD
Fostering by Other Agencies,Pay to Vol and Other,01/04/2011,5000135423,"7,026.90",FIVE RIVERS CHILD CARE LTD
Fostering by Other Agencies,Pay to Vol and Other,01/04/2011,5000135424,"6,468.30",FIVE RIVERS CHILD CARE LTD
Fostering by Other Agencies,Pay to Vol and Other,01/04/2011,5000135425,"6,292.20",FIVE RIVERS CHILD CARE LTD
Fostering by Other Agencies,Pay to Vol and Other,01/04/2011,5000135426,"-6,468.30",FIVE RIVERS CHILD CARE LTD
Fostering by Other Agencies,Pay to Vol and Other,01/04/2011,5000135427,"-7,224.00",FIVE RIVERS CHILD CARE LTD
Fostering by Other Agencies,Pay to Vol and Other,05/04/2011,5000135879,"3,966.00",FIVE RIVERS CHILD CARE LTD
Fostering by Other Agencies,Pay to Vol and Other,05/04/2011,5000135880,"3,858.00",FIVE RIVERS CHILD CARE LTD
Fostering by Other Agencies,Pay to Vol and Other,05/04/2011,5000135887,"-3,966.00",FIVE RIVERS CHILD CARE LTD
Fostering by Other Agencies,Pay to Vol and Other,18/04/2011,5000137606,"7,261.13",FIVE RIVERS CHILD CARE LTD
Fostering by Other Agencies,Pay to Vol and Other,18/04/2011,5000137608,"6,501.94",FIVE RIVERS CHILD CARE LTD
Fostering by Other Agencies,Pay to Vol and Other,18/04/2011,5000137610,"3,986.60",FIVE RIVERS CHILD CARE LTD
Fostering by Other Agencies,Pay to Vol and Other,09/05/2011,5000140252,"7,026.90",FIVE RIVERS CHILD CARE LTD
Fostering by Other Agencies,Pay to Vol and Other,09/05/2011,5000140256,"6,292.20",FIVE RIVERS CHILD CARE LTD
Fostering by Other Agencies,Pay to Vol and Other,09/05/2011,5000140250,"3,858.00",FIVE RIVERS CHILD CARE LTD
Agency Placements,Pay to Vol and Other,03/06/2011,5000144091,"3,904.20",FIVE RIVERS CHILD CARE LTD
Agency Placements,Pay to Vol and Other,03/06/2011,5000144090,"3,513.78",FIVE RIVERS CHILD CARE LTD
Agency Placements,Pay to Vol and Other,14/06/2011,5000145499,"3,986.60",FIVE RIVERS CHILD CARE LTD
Fostering by Other Agencies,Pay to Vol and Other,14/06/2011,5000145506,"7,261.13",FIVE RIVERS CHILD CARE LTD
Fostering by Other Agencies,Pay to Vol and Other,14/06/2011,5000145497,"6,501.94",FIVE RIVERS CHILD CARE LTD
Fostering by Other Agencies,Pay to Vol and Other,14/06/2011,5000145487,"3,986.60",FIVE RIVERS CHILD CARE LTD
Technical Support,Maint of Op Equip,23/05/2011,5000142410,"1,000.00",BOC LTD
S106 Capital Projects,"Pl, Equip & Furn - C",08/06/2011,5000144682,"21,785.95",QUADRANT SECURITY GROUP LTD
Fire Capital Projects,"Pl, Equip & Furn - C",31/05/2011,5000143518,"43,074.89",JOHN DENNIS COACHBUILDERS LTD
Fire Capital Projects,"Pl, Equip & Furn - C",23/06/2011,5000147057,"86,750.00",JOHN DENNIS COACHBUILDERS LTD
Victoria Recreation Ground,Pay to Pvte Contract,21/04/2011,5000138451,750.00,NEWPORT VICTORIA SPORTS & SOCIAL CB
Administrative Buildings,Cleaning Contracts,05/04/2011,5000135690,"24,094.65",N-VIRO
Administrative Buildings,Cleaning Contracts,18/04/2011,5000137673,"2,912.15",N-VIRO
Administrative Buildings,Cleaning Contracts,19/04/2011,5000138026,"24,094.65",N-VIRO
Administrative Buildings,Cleaning Contracts,13/05/2011,5000141168,"24,094.65",N-VIRO
Administrative Buildings,Cleaning Contracts,06/06/2011,5000144175,"23,451.82",N-VIRO
Clatterford Pupil Referral Unit (PRU),Cleaning Contracts,21/06/2011,5000146548,755.62,N-VIRO
Parking Attendants,Mobile Telecoms,20/04/2011,1900331129,934.50,ORANGE PERSONAL COMMUNIC SERVICES
Parking Attendants,Mobile Telecoms,27/06/2011,1900363157,934.50,ORANGE PERSONAL COMMUNIC SERVICES
Parking Attendants,Mobile Telecoms,28/06/2011,1900363239,934.50,ORANGE PERSONAL COMMUNIC SERVICES
Ferry Maintenance,Vehicle Hire Externa,26/05/2011,5000143122,"8,875.00",SOLENT & WIGHTLINE CRUISES LTD
Ferry Maintenance,Vehicle Hire Externa,26/05/2011,5000143122,"8,875.00",SOLENT & WIGHTLINE CRUISES LTD
Ferry Maintenance,Vehicle Hire Externa,26/05/2011,5000143122,"8,768.50",SOLENT & WIGHTLINE CRUISES LTD
DINO ISLE Sandown Museum Stocks,Order Settlement,31/05/2011,5000143547,578.16,EMBLEM PRINT PRODUCTS LTD
Renewal & Enforcement,Pay to Vol and Other,22/06/2011,5000146928,"19,622.25",AGE CONCERN ISLE OF WIGHT [SP]
Enterprise House,Building & Room Rent,23/06/2011,5105671400,"30,625.00",MJH DEVELOPMENTS[RE]
Transport Fleet Administration,Vehicle Fuel Costs,12/04/2011,5000136641,"1,075.50",SANDFORD GARAGE (I W LTD)
Transport Fleet Administration,Vehicle Fuel Costs,20/05/2011,5000142273,766.89,SANDFORD GARAGE (I W LTD)
Transport Fleet Administration,Vehicle Fuel Costs,16/06/2011,5000146081,958.84,SANDFORD GARAGE (I W LTD)
Operations & Fire Resilience,Prop Svs - Bldg mtce,13/04/2011,5000136963,720.00,GILGEN DOOR SYSTEMS UK LTD
Elections,NJC Temp Staff GP,27/05/2011,1900350348,"1,615.72",REDACTED PERSONAL DATA
Summary Revenue Account,Parish precepts paid,12/04/2011,1900325307,"40,277.00",TOTLAND PARISH COUNCIL
Yarmouth Primary Suspense,Grants to Ext Bodies,16/05/2011,1900343166,"1,184.00",TOTLAND PARISH COUNCIL
WIGHTBUS Trading Account,Vehicle Maint Costs,17/05/2011,5000141739,"-2,478.25",ALLIANCE & LEICESTER COMM.FIN. PLC
WIGHTBUS Trading Account,Vehicle Maint Costs,17/05/2011,5000141739,"-2,542.97",ALLIANCE & LEICESTER COMM.FIN. PLC
WIGHTBUS Trading Account,Vehicle Maint Costs,17/05/2011,5000141739,"-2,800.25",ALLIANCE & LEICESTER COMM.FIN. PLC
West Wight Pool Trust RATES,Grants to Ext Bodies,07/04/2011,1900324893,"82,800.00",WEST WIGHT SPORTS CENTRE TRUST LTD
Youth- West Wight,Electricity,18/05/2011,1900343457,506.28,WEST WIGHT SPORTS CENTRE TRUST LTD
ICT Contracts,Computer Purch & Ren,14/04/2011,5000137241,"38,582.62",DATA INTEGRATION LTD
ICT Contracts,Computer Maintenance,15/04/2011,5000137487,"27,920.45",DATA INTEGRATION LTD
Strategic Projects,ICT H/ware & S/ware,19/04/2011,5000137883,"1,501.14",DATA INTEGRATION LTD
SERCC,Consultants Fees,24/05/2011,5105665939,902.37,DATA INTEGRATION LTD
Yarmouth T.I.C.,Consultants Fees,24/05/2011,5105665939,902.37,DATA INTEGRATION LTD
Strategic Projects,ICT H/ware & S/ware,27/05/2011,5000143247,"1,352.76",DATA INTEGRATION LTD
Strategic Projects,ICT H/ware & S/ware,27/05/2011,5000143247,894.48,DATA INTEGRATION LTD
Strategic Projects,ICT H/ware & S/ware,10/06/2011,5000145068,"7,472.84",DATA INTEGRATION LTD
Strategic Projects,ICT H/ware & S/ware,20/06/2011,5000146434,"20,059.20",DATA INTEGRATION LTD
Strategic Projects,ICT H/ware & S/ware,20/06/2011,5000146434,"1,512.00",DATA INTEGRATION LTD
Countryside Management,Pay to Pvte Contract,28/04/2011,5000139009,565.00,ARBUTUS
DINO ISLE Sandown Museum Stocks,Order Settlement,15/06/2011,5000145870,503.16,PUCKATOR LTD
Highway Maintenance Inspection,Computer Maintenance,26/04/2011,5105660750,775.20,GGP SYSTEMS LTD
Highways Design Team,Computer Maintenance,26/04/2011,5105660750,775.20,GGP SYSTEMS LTD
Educational Psychology Service,Agency staff,11/05/2011,5000140752,"12,750.00",REDACTED PERSONAL DATA
Educational Psychology Service,Agency staff,11/05/2011,5000140751,"-16,000.00",REDACTED PERSONAL DATA
Transport Fleet Administration,Vehicle Fuel Costs,12/04/2011,5000136640,"1,420.71",SAINSBURY'S FUELCARD
Transport Fleet Administration,Maint of Op Equip,06/05/2011,5000140031,"1,037.49",SAINSBURY'S FUELCARD
Heating and Loft insulation,Capital Grants,18/04/2011,1900330709,713.50,GTI GLAZING SYSTEMS
Heating and Loft insulation,Capital Grants,06/05/2011,1900337558,830.00,GTI GLAZING SYSTEMS
Coroner,Post Mortem Fees,10/05/2011,5000140431,609.40,REDACTED PERSONAL DATA
Branstone Farm Studies Centre,General Materials,27/04/2011,5000138862,859.20,COUNTRYWIDE FARMERS PLC
Fire Control,Consultants Fees,12/04/2011,5000136635,"2,625.00",AEA TECHNOLOGY ENVIRONMENT
Returned serviceman,Grants to Ext Bodies,18/05/2011,5000141797,"1,250.00",2CL COMMUNICATIONS LTD
Ventnor Botanic Gifts/Seed STOCK A/C,Order Settlement,07/05/2011,5000140075,563.88,HISTORY & HERALDRY LTD
Archaeology,Consultants Fees,03/05/2011,5000139492,"1,705.00",REDACTED PERSONAL DATA
Archaeology,Consultants Fees,31/05/2011,5000143642,"1,705.00",REDACTED PERSONAL DATA
School Reorganisation Consultation Costs,Sch ICT Learn Resour,05/04/2011,5000135711,"8,662.00",BRACKNELL FOREST BOROUGH COUNCIL
Training - Adult OP & PD Services,Pay to Other LAs,19/04/2011,5000137779,679.00,BRACKNELL FOREST BOROUGH COUNCIL
Council Tax,Printing Costs,16/05/2011,5105663552,"17,959.90",DSI BILLING SERVICES
Housing Benefit,Printing Costs,16/05/2011,5105663552,"1,097.10",DSI BILLING SERVICES
National Non Domestic Rates,Printing Costs,16/05/2011,5105663552,"1,259.63",DSI BILLING SERVICES
Nursery Education,Pay to Pvte Contract,12/04/2011,1900325400,"3,026.40",REDACTED PERSONAL DATA
Strategic Projects,ICT H/ware & S/ware,14/04/2011,5000137236,"2,204.00",CIVICA SERVICES LTD
Coroner,Professional Service,15/04/2011,5000137479,"5,956.56",HAMPSHIRE POLICE AUTHORITY
Drug Strategy Partnership Grant,Grants to Ext Bodies,21/06/2011,5000146535,"56,690.00",HAMPSHIRE POLICE AUTHORITY
IOW Festival Costs,Pay to Pvte Contract,24/06/2011,5000147192,"4,798.38",HAMPSHIRE POLICE AUTHORITY
WIGHTBUS Trading Account,Vehicle Hire Externa,07/04/2011,5105657029,-719.62,DAWSON RENTALS BUS & COACH LTD
WIGHTBUS Trading Account,Vehicle Hire Externa,12/04/2011,5000136649,"2,087.25",DAWSON RENTALS BUS & COACH LTD
WIGHTBUS Trading Account,Vehicle Hire Externa,12/04/2011,5000136649,"1,859.77",DAWSON RENTALS BUS & COACH LTD
WIGHTBUS Trading Account,Vehicle Hire Externa,12/04/2011,5000136649,"1,323.99",DAWSON RENTALS BUS & COACH LTD
WIGHTBUS Trading Account,Vehicle Hire Externa,12/04/2011,5000136649,"1,323.99",DAWSON RENTALS BUS & COACH LTD
WIGHTBUS Trading Account,Vehicle Hire Externa,12/04/2011,5000136649,"1,323.99",DAWSON RENTALS BUS & COACH LTD
WIGHTBUS Trading Account,Vehicle Hire Externa,12/04/2011,5000136649,"1,259.74",DAWSON RENTALS BUS & COACH LTD
WIGHTBUS Trading Account,Vehicle Hire Externa,12/04/2011,5000136649,"1,259.74",DAWSON RENTALS BUS & COACH LTD
WIGHTBUS Trading Account,Vehicle Hire Externa,03/05/2011,5000139465,611.43,DAWSON RENTALS BUS & COACH LTD
WIGHTBUS Trading Account,Vehicle Maint Costs,04/05/2011,5000139658,537.60,DAWSON RENTALS BUS & COACH LTD
WIGHTBUS Trading Account,Vehicle Hire Externa,04/05/2011,5000139718,"-1,188.50",DAWSON RENTALS BUS & COACH LTD
WIGHTBUS Trading Account,Vehicle Hire Externa,06/05/2011,5000140027,"1,500.00",DAWSON RENTALS BUS & COACH LTD
WIGHTBUS Trading Account,Vehicle Hire Externa,17/05/2011,5000141747,"2,087.25",DAWSON RENTALS BUS & COACH LTD
WIGHTBUS Trading Account,Vehicle Hire Externa,17/05/2011,5000141747,"1,859.77",DAWSON RENTALS BUS & COACH LTD
WIGHTBUS Trading Account,Vehicle Hire Externa,17/05/2011,5000141747,"1,323.99",DAWSON RENTALS BUS & COACH LTD
WIGHTBUS Trading Account,Vehicle Hire Externa,17/05/2011,5000141747,"1,323.99",DAWSON RENTALS BUS & COACH LTD
WIGHTBUS Trading Account,Vehicle Hire Externa,17/05/2011,5000141747,"1,323.99",DAWSON RENTALS BUS & COACH LTD
WIGHTBUS Trading Account,Vehicle Hire Externa,17/05/2011,5000141747,"1,323.99",DAWSON RENTALS BUS & COACH LTD
WIGHTBUS Trading Account,Vehicle Hire Externa,17/05/2011,5000141747,"1,259.74",DAWSON RENTALS BUS & COACH LTD
WIGHTBUS Trading Account,Vehicle Hire Externa,26/05/2011,5105666466,-611.43,DAWSON RENTALS BUS & COACH LTD
WIGHTBUS Trading Account,Vehicle Hire Externa,08/06/2011,5000144715,"2,087.25",DAWSON RENTALS BUS & COACH LTD
WIGHTBUS Trading Account,Vehicle Hire Externa,08/06/2011,5000144715,"1,859.77",DAWSON RENTALS BUS & COACH LTD
WIGHTBUS Trading Account,Vehicle Hire Externa,08/06/2011,5000144715,"1,323.99",DAWSON RENTALS BUS & COACH LTD
WIGHTBUS Trading Account,Vehicle Hire Externa,08/06/2011,5000144715,"1,323.99",DAWSON RENTALS BUS & COACH LTD
WIGHTBUS Trading Account,Vehicle Hire Externa,08/06/2011,5000144715,"1,323.99",DAWSON RENTALS BUS & COACH LTD
WIGHTBUS Trading Account,Vehicle Hire Externa,08/06/2011,5000144715,"1,323.99",DAWSON RENTALS BUS & COACH LTD
WIGHTBUS Trading Account,Vehicle Hire Externa,08/06/2011,5000144715,"1,259.74",DAWSON RENTALS BUS & COACH LTD
WIGHTBUS Trading Account,Vehicle Hire Externa,22/06/2011,5000146973,"1,259.74",DAWSON RENTALS BUS & COACH LTD
WIGHTBUS Trading Account,Vehicle Hire Externa,22/06/2011,5000146972,"-1,259.74",DAWSON RENTALS BUS & COACH LTD
WIGHTBUS Trading Account,Vehicle Hire Externa,28/06/2011,5000147650,"1,259.74",DAWSON RENTALS BUS & COACH LTD
WIGHTBUS Trading Account,Vehicle Hire Externa,28/06/2011,5000147651,"1,259.74",DAWSON RENTALS BUS & COACH LTD
WIGHTBUS Trading Account,Vehicle Hire Externa,28/06/2011,5000147636,"1,259.74",DAWSON RENTALS BUS & COACH LTD
WIGHTBUS Trading Account,Vehicle Hire Externa,28/06/2011,5000147649,"-1,259.74",DAWSON RENTALS BUS & COACH LTD
WIGHTBUS Trading Account,Vehicle Hire Externa,28/06/2011,5000147649,"-1,259.74",DAWSON RENTALS BUS & COACH LTD
WIGHTBUS Trading Account,Vehicle Hire Externa,28/06/2011,5000147635,"-1,259.74",DAWSON RENTALS BUS & COACH LTD
WIGHTBUS Trading Account,Vehicle Hire Externa,29/06/2011,5105672442,"-1,131.74",DAWSON RENTALS BUS & COACH LTD
WIGHTBUS Trading Account,Vehicle Hire Externa,29/06/2011,5105672464,"-1,131.74",DAWSON RENTALS BUS & COACH LTD
WIGHTBUS Trading Account,Vehicle Hire Externa,30/06/2011,5000147871,"1,259.74",DAWSON RENTALS BUS & COACH LTD
WIGHTBUS Trading Account,Vehicle Hire Externa,30/06/2011,5000147870,"-1,259.74",DAWSON RENTALS BUS & COACH LTD
SSEYCCG - Every Child a Talker,Gen Educ Materials,01/06/2011,5000143831,507.00,ROMPA LTD
SSEYCCG - Every Child a Talker,Gen Educ Materials,01/06/2011,5000143831,507.00,ROMPA LTD
SSEYCCG - Every Child a Talker,Gen Educ Materials,01/06/2011,5000143831,507.00,ROMPA LTD
Ferry Operation,Printing Costs,19/05/2011,5000142009,940.00,PREMIER ROLLS LTD
Ferry Operation,Printing Costs,16/06/2011,5000145999,940.00,PREMIER ROLLS LTD
Ferry Operation,Printing Costs,16/06/2011,5000145997,-940.00,PREMIER ROLLS LTD
Diversity & Workforce,Train and Conference,07/04/2011,5000136182,"1,000.00",HOSPITALITY TRAINING PARTNERSHIP IW
Integrated Community Equipment Service,Operational Equipmen,15/06/2011,5000145818,555.53,PATTERSON MEDICAL LTD
Electoral Registration Office,Computer Maintenance,04/04/2011,5000135615,"9,345.20",XPRESS SOFTWARE SOLUTIONS LTD
Parks and Gardens Capital,Cap Contractor Pmts,12/04/2011,5000136575,"2,962.25",MCARTHUR GROUP LTD
Parks and Gardens Capital,Cap Contractor Pmts,12/04/2011,5000136576,"2,787.49",MCARTHUR GROUP LTD
Parks and Gardens Capital,Cap Contractor Pmts,12/04/2011,5000136598,"2,568.00",MCARTHUR GROUP LTD
Parks and Gardens Capital,Cap Contractor Pmts,12/04/2011,5000136577,"1,486.50",MCARTHUR GROUP LTD
Parks and Gardens Capital,Cap Contractor Pmts,12/04/2011,5000136597,569.10,MCARTHUR GROUP LTD
Children Centres Central Funding,Pay to Pvte Contract,11/05/2011,5000140600,"49,476.00",SPURGEON'S CHILD CARE
Children Centres Central Funding,Pay to Pvte Contract,11/05/2011,5000140600,"42,283.00",SPURGEON'S CHILD CARE
Aiming High for Disabled Children,Grants to Ext Bodies,08/04/2011,1900325039,764.78,WEST WIGHT SPORTS CENTRE TRUST LTD
Aiming High for Disabled Children,Grants to Ext Bodies,13/04/2011,1900325450,"1,000.00",WEST WIGHT SPORTS CENTRE TRUST LTD
Leader 2009/13 Grant Claims,Grants to Ext Bodies,13/04/2011,1900326129,"8,861.82",WEST WIGHT SPORTS CENTRE TRUST LTD
Browns,Operational Equipmen,20/06/2011,5000146480,"1,050.00",CATER WIGHT
Provision Of Meals,Catering Equipment,20/06/2011,5000146430,701.55,CATER WIGHT
Energy Efficiency Management,Comp Software Licenc,10/05/2011,5000140407,"3,240.00",LANDMARK INFORMATION GROUP LTD
Business Intelligence,Comp Software Licenc,06/04/2011,5000136035,"6,768.20",EXPERIAN LTD
North Grd Mtc N-Hort,Pay to Pvte Contract,08/04/2011,5000136254,640.62,CONTINENTAL LANDSCAPES LTD
Leisure Management & Admin,Professional Subs,27/04/2011,5000138767,"2,863.00",APSE
Summary Revenue Account,Parish precepts paid,12/04/2011,1900325357,"7,172.00",ARRETON PARISH COUNCIL
Weston Community School Devolved Capital,"Pl, Equip & Furn - C",18/05/2011,1900343475,"1,527.23",TTS GROUP LTD
Fostering by Other Agencies,Pay to Vol and Other,01/04/2011,5000135404,"7,928.40",FOSTER CARE ASSOCIATES LTD
Fostering by Other Agencies,Pay to Vol and Other,01/04/2011,5000135400,"3,964.20",FOSTER CARE ASSOCIATES LTD
Fostering by Other Agencies,Pay to Vol and Other,01/04/2011,5000135401,"3,964.20",FOSTER CARE ASSOCIATES LTD
Fostering by Other Agencies,Pay to Vol and Other,01/04/2011,5000135402,"3,964.20",FOSTER CARE ASSOCIATES LTD
Fostering by Other Agencies,Pay to Vol and Other,01/04/2011,5000135407,"3,964.20",FOSTER CARE ASSOCIATES LTD
Agency Domiciliary Care,Professional Service,07/04/2011,5105657050,-939.61,FOSTER CARE ASSOCIATES LTD
Fostering by Other Agencies,Pay to Vol and Other,07/04/2011,5000136095,"8,192.68",FOSTER CARE ASSOCIATES LTD
Fostering by Other Agencies,Pay to Vol and Other,07/04/2011,5000136097,"4,096.34",FOSTER CARE ASSOCIATES LTD
Fostering by Other Agencies,Pay to Vol and Other,07/04/2011,5000136098,"4,096.34",FOSTER CARE ASSOCIATES LTD
Fostering by Other Agencies,Pay to Vol and Other,07/04/2011,5000136099,"4,096.34",FOSTER CARE ASSOCIATES LTD
Fostering by Other Agencies,Pay to Vol and Other,07/04/2011,5000136096,"4,096.34",FOSTER CARE ASSOCIATES LTD
Fostering by Other Agencies,Pay to Vol and Other,03/05/2011,5000139359,"4,026.90",FOSTER CARE ASSOCIATES LTD
Fostering by Other Agencies,Pay to Vol and Other,03/05/2011,5000139358,"2,895.00",FOSTER CARE ASSOCIATES LTD
Fostering by Other Agencies,Pay to Vol and Other,03/05/2011,5000139360,"2,115.00",FOSTER CARE ASSOCIATES LTD
Fostering by Other Agencies,Pay to Vol and Other,09/05/2011,5000140244,"7,928.40",FOSTER CARE ASSOCIATES LTD
Fostering by Other Agencies,Pay to Vol and Other,09/05/2011,5000140240,"3,964.20",FOSTER CARE ASSOCIATES LTD
Fostering by Other Agencies,Pay to Vol and Other,09/05/2011,5000140241,"3,964.20",FOSTER CARE ASSOCIATES LTD
Fostering by Other Agencies,Pay to Vol and Other,09/05/2011,5000140242,"3,964.20",FOSTER CARE ASSOCIATES LTD
Fostering by Other Agencies,Pay to Vol and Other,12/05/2011,5000141033,-671.15,FOSTER CARE ASSOCIATES LTD
Fostering by Other Agencies,Pay to Vol and Other,03/06/2011,5000144009,"4,161.44",FOSTER CARE ASSOCIATES LTD
Fostering by Other Agencies,Pay to Vol and Other,03/06/2011,5000144003,"4,027.20",FOSTER CARE ASSOCIATES LTD
Fostering by Other Agencies,Pay to Vol and Other,03/06/2011,5000144008,"3,356.00",FOSTER CARE ASSOCIATES LTD
Fostering by Other Agencies,Pay to Vol and Other,03/06/2011,5000144026,"-3,964.20",FOSTER CARE ASSOCIATES LTD
Fostering by Other Agencies,Pay to Vol and Other,14/06/2011,5000145507,"8,192.68",FOSTER CARE ASSOCIATES LTD
Fostering by Other Agencies,Pay to Vol and Other,14/06/2011,5000145484,"4,161.13",FOSTER CARE ASSOCIATES LTD
Fostering by Other Agencies,Pay to Vol and Other,14/06/2011,5000145515,"4,096.34",FOSTER CARE ASSOCIATES LTD
Fostering by Other Agencies,Pay to Vol and Other,14/06/2011,5000145519,"4,096.34",FOSTER CARE ASSOCIATES LTD
Fostering by Other Agencies,Pay to Vol and Other,14/06/2011,5000145481,"4,096.34",FOSTER CARE ASSOCIATES LTD
Development Control,Consultants Fees,04/04/2011,5000135630,800.00,SYMONDS & SAMPSON
Development Control,Consultants Fees,15/04/2011,5000137492,800.00,SYMONDS & SAMPSON
7733 - AE56 HGV Medina House,Vehicle Maint Costs,28/04/2011,5000139167,572.34,ISLAND COACHWORKS
WIGHTBUS Trading Account,Vehicle Maint Costs,28/04/2011,5000139165,858.76,ISLAND COACHWORKS
WIGHTBUS Trading Account,Vehicle Maint Costs,28/04/2011,5000139166,781.08,ISLAND COACHWORKS
WIGHTBUS Trading Account,Vehicle Maint Costs,28/04/2011,5000139165,641.98,ISLAND COACHWORKS
WIGHTBUS Trading Account,Vehicle Maint Costs,28/04/2011,5000139165,579.18,ISLAND COACHWORKS
Westminster House,Vehicle Maint Costs,06/05/2011,5000140029,579.62,ISLAND COACHWORKS
WIGHTBUS Trading Account,Vehicle Maint Costs,16/05/2011,5000141472,756.76,ISLAND COACHWORKS
WIGHTBUS Trading Account,Vehicle Maint Costs,16/05/2011,5000141471,-858.76,ISLAND COACHWORKS
Off-Street Parking Operations,Vehicle Maint Costs,17/05/2011,5000141696,504.40,ISLAND COACHWORKS
WIGHTBUS Trading Account,Vehicle Maint Costs,26/05/2011,5000143092,543.08,ISLAND COACHWORKS
WIGHTBUS Trading Account,Vehicle Maint Costs,16/06/2011,5000146086,541.78,ISLAND COACHWORKS
Youth Mini-bus HN57BYJ (fleet no 6221),Vehicle Maint Costs,16/06/2011,5000146086,"1,778.81",ISLAND COACHWORKS
Youth Mini-bus HN57BYJ (fleet no 6221),Vehicle Maint Costs,16/06/2011,5000146086,544.64,ISLAND COACHWORKS
Integrated Community Equipment Service,Vehicle Maint Costs,30/06/2011,5000147905,"1,151.00",ISLAND COACHWORKS
WW Landscape Partnership,Grants to Ext Bodies,05/04/2011,1900324556,877.50,NATIONAL TRUST
WW Landscape Partnership,Grants to Ext Bodies,19/05/2011,1900343766,"3,724.00",NATIONAL TRUST
ICT Contracts,Computer Maintenance,12/05/2011,5000140797,"2,073.35",JBASE INTERNATIONAL LTD
Ryde Paddling Pool,Pay to Pvte Contract,08/06/2011,5000144681,918.00,SUN SAFE PLAY SYSTEMS LTD
Harnessing Technology Grant,ICT H/ware & S/ware,05/04/2011,5000135812,"157,554.67",CAPITA BUSINESS SERVICES LTD
School Reorganisation Consultation Costs,ICT H/ware & S/ware,18/04/2011,5000137555,"19,290.00",CAPITA BUSINESS SERVICES LTD
Children Centres Central Funding,Computer Maintenance,05/05/2011,5000139822,"9,000.00",CAPITA BUSINESS SERVICES LTD
Children Centres Central Funding,Computer Maintenance,05/05/2011,5000139822,"4,000.00",CAPITA BUSINESS SERVICES LTD
Children Centres Central Funding,Computer Maintenance,05/05/2011,5000139823,"-4,000.00",CAPITA BUSINESS SERVICES LTD
Children Centres Central Funding,Computer Maintenance,05/05/2011,5000139823,"-9,000.00",CAPITA BUSINESS SERVICES LTD
Payroll,Train and Conference,19/05/2011,5000142217,850.00,CAPITA BUSINESS SERVICES LTD
School Reorganisation Consultation Costs,ICT H/ware & S/ware,24/06/2011,5105671993,"-2,000.00",CAPITA BUSINESS SERVICES LTD
EF - Day Care - OP East,Professional Service,06/05/2011,5000139950,510.00,EXTRACTA CLEANING
EF - Day Care - OP East,Professional Service,11/05/2011,5000140593,-510.00,EXTRACTA CLEANING
Adelaide Resource Centre,Fixed Telephones,26/04/2011,5000138675,629.30,BT FINANCE
Chale Primary Devolved Capital,ICT H/ware & S/ware,03/05/2011,5000139408,990.00,DATASWIFT NETWORK SERVICES LIMITED
Wootton Primary Devolved Capital,"Pl, Equip & Furn - C",16/05/2011,1900343280,950.00,DATASWIFT NETWORK SERVICES LIMITED
Arreton Primary Devolved Capital,"Pl, Equip & Furn - C",14/06/2011,1900356593,"1,275.00",DATASWIFT NETWORK SERVICES LIMITED
Wootton Primary Devolved Capital,"Pl, Equip & Furn - C",14/06/2011,1900356594,"3,351.00",DATASWIFT NETWORK SERVICES LIMITED
Fostering,Recruitment Advertis,07/04/2011,5105656963,719.77,CRIMINAL RECORDS BUREAU
Human Resources,Recruitment Advertis,07/04/2011,5105656963,"1,584.68",CRIMINAL RECORDS BUREAU
Licensing Services,Recruitment Advertis,07/04/2011,5105656963,515.39,CRIMINAL RECORDS BUREAU
Human Resources,Recruitment Advertis,16/05/2011,5000141466,"1,548.00",CRIMINAL RECORDS BUREAU
Human Resources,Recruitment Advertis,20/05/2011,5105664792,644.57,CRIMINAL RECORDS BUREAU
Fostering,Recruitment Advertis,03/06/2011,5105667532,719.88,CRIMINAL RECORDS BUREAU
Shared Services Manager,Recruitment Advertis,20/06/2011,5105670161,659.59,CRIMINAL RECORDS BUREAU
Library Management,Music and Video,30/06/2011,1900363608,506.40,W F HOWES LTD
"Medina Village, Cowes",Building & Room Rent,05/05/2011,5000139753,"5,912.50",PETER R HARRISON 1997 B SETTLEMENT
"Medina Village, Cowes",Service Charges,05/05/2011,5000139753,"1,484.87",PETER R HARRISON 1997 B SETTLEMENT
"Medina Village, Cowes",Electricity,22/06/2011,1900357404,"2,434.36",PETER R HARRISON 1997 B SETTLEMENT
"Medina Village, Cowes",Building & Room Rent,23/06/2011,5000146978,"5,912.50",PETER R HARRISON 1997 B SETTLEMENT
"Medina Village, Cowes",Service Charges,23/06/2011,5000146978,"1,484.87",PETER R HARRISON 1997 B SETTLEMENT
Integrated Community Equipment Service,General Materials,09/06/2011,5000144940,525.00,AKW MEDI-CARE LTD
Play Areas Health & Safety work,Pay to Pvte Contract,27/05/2011,5000143261,620.00,EASY-GATE LTD
Litigation Costs,Legal Fees - Other P,19/05/2011,5000142003,600.00,REDACTED PERSONAL DATA
Litigation Costs,Legal Fees - Other P,03/06/2011,5000144121,600.00,REDACTED PERSONAL DATA
Summary Revenue Account,Parish precepts paid,12/04/2011,1900325360,"56,775.00",BRADING TOWN COUNCIL
Band Concerts,Licences,24/05/2011,5105665892,815.27,THE PERFORMING RIGHT SOCIETY
Medina Leisure Centre,Licences,24/05/2011,5105665892,"1,547.23",THE PERFORMING RIGHT SOCIETY
The Heights,Licences,24/05/2011,5105665892,"3,106.37",THE PERFORMING RIGHT SOCIETY
Outside Promotions,Pay to Pvte Contract,31/05/2011,1900350393,"2,357.50",IW SYMPHONY ORCHESTRA
Agency Placements,Pay to Vol and Other,01/04/2011,5000135409,"11,262.90",THE MILLERS'HOMES FOR CHILDREN LTD
Agency Placements,Pay to Vol and Other,01/04/2011,5000135413,"11,262.90",THE MILLERS'HOMES FOR CHILDREN LTD
Agency Placements,Pay to Vol and Other,01/04/2011,5000135410,"11,056.46",THE MILLERS'HOMES FOR CHILDREN LTD
Agency Placements,Pay to Vol and Other,01/04/2011,5000135414,"11,056.46",THE MILLERS'HOMES FOR CHILDREN LTD
Agency Placements,Pay to Vol and Other,01/04/2011,5000135418,-563.10,THE MILLERS'HOMES FOR CHILDREN LTD
Agency Placements,Pay to Vol and Other,01/04/2011,5000135419,-563.10,THE MILLERS'HOMES FOR CHILDREN LTD
Agency Placements,Pay to Vol and Other,20/04/2011,5000138225,"10,699.80",THE MILLERS'HOMES FOR CHILDREN LTD
Agency Placements,Pay to Vol and Other,20/04/2011,5000138227,"10,699.80",THE MILLERS'HOMES FOR CHILDREN LTD
Agency Placements,Pay to Vol and Other,03/06/2011,5000144018,"11,056.46",THE MILLERS'HOMES FOR CHILDREN LTD
Agency Placements,Pay to Vol and Other,03/06/2011,5000144020,"11,056.46",THE MILLERS'HOMES FOR CHILDREN LTD
Agency Placements,Pay to Vol and Other,17/06/2011,5000146248,"-1,147.50",THE MILLERS'HOMES FOR CHILDREN LTD
Agency Placements,Pay to Vol and Other,17/06/2011,5000146249,"-1,305.00",THE MILLERS'HOMES FOR CHILDREN LTD
Homelessness Prevention,Accom Csts Serv Usrs,18/05/2011,1900343691,570.00,DALTON PROPERTY LTD-block
Homelessness,Accom Csts Serv Usrs,09/06/2011,1900356286,"1,650.00",DALTON PROPERTY LTD-block
"Options,Prevention & Register Team",Pay to Pvte Contract,07/04/2011,5000136139,"15,000.00",IW LAW CENTRE LTD
"Options,Prevention & Register Team",Pay to Pvte Contract,07/04/2011,5000136139,"2,500.00",IW LAW CENTRE LTD
Rights of Way Operations,General Materials,03/05/2011,5000139216,"1,499.21",REDACTED PERSONAL DATA
Rights of Way Operations,General Materials,03/05/2011,5000139233,868.58,REDACTED PERSONAL DATA
Rights of Way Operations,General Materials,03/05/2011,5000139222,"-1,499.21",REDACTED PERSONAL DATA
Rights of Way Operations,General Materials,03/05/2011,5000139208,"-1,973.69",REDACTED PERSONAL DATA
Countryside Management,Maint of Op Equip,29/06/2011,5000147753,-784.14,REDACTED PERSONAL DATA
Capital Receipts,Ext Design & Superv,08/06/2011,5000144604,800.00,MAYER BROWN LTD
Capital Receipts,Ext Design & Superv,08/06/2011,5000144602,800.00,MAYER BROWN LTD
Capital Receipts,Ext Design & Superv,09/06/2011,5000144874,800.00,MAYER BROWN LTD
Parks and Gardens Capital,Ext Design & Superv,16/06/2011,5000146029,550.00,ERMC LTD
Parks and Gardens Capital,Ext Design & Superv,16/06/2011,5000146031,550.00,ERMC LTD
Capital Receipts,Ext Design & Superv,22/06/2011,5000146913,600.00,ERMC LTD
Capital Receipts,Ext Design & Superv,22/06/2011,5000146914,600.00,ERMC LTD
Children's Services Strategic Management,Comp Software Licenc,26/04/2011,5000138623,"1,152.56",TECHNOLOGY FORGE
Commercial Contract Unit,Comp Software Licenc,26/04/2011,5000138623,"2,016.97",TECHNOLOGY FORGE
Energy Efficiency Management,Comp Software Licenc,26/04/2011,5000138623,"2,016.97",TECHNOLOGY FORGE
Property Management,Comp Software Licenc,26/04/2011,5000138623,"2,016.97",TECHNOLOGY FORGE
Strategic Assets Team,Comp Software Licenc,26/04/2011,5000138623,"2,016.97",TECHNOLOGY FORGE
Premises Development,Comp Software Licenc,13/05/2011,5000141193,"1,152.56",TECHNOLOGY FORGE
Property services,Professional Service,28/04/2011,5000139061,972.17,PRINCIPAL SURVEYORS LTD
Strategic Assets Team,Professional Service,28/04/2011,5000139065,"3,955.17",PRINCIPAL SURVEYORS LTD
Strategic Assets Team,Professional Service,16/05/2011,5000141476,"4,363.67",PRINCIPAL SURVEYORS LTD
Strategic Assets Team,Professional Service,27/06/2011,5000147366,"2,463.67",PRINCIPAL SURVEYORS LTD
Independent Sector Training,Train and Conference,05/04/2011,5000135863,"10,000.00",MAKING CONNECTIONS (IW) LTD
DoLS/MCA,Train and Conference,24/05/2011,5000142804,850.00,MAKING CONNECTIONS (IW) LTD
Aiming High for Disabled Children,Pay to Pvte Contract,28/04/2011,5000139005,"-4,815.00",PARK RESORTS LIMITED
Aiming High for Disabled Children,Pay to Pvte Contract,04/05/2011,5000139713,"4,275.00",PARK RESORTS LIMITED
Aiming High for Disabled Children,Pay to Pvte Contract,06/05/2011,5105662173,-750.00,PARK RESORTS LIMITED
Payroll,Stationery,20/04/2011,5000138301,"2,253.58",PROLOG PRINT MEDIA
Payroll,Printing Costs,27/06/2011,5000147330,"2,334.96",PROLOG PRINT MEDIA
Ventnor Haven - General,Pay to Pvte Contract,04/05/2011,5000139525,"4,281.17",CHEETAH MARINE LLP
Coastal Capital Schenes,Cap Contractor Pmts,23/05/2011,5000142391,"16,444.00",CHEETAH MARINE LLP
Coastal Capital Schenes,Cap Contractor Pmts,23/05/2011,5000142390,"8,900.00",CHEETAH MARINE LLP
Ventnor Haven - General,Pay to Pvte Contract,27/05/2011,5000143349,"4,398.17",CHEETAH MARINE LLP
Ventnor Haven - General,Pay to Pvte Contract,30/06/2011,5000147879,"4,281.16",CHEETAH MARINE LLP
Dinosaur Isle Museum (Sandown Geology),Marketing Costs,25/05/2011,5000142978,"2,585.00",WIGHTLIFE MAGAZINE-PERFECT TITLES
Dinosaur Isle Museum (Sandown Geology),Marketing Costs,06/06/2011,5000144198,"-2,585.00",WIGHTLIFE MAGAZINE-PERFECT TITLES
Dinosaur Isle Museum (Sandown Geology),Marketing Costs,15/06/2011,5000145842,"2,200.00",WIGHTLIFE MAGAZINE-PERFECT TITLES
Leader 2009/13 Grant Claims,Grants to Ext Bodies,18/04/2011,1900330707,"4,768.11",NIGEL EARLEY SERVICES
Homelessness Prevention,Pay to Pvte Contract,05/05/2011,1900337467,"1,350.00",W J & D A HIGGS
Homelessness Prevention,Pay to Pvte Contract,05/05/2011,1900337468,675.00,W J & D A HIGGS
Medina Leisure Centre,Prop Svs-Planned Mtc,12/04/2011,5000136647,"6,490.00",COMBINED POWER LTD
Primary Sector Home to School Transport,Transport of Clients,05/04/2011,5000135675,645.00,TELTAX
Primary Sector Home to School Transport,Transport of Clients,05/04/2011,5000135671,528.00,TELTAX
Primary Sector Home to School Transport,Transport of Clients,05/04/2011,5000135668,-660.00,TELTAX
Primary Sector Home to School Transport,Transport of Clients,05/04/2011,5000135672,-840.00,TELTAX
Primary Sector Home to School Transport,Transport of Clients,05/04/2011,5000135674,-840.00,TELTAX
Primary Sector Home to School Transport,Transport of Clients,13/04/2011,5000136999,840.00,TELTAX
Primary Sector Home to School Transport,Transport of Clients,02/06/2011,5000143861,570.00,TELTAX
Integrated Community Equipment Service,Maint of Op Equip,28/06/2011,5000147623,744.00,HUNTLEIGH HEALTHCARE LTD
Nursery Education,Pay to Pvte Contract,12/04/2011,1900325399,"1,497.60",REDACTED PERSONAL DATA
WW Landscape Partnership,Professional Service,01/04/2011,5000135437,"3,970.00",FOOTPRINT TRUST
WW Landscape Partnership,Pay to Pvte Contract,01/04/2011,5000135439,"1,125.00",FOOTPRINT TRUST
Leader 2009/13 Grant Claims,Grants to Ext Bodies,19/04/2011,1900330786,"13,091.71",FOOTPRINT TRUST
Leaving Care  Costs,Transport of Clients,28/04/2011,5000139086,746.51,CAR-ES (UK) LTD
Fostering services,Advertising & Public,17/06/2011,5000146222,"1,407.50",ISLE OF WIGHT RADIO LTD
Future year walking festival,Advertising & Public,29/06/2011,5000147789,694.00,ISLE OF WIGHT RADIO LTD
Future year walking festival,Advertising & Public,29/06/2011,5000147787,690.00,ISLE OF WIGHT RADIO LTD
Management of Asbestos,Cap Contractor Pmts,04/05/2011,5000139652,"2,639.10",THYSSENKRUPP ELEVATOR UK LTD
Insurance Liabilities Fund,Insurance Premiums P,24/05/2011,5000142731,"2,800.00",BISCOES SOLICITORS
Ryde Harbour,Pay to Pvte Contract,09/05/2011,5000140180,650.00,PRO-TECH GROUP
Highways PFI Project,Computer Purch & Ren,16/06/2011,5000146009,"7,396.00",ADVANCE LAPTOP SOLUTIONS LTD
Highways PFI Project,Computer Purch & Ren,16/06/2011,5000146009,540.00,ADVANCE LAPTOP SOLUTIONS LTD
Highways PFI Project,Computer Purch & Ren,21/06/2011,5000146677,556.00,ADVANCE LAPTOP SOLUTIONS LTD
DINO ISLE Sandown Museum Stocks,Order Settlement,08/04/2011,5000136239,"1,477.92",JONPAUL GIFTS LTD
Ventnor Botanic Garden,Prop Svs - Bldg mtce,17/05/2011,5000141707,"1,700.00",WHITE YOUNG GREEN ENGINEERING LTD
Ventnor Botanic Garden,Prop Svs - Bldg mtce,22/06/2011,5000146849,"2,730.00",WHITE YOUNG GREEN ENGINEERING LTD
Parking Services,Professional Service,20/06/2011,5000146286,"9,681.22",SPUR INFORMATION SOLUTIONS LTD
Parking Services,Comp Software Licenc,23/06/2011,5000147069,770.00,SPUR INFORMATION SOLUTIONS LTD
Public Lib Central,Comp S/ware & Cons,31/05/2011,5000143407,"2,005.56",INFO TECHNOLOGY SUPPLY LTD
Integrated Community Equipment Service,Operational Equipmen,21/04/2011,5000138389,576.00,ROMA MEDICAL AIDS LTD
Integrated Community Equipment Service,Operational Equipmen,03/05/2011,5000139193,975.00,ROMA MEDICAL AIDS LTD
Integrated Community Equipment Service,Operational Equipmen,24/05/2011,5000142824,960.00,ROMA MEDICAL AIDS LTD
Integrated Community Equipment Service,Operational Equipmen,23/06/2011,5000147061,975.00,ROMA MEDICAL AIDS LTD
SEN Transport,Transport of Clients,01/04/2011,5000135492,690.00,CLARES CABS
SEN Transport,Transport of Clients,01/04/2011,5000135491,-660.00,CLARES CABS
SEN Transport,Transport of Clients,01/06/2011,5000143723,570.00,CLARES CABS
Childcare Sufficiency Programme,Professional Service,23/05/2011,5000142564,"4,175.00",QA RESEARCH LTD
Meals On Wheels,Pay to Vol and Other,20/04/2011,1900330944,"27,137.37",WRVS FOOD SERVICES LTD [SG]
Meals On Wheels,Pay to Vol and Other,20/04/2011,1900330944,"1,088.11",WRVS FOOD SERVICES LTD [SG]
Meals On Wheels,Inc from Fees & Char,20/04/2011,1900330944,"-6,128.60",WRVS FOOD SERVICES LTD [SG]
Meals On Wheels,Inc from Fees & Char,20/04/2011,1900330944,"-15,328.42",WRVS FOOD SERVICES LTD [SG]
Meals On Wheels,Pay to Vol and Other,12/05/2011,1900342931,"27,912.59",WRVS FOOD SERVICES LTD [SG]
Meals On Wheels,Pay to Vol and Other,12/05/2011,1900342931,938.67,WRVS FOOD SERVICES LTD [SG]
Meals On Wheels,Inc from Fees & Char,12/05/2011,1900342931,"-6,426.30",WRVS FOOD SERVICES LTD [SG]
Meals On Wheels,Inc from Fees & Char,12/05/2011,1900342931,"-17,603.69",WRVS FOOD SERVICES LTD [SG]
Meals On Wheels,Pay to Vol and Other,24/05/2011,1900344380,"29,925.00",WRVS FOOD SERVICES LTD [SG]
Meals On Wheels,Pay to Vol and Other,24/05/2011,1900344380,"1,145.00",WRVS FOOD SERVICES LTD [SG]
Meals On Wheels,Inc from Fees & Char,24/05/2011,1900344380,"-5,476.60",WRVS FOOD SERVICES LTD [SG]
Meals On Wheels,Inc from Fees & Char,24/05/2011,1900344380,"-15,274.08",WRVS FOOD SERVICES LTD [SG]
Meals On Wheels,Pay to Vol and Other,26/05/2011,1900350016,"20,566.92",WRVS FOOD SERVICES LTD [SG]
Meals On Wheels,Pay to Vol and Other,26/05/2011,1900350016,"6,642.90",WRVS FOOD SERVICES LTD [SG]
"Options,Prevention & Register Team",Professional Service,14/04/2011,5000137275,"2,115.68",HOUSING PARTNERS LIMITED
"Options,Prevention & Register Team",Computer Maintenance,28/04/2011,5000139088,"2,115.68",HOUSING PARTNERS LIMITED
"Options,Prevention & Register Team",Professional Service,28/04/2011,5000139084,"-2,115.68",HOUSING PARTNERS LIMITED
Homelessness Prevention,Accom Csts Serv Usrs,10/05/2011,1900337869,550.00,HOSE RHODES DICKSON LETTINGS LTD
Homelessness Prevention,Accom Csts Serv Usrs,09/06/2011,1900356291,650.00,HOSE RHODES DICKSON LETTINGS LTD
Operational Support,Stationery,16/05/2011,5000141286,"1,309.00",AUTOMAIL ENVELOPES LTD
Strategic Projects,ICT H/ware & S/ware,08/04/2011,5000136336,"11,838.79",Q ASSOCIATES
Highways Design Team,Computer Maintenance,21/04/2011,5000138338,"1,605.00",BENTLEY SYSTEMS INTERNATIONAL
Integrated Community Equipment Service,Operational Equipmen,24/06/2011,5000147117,"38,958.00",BRITISH RED CROSS SOCIETY
Management of Asbestos,Ext Design & Superv,22/06/2011,5000146803,950.00,GULLY HOWARD TECHNICAL LTD
Public Transport Support,Comp Software Licenc,04/04/2011,5000135629,"5,222.54",TRAPEZE GROUP (UK) LTD
Support Section,Pay to Pvte Contract,05/04/2011,5000135789,"1,300.00",ALLPAY.NET LTD
Adult Services-Mgmt,Printing Costs,25/05/2011,5000142950,650.00,ALLPAY.NET LTD
Customer Accounts SSC Team,Printing Costs,08/06/2011,5000144639,"1,250.00",ALLPAY.NET LTD
Jubilee Stores,Building & Room Rent,13/04/2011,5105657586,"25,260.00",STEVE ROSS FOUNDATION FOR ARTS
Legal Services Section,Publications,10/05/2011,5000140357,682.00,LEXISNEXIS BUTTERWORTHS
Trans. Stocks - St. Light,Order Settlement,12/04/2011,5000136702,"2,900.00",ZODION LTD
A.O.N.B.,Professional Subs,21/04/2011,5000138393,600.00,NATIONAL ASSOCIATION FOR AONBS
Medina Theatre,Licences,20/04/2011,5000138059,"3,165.54",THE PERFORMING RIGHT SOCIETY
Head of Exchequer & Resident Services,Pay to Pvte Contract,04/05/2011,5000139623,580.00,DIBBENS REMOVALS
Aiming High for Disabled Children,Grants to Ext Bodies,20/04/2011,1900330884,"9,498.00",YMCA FAIRTHORNE GROUP
IOW Festival of Walking,Marketing Costs,27/04/2011,5000138889,852.00,ESSENTIAL SIGNS & PRINT
Image Campaign,Advertising & Public,27/06/2011,5000147442,"1,700.00",ESSENTIAL SIGNS & PRINT
Business Support,Consultants Fees,14/06/2011,5000145608,"11,332.00",KENT FIRE & RESCUE SERVICE
Other Highways maintenance,Cap Contractor Pmts,18/05/2011,5000141936,"1,152.48",OPUS INTERNATIONAL CONSULTANTS UK
Safety Schemes,Ext Design & Superv,23/05/2011,5000142578,"2,000.00",OPUS INTERNATIONAL CONSULTANTS UK
Bridges & Structures - Principal Roads,Pay to Pvte Contract,27/06/2011,5000147403,"1,343.88",OPUS INTERNATIONAL CONSULTANTS UK
Coast Protection,Pay to Pvte Contract,19/05/2011,5000142089,"1,163.44",HARRIER PNEUMATICS LIMITED
Ferry Maintenance,Maint of Op Equip,26/04/2011,5000138703,850.00,KINGSWELL HAULAGE
Crematorium,Professional Service,07/04/2011,1900324849,552.00,REDACTED PERSONAL DATA
Integrated Community Equipment Service,Comp Software Licenc,08/06/2011,5000144731,"2,250.00",IDEALOGIC
Integrated Community Equipment Service,Comp Software Licenc,28/06/2011,5000147618,"2,550.00",IDEALOGIC
Agency Placements,Pay to Vol and Other,09/05/2011,5000140231,"14,395.60",FAIRWAYS CARE (UK) LTD
Agency Placements,Pay to Vol and Other,09/05/2011,5000140229,"11,855.20",FAIRWAYS CARE (UK) LTD
Fostering by Other Agencies,Pay to Vol and Other,09/05/2011,5000140235,"3,607.16",FAIRWAYS CARE (UK) LTD
Fostering by Other Agencies,Pay to Vol and Other,09/05/2011,5000140234,"2,970.60",FAIRWAYS CARE (UK) LTD
Agency Placements,Pay to Vol and Other,03/06/2011,5000143994,"11,855.20",FAIRWAYS CARE (UK) LTD
Agency Placements,Pay to Vol and Other,03/06/2011,5000144062,"11,855.20",FAIRWAYS CARE (UK) LTD
Fostering by Other Agencies,Pay to Vol and Other,03/06/2011,5000143997,"2,970.60",FAIRWAYS CARE (UK) LTD
Fostering by Other Agencies,Pay to Vol and Other,03/06/2011,5000144058,"2,970.60",FAIRWAYS CARE (UK) LTD
Agency Placements,Pay to Vol and Other,14/06/2011,5000145523,"11,855.20",FAIRWAYS CARE (UK) LTD
Fostering by Other Agencies,Pay to Vol and Other,14/06/2011,5000145525,"2,970.60",FAIRWAYS CARE (UK) LTD
Gateway and Specialised Diplomas,Grants to Ext Bodies,27/05/2011,5000143360,"2,165.00",IW CHAMBER OF COMMERCE
Integrated Community Equipment Service,Operational Equipmen,24/05/2011,5000142840,540.00,INVACARE LTD
Child Protection Team,Professional Service,18/05/2011,5000141784,"2,145.42",REDACTED PERSONAL DATA
ICT Service Development,Professional Service,17/05/2011,5000141704,"3,400.00",ESRI (UK) LTD
LD - Day Care,Taxis - Contract Hir,06/05/2011,5000139949,774.00,NORTON TAXIS
Children Centres Central Funding,Pay to Pvte Contract,21/04/2011,5000138376,"3,240.00",RHYTHM TIME ISLE OF WIGHT
LAC Team,Professional Service,26/05/2011,5000143097,"-1,169.13",OUTCOMES UK LTD
Castle Haven CP Scheme,Pay to Pvte Contract,15/04/2011,5000137356,"2,141.25",GEOQUIP PROJECT SERVICES
Castle Haven CP Scheme,Pay to Pvte Contract,19/05/2011,5000142187,"1,980.00",GEOQUIP PROJECT SERVICES
Castle Haven CP Scheme,Pay to Pvte Contract,19/05/2011,5000142184,"-2,141.25",GEOQUIP PROJECT SERVICES
Miscellaneous Non-rechargeable,Med Fees & Staff Wel,23/05/2011,5105664971,"10,344.48",POSITIVE PEOPLE COMPANY
Miscellaneous Non-rechargeable,Med Fees & Staff Wel,23/05/2011,5000142458,"10,245.12",POSITIVE PEOPLE COMPANY
Miscellaneous Non-rechargeable,Med Fees & Staff Wel,23/05/2011,5105664972,"-10,344.48",POSITIVE PEOPLE COMPANY
ICT Contracts,Computer Maintenance,13/04/2011,5000137000,"3,352.00",EXEGESIS SDM LTD
SSEYCCG - GRADUATE LEADER FUND,Train and Conference,27/06/2011,5000147398,"-18,690.00",UNIVERSITY OF CHICHESTER
Heating and Loft insulation,Capital Grants,12/04/2011,1900325324,"4,920.00",REDACTED PERSONAL DATA
Housing Renewal Assistance,Capital Grants,12/04/2011,1900325309,"5,040.00",REDACTED PERSONAL DATA
Disabled Facilities Grants,Capital Grants,18/04/2011,1900330708,"4,930.00",REDACTED PERSONAL DATA
Disabled Facilities Grants,Capital Grants,19/04/2011,1900330797,"8,500.00",REDACTED PERSONAL DATA
Disabled Facilities Grants,Capital Grants,03/05/2011,1900337130,"3,545.00",REDACTED PERSONAL DATA
Housing Renewal Assistance,Capital Grants,03/05/2011,1900337205,"4,000.00",REDACTED PERSONAL DATA
Disabled Facilities Grants,Capital Grants,05/05/2011,1900337471,"3,710.00",REDACTED PERSONAL DATA
Housing Renewal Assistance,Capital Grants,06/05/2011,1900337556,960.00,REDACTED PERSONAL DATA
Housing Renewal Assistance,Capital Grants,11/05/2011,1900338511,"5,528.00",REDACTED PERSONAL DATA
Disabled Facilities Grants,Capital Grants,25/05/2011,1900349906,"4,166.00",REDACTED PERSONAL DATA
Housing Renewal Assistance,Capital Grants,27/05/2011,1900350208,"3,160.00",REDACTED PERSONAL DATA
Disabled Facilities Grants,Capital Grants,08/06/2011,1900352021,"3,835.00",REDACTED PERSONAL DATA
Housing Renewal Assistance,Capital Grants,16/06/2011,1900356819,"4,000.00",REDACTED PERSONAL DATA
Heating and Loft insulation,Capital Grants,23/06/2011,1900362782,"4,968.00",REDACTED PERSONAL DATA
Heating and Loft insulation,Capital Grants,24/06/2011,1900362944,"5,000.00",REDACTED PERSONAL DATA
Leaving Care  Costs,Agency staff,09/05/2011,5000140187,"1,440.00",J&L PARTNERSHIP LTD
Leaving Care  Costs,Agency staff,09/05/2011,5000140188,"1,440.00",J&L PARTNERSHIP LTD
Leaving Care  Costs,Agency staff,17/05/2011,5000141621,"1,200.00",J&L PARTNERSHIP LTD
Leaving Care  Costs,Agency staff,26/05/2011,5000143079,720.00,J&L PARTNERSHIP LTD
Leaving Care  Costs,Agency staff,09/06/2011,5000144916,"1,440.00",J&L PARTNERSHIP LTD
Personal & Community Dev Learning,Hire of facilities,13/04/2011,5000136928,"1,260.00",RYDE EAST COMMUNITY ASSOCIATION
Pupils with statements - Non-Maint Schs,Pay to Vol and Other,01/04/2011,5000135399,"41,257.65",CAMBIAN ASPERGER SYNDROM SERVS LTD
Integrated Community Equipment Service,Operational Equipmen,21/04/2011,5000138323,"5,990.00",SIDHIL LTD
Integrated Community Equipment Service,Operational Equipmen,21/04/2011,5000138323,"1,360.00",SIDHIL LTD
Integrated Community Equipment Service,Operational Equipmen,21/04/2011,5000138323,650.00,SIDHIL LTD
Integrated Community Equipment Service,Operational Equipmen,21/04/2011,5000138323,580.00,SIDHIL LTD
Integrated Community Equipment Service,Operational Equipmen,17/05/2011,5000141706,610.00,SIDHIL LTD
Integrated Community Equipment Service,Med Fees & Staff Wel,25/05/2011,5000142952,"5,990.00",SIDHIL LTD
Integrated Community Equipment Service,Operational Equipmen,09/06/2011,5000144938,"5,406.00",SIDHIL LTD
Integrated Community Equipment Service,Operational Equipmen,09/06/2011,5000144938,"1,680.00",SIDHIL LTD
Integrated Community Equipment Service,Operational Equipmen,30/06/2011,5000147985,"5,990.00",SIDHIL LTD
Integrated Community Equipment Service,Operational Equipmen,30/06/2011,5000147985,680.00,SIDHIL LTD
Provision Of Milk,Sch Catering Contrac,09/05/2011,5000140155,"1,116.70",COOL MILK AT SCHOOL LTD
Provision Of Milk,Sch Catering Contrac,03/06/2011,5000143977,"1,867.58",COOL MILK AT SCHOOL LTD
Fostering,Train and Conference,27/04/2011,5000138987,557.70,BAAF REGISTERED CHARITY
Adoption Costs,Professional Subs,15/06/2011,5000145891,"1,988.01",BAAF REGISTERED CHARITY
Agency Placements,Pay to Vol and Other,03/06/2011,5000144098,"29,449.43",CAMBIAN AUTISM SERVICES LTD
Agency Placements,Pay to Vol and Other,03/06/2011,5000144100,"29,449.43",CAMBIAN AUTISM SERVICES LTD
Pupils with statements - Non-Maint Schs,Pay to Vol and Other,03/06/2011,5000144098,"24,094.99",CAMBIAN AUTISM SERVICES LTD
Pupils with statements - Non-Maint Schs,Pay to Vol and Other,03/06/2011,5000144100,"24,094.99",CAMBIAN AUTISM SERVICES LTD
"County Hall,Newport",Prop Svs-Planned Mtc,31/05/2011,5000143610,795.68,GEA DENCO LTD
DMS project,Professional Service,12/04/2011,5000136849,"1,450.00",NEW MIND INTERNET CONSULTANCY LTD
DMS project,Comp Software Licenc,23/05/2011,5000142563,"27,702.00",NEW MIND INTERNET CONSULTANCY LTD
DMS project,Comp Software Licenc,28/06/2011,5000147654,535.00,NEW MIND INTERNET CONSULTANCY LTD
Agency Placements,Pay to Vol and Other,07/04/2011,5000136187,"6,685.71",ISLAND CHOICES
Agency Placements,Pay to Vol and Other,07/04/2011,5000136188,"3,257.14",ISLAND CHOICES
Agency Placements,Pay to Vol and Other,09/05/2011,5000140246,"9,000.00",ISLAND CHOICES
Agency Placements,Pay to Vol and Other,11/05/2011,5000140742,"7,600.00",ISLAND CHOICES
Agency Placements,Pay to Vol and Other,03/06/2011,5000144011,"7,600.00",ISLAND CHOICES
Agency Placements,Pay to Vol and Other,03/06/2011,5000144010,"7,200.00",ISLAND CHOICES
Agency Placements,Pay to Vol and Other,27/06/2011,5000147322,"7,600.00",ISLAND CHOICES
Agency Placements,Pay to Vol and Other,27/06/2011,5000147321,"7,200.00",ISLAND CHOICES
High Sector Home to School Transport,Transport of Clients,05/04/2011,5000135791,-506.00,HAVEN TAXIS & PRIVATE HIRE
SEN Transport,Transport of Clients,05/04/2011,5000135795,652.80,HAVEN TAXIS & PRIVATE HIRE
SEN Transport,Transport of Clients,05/04/2011,5000135794,-510.40,HAVEN TAXIS & PRIVATE HIRE
IOW Festival of Walking,Marketing Costs,27/04/2011,5000138895,519.76,WEATHERWISE
Technical Support,Operational Equipmen,24/06/2011,5105671961,598.17,INITIAL WASHROOM SOLUTIONS
Technical Support,Operational Equipmen,27/06/2011,5105672153,-598.17,INITIAL WASHROOM SOLUTIONS
Provision Of Milk,Sch Catering Contrac,09/05/2011,5000140153,"3,821.74",COOL MILK LTD
Provision Of Milk,Sch Catering Contrac,03/06/2011,5000143957,"4,863.56",COOL MILK LTD
Coroner,Post Mortem Fees,05/04/2011,5000135901,"1,064.80",REDACTED PERSONAL DATA
Coroner,Post Mortem Fees,05/04/2011,5000135901,945.00,REDACTED PERSONAL DATA
Coroner,Post Mortem Fees,05/04/2011,5000135901,553.80,REDACTED PERSONAL DATA
Coroner,Post Mortem Fees,06/05/2011,5000140001,677.60,REDACTED PERSONAL DATA
Coroner,Post Mortem Fees,08/06/2011,5000144601,"1,355.20",REDACTED PERSONAL DATA
Integrated Community Equipment Service,Building & Room Rent,24/06/2011,5105671901,"10,108.75",MJH DEVELOPMENTS LTD[RE]
CC Maintenance,Prop Svs-Planned Mtc,16/05/2011,5000141485,765.00,GARTEC LIMITED
Youth - UK Youth Parliament,Professional Service,27/06/2011,5000147355,590.00,UK YOUTH PARLIAMENT
Public Conveniences,Cap Contractor Pmts,08/06/2011,5000144526,"2,615.00",ENGENIUS LIMITED
Mobile Library,Fixed Telephones,20/04/2011,5000138131,"1,788.00",EXCELERATE TECHNOLOGY LTD
Employment & Support Allowance,Comp Software Licenc,19/05/2011,5000142222,"9,000.00",CIVICA UK LTD
ICT Contracts,Computer Maintenance,27/05/2011,5000143368,"39,955.10",CIVICA UK LTD
Call Centre,Comp Software Licenc,20/06/2011,5000146451,"3,500.00",CIVICA UK LTD
Call Centre,Comp Software Licenc,20/06/2011,5000146451,665.00,CIVICA UK LTD
Integrated Community Equipment Service,General Materials,13/06/2011,5000145274,748.80,HESKINS LTD
Homelessness Prevention,Accom Csts Serv Usrs,12/04/2011,1900325337,525.00,MORE LETTINGS CENTRE
Homelessness Prevention,Accom Csts Serv Usrs,26/04/2011,1900331414,550.00,MORE LETTINGS CENTRE
Homelessness Prevention,Pay to/Aid Prov to C,25/05/2011,1900347132,"1,050.00",MORE LETTINGS CENTRE
Homelessness Prevention,Accom Csts Serv Usrs,09/06/2011,1900356260,525.00,MORE LETTINGS CENTRE
Strategic Tourism staff and admin,Professional Subs,04/04/2011,5000135633,"1,500.00",BRITISH RESORTS & DESTINAT. ASSOC.
Wightcare Control Room,Maint of Op Equip,27/04/2011,5000138990,"7,391.14",TUNSTALL RESPONSE LTD
ICT Refresh Programme,Computer Maintenance,05/04/2011,5000135899,"13,260.00",NORTHGATE INFORMATION SOLUTIONS UK
ICT Refresh Programme,Computer Maintenance,05/04/2011,5000135898,"-13,260.00",NORTHGATE INFORMATION SOLUTIONS UK
ICT Contracts,Computer Maintenance,14/04/2011,5000137216,"4,346.42",NORTHGATE INFORMATION SOLUTIONS UK
ICT Contracts,Computer Maintenance,14/04/2011,5000137215,"3,611.48",NORTHGATE INFORMATION SOLUTIONS UK
Contact Point- ISI Grant,Computer Maintenance,19/04/2011,5000138017,"16,120.26",NORTHGATE INFORMATION SOLUTIONS UK
Contact Point- ISI Grant,Computer Maintenance,19/04/2011,5000138016,"7,522.79",NORTHGATE INFORMATION SOLUTIONS UK
Contact Point- ISI Grant,Computer Maintenance,19/04/2011,5000138014,"3,783.96",NORTHGATE INFORMATION SOLUTIONS UK
ICT Contracts,Computer Maintenance,19/04/2011,5000138010,"51,898.50",NORTHGATE INFORMATION SOLUTIONS UK
ICT Contracts,Computer Maintenance,19/04/2011,5000138009,"3,224.05",NORTHGATE INFORMATION SOLUTIONS UK
Employment & Support Allowance,Comp Software Licenc,20/04/2011,5000138188,950.00,NORTHGATE INFORMATION SOLUTIONS UK
ICT Contracts,Computer Maintenance,20/04/2011,5000138095,"2,859.61",NORTHGATE INFORMATION SOLUTIONS UK
Local Housing Allowance,Comp Software Licenc,20/04/2011,5000138188,"1,600.00",NORTHGATE INFORMATION SOLUTIONS UK
Local Housing Allowance,Comp Software Licenc,20/04/2011,5000138188,"1,320.00",NORTHGATE INFORMATION SOLUTIONS UK
Employment & Support Allowance,Comp Software Licenc,21/04/2011,5000138453,"12,700.00",NORTHGATE INFORMATION SOLUTIONS UK
Council Tax,Comp Software Licenc,09/05/2011,5000140263,"3,000.00",NORTHGATE INFORMATION SOLUTIONS UK
Business Support SSC Team,Comp Software Licenc,21/06/2011,5105671125,"-1,000.00",NORTHGATE INFORMATION SOLUTIONS UK
Fire Control,Consultants Fees,29/06/2011,5000147822,"-2,110.00",NORTHGATE INFORMATION SOLUTIONS UK
Childrens Services Finance Team,Licences,05/05/2011,5000139757,"24,126.61",COPYRIGHT LICENSING AGENCY LTD
Agency Placements,Pay to Vol and Other,01/04/2011,5000135417,"19,296.75",PRIORS COURT FOUNDATION
Agency Placements,Pay to Vol and Other,01/04/2011,5000135416,"2,594.44",PRIORS COURT FOUNDATION
Pupils with statements - Non-Maint Schs,Pay to Vol and Other,01/04/2011,5000135417,"8,669.56",PRIORS COURT FOUNDATION
Pupils with statements - Non-Maint Schs,Pay to Vol and Other,01/04/2011,5000135416,"1,165.62",PRIORS COURT FOUNDATION
Agency Placements,Pay to Vol and Other,20/04/2011,5000138076,"2,594.44",PRIORS COURT FOUNDATION
Pupils with statements - Non-Maint Schs,Pay to Vol and Other,20/04/2011,5000138076,"1,165.62",PRIORS COURT FOUNDATION
Agency Placements,Pay to Vol and Other,13/05/2011,5000141239,"19,296.75",PRIORS COURT FOUNDATION
Pupils with statements - Non-Maint Schs,Pay to Vol and Other,13/05/2011,5000141239,"8,669.56",PRIORS COURT FOUNDATION
Agency Placements,Pay to Vol and Other,17/06/2011,5000146246,"5,188.88",PRIORS COURT FOUNDATION
Pupils with statements - Non-Maint Schs,Pay to Vol and Other,17/06/2011,5000146246,"2,331.24",PRIORS COURT FOUNDATION
DoLS/MCA,Pay to Health Auth,04/04/2011,5000135655,"5,299.25",IW NHS PRIMARY CARE TRUST
Diversity & Workforce,Med Fees & Staff Wel,07/04/2011,5000136135,735.43,IW NHS PRIMARY CARE TRUST
Human Resources,Med Fees & Staff Wel,07/04/2011,5000136136,"1,433.88",IW NHS PRIMARY CARE TRUST
DAT Team - Adult Treatment,Professional Service,08/04/2011,5000136227,"8,000.00",IW NHS PRIMARY CARE TRUST
Medina Adult Training Centre,Pay to Health Auth,08/04/2011,5000136279,"68,210.80",IW NHS PRIMARY CARE TRUST
Medina Adult Training Centre,Pay to Health Auth,08/04/2011,5000136282,"68,210.80",IW NHS PRIMARY CARE TRUST
Recall Club,Pay to Health Auth,08/04/2011,5000136275,"10,000.00",IW NHS PRIMARY CARE TRUST
Human Resources,Med Fees & Staff Wel,20/04/2011,5000138286,"-1,433.88",IW NHS PRIMARY CARE TRUST
Shared Services Manager,Med Fees & Staff Wel,20/04/2011,5000138288,"1,433.88",IW NHS PRIMARY CARE TRUST
Adelaide & Gouldings Fixtures & Fittings,Professional Service,26/04/2011,5000138684,"6,174.70",IW NHS PRIMARY CARE TRUST
Adelaide & Gouldings Fixtures & Fittings,ICT H/ware & S/ware,27/04/2011,5000138822,"6,174.70",IW NHS PRIMARY CARE TRUST
Adelaide & Gouldings Fixtures & Fittings,Professional Service,27/04/2011,5000138818,"-6,174.70",IW NHS PRIMARY CARE TRUST
Coroner,Post Mortem Fees,28/04/2011,5000138997,"6,294.24",IW NHS PRIMARY CARE TRUST
Coroner,Post Mortem Fees,28/04/2011,5000138994,"6,061.12",IW NHS PRIMARY CARE TRUST
Coroner,Post Mortem Fees,28/04/2011,5000138996,"3,963.04",IW NHS PRIMARY CARE TRUST
Coroner,Post Mortem Fees,28/04/2011,5000138994,647.52,IW NHS PRIMARY CARE TRUST
Coroner,Post Mortem Fees,28/04/2011,5000138996,539.60,IW NHS PRIMARY CARE TRUST
Wightcare Mobile Wardens,Train and Conference,03/05/2011,5000139467,600.00,IW NHS PRIMARY CARE TRUST
Medina Adult Training Centre,Pay to Health Auth,16/05/2011,5000141458,"204,630.26",IW NHS PRIMARY CARE TRUST
Cross Solent Travel (cancer patients),Pay to Health Auth,24/05/2011,5000142648,"13,734.68",IW NHS PRIMARY CARE TRUST
DAT Team - Adult Treatment,Pay to Health Auth,25/05/2011,5000142966,"72,565.00",IW NHS PRIMARY CARE TRUST
IDAS (NHS Trust),Pay to Health Auth,25/05/2011,5000142966,"134,361.00",IW NHS PRIMARY CARE TRUST
Play Development,Operational Equipmen,27/05/2011,5000143295,"1,351.00",IW NHS PRIMARY CARE TRUST
"Barrack Block, Sandown",Building & Room Rent,31/05/2011,5105666780,"4,293.25",IW NHS PRIMARY CARE TRUST
"Barrack Block, Sandown",Building & Room Rent,31/05/2011,5105666779,"-4,293.25",IW NHS PRIMARY CARE TRUST
Diversity & Workforce,Med Fees & Staff Wel,31/05/2011,5000143651,816.00,IW NHS PRIMARY CARE TRUST
Invest to Save - Better Autism Services,Pay to Health Auth,31/05/2011,5000143550,"21,000.00",IW NHS PRIMARY CARE TRUST
Shared Services Manager,Med Fees & Staff Wel,31/05/2011,5000143650,"1,192.70",IW NHS PRIMARY CARE TRUST
Adelaide & Gouldings Fixtures & Fittings,ICT H/ware & S/ware,07/06/2011,5105667838,-846.00,IW NHS PRIMARY CARE TRUST
Coroner,Post Mortem Fees,08/06/2011,5000144596,"5,361.76",IW NHS PRIMARY CARE TRUST
Coroner,Post Mortem Fees,08/06/2011,5000144596,"1,138.05",IW NHS PRIMARY CARE TRUST
Coroner,Post Mortem Fees,08/06/2011,5000144596,556.39,IW NHS PRIMARY CARE TRUST
Medina Adult Training Centre,Pay to Health Auth,08/06/2011,5000144582,"-68,210.80",IW NHS PRIMARY CARE TRUST
Medina Adult Training Centre,Pay to Health Auth,08/06/2011,5000144583,"-68,210.80",IW NHS PRIMARY CARE TRUST
Medina Adult Training Centre,Chgs from Ind Provs,15/06/2011,5000145954,"7,781.63",IW NHS PRIMARY CARE TRUST
White Lodge Campus Closure,Pay to Vol and Other,24/06/2011,5000147250,"22,302.50",IW NHS PRIMARY CARE TRUST
Diversity & Workforce,Med Fees & Staff Wel,27/06/2011,5000147396,"1,577.63",IW NHS PRIMARY CARE TRUST
Shared Services Manager,Med Fees & Staff Wel,27/06/2011,5000147397,"1,011.75",IW NHS PRIMARY CARE TRUST
Coroner,Post Mortem Fees,28/06/2011,5000147646,"8,159.20",IW NHS PRIMARY CARE TRUST
High Sector Home to School Transport,Transport of Clients,05/04/2011,5000135691,550.00,A.B.A. TAXIS
High Sector Home to School Transport,Transport of Clients,05/04/2011,5000135704,506.00,A.B.A. TAXIS
High Sector Home to School Transport,Transport of Clients,05/04/2011,5000135692,-535.00,A.B.A. TAXIS
High Sector Home to School Transport,Transport of Clients,05/04/2011,5000135689,-950.00,A.B.A. TAXIS
SEN Transport,Transport of Clients,05/04/2011,5000135700,"1,518.00",A.B.A. TAXIS
SEN Transport,Transport of Clients,05/04/2011,5000135687,690.00,A.B.A. TAXIS
SEN Transport,Transport of Clients,05/04/2011,5000135697,644.00,A.B.A. TAXIS
SEN Transport,Transport of Clients,05/04/2011,5000135686,-780.00,A.B.A. TAXIS
SEN Transport,Transport of Clients,05/04/2011,5000135699,"-1,552.00",A.B.A. TAXIS
Primary Sector Home to School Transport,Transport of Clients,12/04/2011,5105657523,"1,610.00",A.B.A. TAXIS
SEN Transport,Transport of Clients,04/05/2011,5000139561,594.00,A.B.A. TAXIS
High Sector Home to School Transport,Transport of Clients,16/05/2011,5105663575,630.00,A.B.A. TAXIS
SEN Transport,Transport of Clients,03/06/2011,5000144072,"1,254.00",A.B.A. TAXIS
SEN Transport,Transport of Clients,03/06/2011,5000144085,570.00,A.B.A. TAXIS
SEN Transport,Transport of Clients,03/06/2011,5000144084,532.00,A.B.A. TAXIS
High Sector Home to School Transport,Transport of Clients,13/06/2011,5105668915,648.90,A.B.A. TAXIS
Primary Sector Home to School Transport,Transport of Clients,13/06/2011,5105668915,681.10,A.B.A. TAXIS
Crematorium,Professional Service,07/04/2011,1900324866,516.00,REDACTED PERSONAL DATA
Island Games - Opening Ceremony,Pay to Pvte Contract,05/05/2011,5000139770,765.00,FUSION
LD - Day Care,Chgs from Ind Provs,14/04/2011,5000137243,"1,240.50",I W ADVOCACY TRUST
White Lodge Campus Closure,Pay to Vol and Other,19/04/2011,5000137773,"1,000.00",I W ADVOCACY TRUST
LD - Day Care,Chgs from Ind Provs,15/06/2011,5000145955,"1,826.00",I W ADVOCACY TRUST
Trans. Stocks - Diesel frm 1 April 1998,Vehicle Fuel Costs,04/04/2011,5000135582,"9,349.60",PACE PETROLEUM LTD
Technical Support,Vehicle Fuel Costs,11/04/2011,5000136382,"2,120.22",PACE PETROLEUM LTD
Trans. Stocks - Diesel frm 1 April 1998,Order Settlement,26/04/2011,5000138697,"8,567.20",PACE PETROLEUM LTD
Technical Support,Vehicle Fuel Costs,28/04/2011,5000139158,"1,180.00",PACE PETROLEUM LTD
Trans. Stocks - Diesel frm 1 April 1998,Order Settlement,03/05/2011,5000139464,"7,666.10",PACE PETROLEUM LTD
Westminster House,Fuel Oil,04/05/2011,1900337294,"1,896.00",PACE PETROLEUM LTD
Ferry Operation,Vehicle Fuel Costs,10/05/2011,5000140450,"1,656.00",PACE PETROLEUM LTD
Ferry Operation,Vehicle Fuel Costs,13/05/2011,5000141212,"1,623.84",PACE PETROLEUM LTD
Ferry Operation,Vehicle Fuel Costs,26/05/2011,5000143124,"1,540.80",PACE PETROLEUM LTD
Trans. Stocks - Diesel frm 1 April 1998,Vehicle Fuel Costs,26/05/2011,5000143123,"9,104.00",PACE PETROLEUM LTD
Technical Support,Vehicle Fuel Costs,27/05/2011,5000143328,"2,048.40",PACE PETROLEUM LTD
Ferry Operation,Vehicle Fuel Costs,10/06/2011,5000145114,"1,584.00",PACE PETROLEUM LTD
Technical Support,Vehicle Fuel Costs,14/06/2011,5000145460,"2,093.76",PACE PETROLEUM LTD
Trans. Stocks - Diesel frm 1 April 1998,Vehicle Fuel Costs,16/06/2011,5000146084,"9,245.60",PACE PETROLEUM LTD
Ferry Operation,Vehicle Fuel Costs,27/06/2011,5000147416,"1,586.88",PACE PETROLEUM LTD
Trans. Stocks - Diesel frm 1 April 1998,Vehicle Fuel Costs,30/06/2011,5000147912,"9,132.80",PACE PETROLEUM LTD
Identity Management,ICT H/ware & S/ware,17/05/2011,5000141617,"24,803.40",EQUANET
Identity Management,ICT H/ware & S/ware,17/05/2011,5000141617,"15,239.48",EQUANET
Identity Management,ICT H/ware & S/ware,17/05/2011,5000141617,"3,187.38",EQUANET
Identity Management,ICT H/ware & S/ware,17/05/2011,5000141617,"1,380.59",EQUANET
Strategic Projects,ICT H/ware & S/ware,17/05/2011,5000141617,"59,796.08",EQUANET
Identity Management,ICT H/ware & S/ware,19/05/2011,5000142064,"1,105.20",EQUANET
Strategic Projects,ICT H/ware & S/ware,24/05/2011,5000142643,"59,796.08",EQUANET
Strategic Projects,ICT H/ware & S/ware,24/05/2011,5000142640,"-59,796.08",EQUANET
ICT Contracts,Computer Purch & Ren,10/06/2011,5000145180,"1,118.75",EQUANET
Identity Management,ICT H/ware & S/ware,13/06/2011,5105668902,"6,563.52",EQUANET
Strategic Projects,ICT H/ware & S/ware,13/06/2011,5105668902,"6,563.52",EQUANET
ICT Contracts,Computer Maintenance,16/06/2011,5000146007,956.25,EQUANET
Identity Management,ICT H/ware & S/ware,16/06/2011,5000146024,"3,114.36",EQUANET
Library Management,Vehicle Maint Costs,07/04/2011,5000136207,698.80,SOUTHERN TYRES SERVICE(COMM)LTD
Transport Fleet Administration,Maint of Op Equip,07/04/2011,5000136207,"1,634.00",SOUTHERN TYRES SERVICE(COMM)LTD
Transport Fleet Administration,Vehicle Maint Costs,17/05/2011,5000141757,"1,634.00",SOUTHERN TYRES SERVICE(COMM)LTD
WIGHTBUS Trading Account,Vehicle Maint Costs,06/06/2011,5000144295,514.50,SOUTHERN TYRES SERVICE(COMM)LTD
WIGHTBUS Trading Account,Vehicle Maint Costs,08/06/2011,5000144721,686.00,SOUTHERN TYRES SERVICE(COMM)LTD
Transport Fleet Administration,Vehicle Maint Costs,16/06/2011,5000146085,"1,354.00",SOUTHERN TYRES SERVICE(COMM)LTD
Licensing Services,Operational Equipmen,26/05/2011,5000143115,756.80,MOGO (UK)
Licensing Services,Operational Equipmen,15/06/2011,5000145857,547.80,MOGO (UK)
Licensing Services,Operational Equipmen,15/06/2011,5000145853,-756.80,MOGO (UK)
St Helens Primary Devolved Capital,"Pl, Equip & Furn - C",20/04/2011,1900330939,"1,144.72",WSTORE UK LTD
Bembridge Primary Devolved Capital,"Pl, Equip & Furn - C",02/06/2011,1900351031,"2,200.00",WSTORE UK LTD
DoLS/MCA,Pay to Vol and Other,30/06/2011,5000147983,"13,186.00",SOLENT MIND
Telephones,Fixed Telephones,12/05/2011,1900342918,"1,315.00",VERIZON UK LTD
Telephones,Fixed Telephones,12/05/2011,1900342917,"1,235.00",VERIZON UK LTD
Telephones,Fixed Telephones,25/05/2011,1900345225,"1,315.00",VERIZON UK LTD
Telephones,Fixed Telephones,25/05/2011,1900345220,892.10,VERIZON UK LTD
Telephones,Fixed Telephones,30/06/2011,1900363610,"1,315.00",VERIZON UK LTD
Telephones,Fixed Telephones,30/06/2011,1900363611,"1,078.22",VERIZON UK LTD
TIC Agency Income Suspense,Professional Service,12/04/2011,1900325326,"4,931.01",NATIONAL EXPRESS LTD
Fostering,Operational Equipmen,21/04/2011,5000138441,590.00,HANDS FREE COMPUTING LTD
LD - Day/Other Care - Client Contribs,Operational Equipmen,21/04/2011,5000138441,590.00,HANDS FREE COMPUTING LTD
Fostering,Operational Equipmen,27/05/2011,5000143246,-590.00,HANDS FREE COMPUTING LTD
LD - Day/Other Care - Client Contribs,Operational Equipmen,27/05/2011,5000143246,-590.00,HANDS FREE COMPUTING LTD
Graphic Design Team,Professional Service,24/06/2011,5000147203,549.00,PHOTOLIBRARY GROUP LIMITED
SEN Transport,Transport of Clients,06/04/2011,5000136005,"-1,014.00",MINIBUS-PLUS.COM/TOP TAXI
SEN Transport,Transport of Clients,07/04/2011,5000136106,"1,242.00",MINIBUS-PLUS.COM/TOP TAXI
SEN Transport,Transport of Clients,24/06/2011,5000147274,"1,280.00",MINIBUS-PLUS.COM/TOP TAXI
SEN Transport,Transport of Clients,24/06/2011,5000147272,"1,080.00",MINIBUS-PLUS.COM/TOP TAXI
SEN Transport,Transport of Clients,24/06/2011,5000147273,704.00,MINIBUS-PLUS.COM/TOP TAXI
SEN Transport,Transport of Clients,24/06/2011,5000147271,594.00,MINIBUS-PLUS.COM/TOP TAXI
North Grd Mtc N-Hort,General Materials,28/06/2011,5000147562,"3,626.00",BOURNE AMENTIY LTD
The Heights,Pay to Pvte Contract,18/05/2011,5105663967,"1,095.15",MARACIS SOLUTIONS LIMITED
The Heights,Pay to Pvte Contract,23/05/2011,5105664926,551.00,MARACIS SOLUTIONS LIMITED
Leisure Management & Admin,Advertising & Public,08/06/2011,5000144704,"2,595.00",MARACIS SOLUTIONS LIMITED
Local Involvement Networks (LINks),Pay to Pvte Contract,18/05/2011,5000141827,"27,725.00",HELP AND CARE
Sandown T.I.C.,Building & Room Rent,24/06/2011,5105671902,"1,937.50",G.DEAN&CO (SANDOWN) LTD [RE]
Shanklin Lift,Security of Building,19/05/2011,5000142194,"1,069.28",CHUBB ELECTRONIC SECURITY LTD
Human Resources,Agency staff,12/04/2011,5000136775,"6,560.00",CAPITA RESOURCING LTD
Human Resources,Agency staff,12/04/2011,5000136775,800.00,CAPITA RESOURCING LTD
Human Resources,Agency staff,10/05/2011,5000140490,"4,290.00",CAPITA RESOURCING LTD
Human Resources,Agency staff,10/05/2011,5000140491,"1,560.00",CAPITA RESOURCING LTD
Human Resources,Agency staff,10/05/2011,5000140492,550.00,CAPITA RESOURCING LTD
Human Resources,Agency staff,25/05/2011,5000142984,"1,666.00",CAPITA RESOURCING LTD
Human Resources,Agency staff,08/06/2011,5000144613,"4,680.00",CAPITA RESOURCING LTD
Human Resources,Agency staff,08/06/2011,5000144614,975.00,CAPITA RESOURCING LTD
Human Resources,Agency staff,08/06/2011,5000144616,725.00,CAPITA RESOURCING LTD
Human Resources,Agency staff,09/06/2011,5000144796,"3,925.00",CAPITA RESOURCING LTD
Human Resources,Agency staff,14/06/2011,5000145663,"-1,560.00",CAPITA RESOURCING LTD
Human Resources,Agency staff,28/06/2011,5000147566,"1,640.00",CAPITA RESOURCING LTD
Human Resources,Agency staff,28/06/2011,5000147631,"1,640.00",CAPITA RESOURCING LTD
Human Resources,Agency staff,28/06/2011,5000147638,"1,640.00",CAPITA RESOURCING LTD
Human Resources,Agency staff,28/06/2011,5000147604,"1,640.00",CAPITA RESOURCING LTD
Human Resources,Professional Service,28/06/2011,5000147629,750.00,CAPITA RESOURCING LTD
Human Resources,Agency staff,28/06/2011,5000147564,"-1,560.00",CAPITA RESOURCING LTD
Human Resources,Agency staff,28/06/2011,5000147630,"-1,602.67",CAPITA RESOURCING LTD
Human Resources,Agency staff,28/06/2011,5000147640,"-1,618.39",CAPITA RESOURCING LTD
Human Resources,Agency staff,30/06/2011,5400001170,"-6,068.94",CAPITA RESOURCING LTD
Coroner,Post Mortem Fees,13/04/2011,5000136870,677.60,REDACTED PERSONAL DATA
Coroner,Post Mortem Fees,26/05/2011,5000143130,"1,154.10",REDACTED PERSONAL DATA
Events Team,Agency staff,21/06/2011,5000146586,"2,496.00",BKS SECURITY SERVICES
IOW Festival Costs,Pay to Pvte Contract,24/06/2011,5000147189,"4,002.00",BKS SECURITY SERVICES
Medina Leisure Centre,Pay to Pvte Contract,27/06/2011,5000147451,504.00,BKS SECURITY SERVICES
Strategic Projects,ICT H/ware & S/ware,14/04/2011,5000137235,"3,762.00",VIRGIN MEDIA PAYMENTS LTD
Telephones,Fixed Telephones,12/05/2011,1900342919,"13,120.00",VIRGIN MEDIA PAYMENTS LTD
Telephones,Fixed Telephones,19/05/2011,1900343780,"3,582.31",VIRGIN MEDIA PAYMENTS LTD
Telephones,Fixed Telephones,19/05/2011,1900343779,"3,397.26",VIRGIN MEDIA PAYMENTS LTD
Telephones,Fixed Telephones,06/06/2011,1900351280,"3,198.59",VIRGIN MEDIA PAYMENTS LTD
Strategic Projects,ICT H/ware & S/ware,23/06/2011,5000147095,"52,400.00",VIRGIN MEDIA PAYMENTS LTD
ICT Contracts,Computer Maintenance,29/06/2011,5000147725,-652.00,VIRGIN MEDIA PAYMENTS LTD
Fire Control,Professional Service,31/05/2011,5000143556,"4,602.37",COMMUNITIES AND LOCAL GOVERNMENT
ICT Contracts,Computer Maintenance,17/06/2011,5000146273,"4,183.00",HOMETRACK LTD
ICT Contracts,Computer Maintenance,17/06/2011,5000146273,"1,997.00",HOMETRACK LTD
Building Control,Consultants Fees,20/05/2011,5000142281,603.75,MONSON ENGINEERING LTD
Library Management,Music and Video,02/06/2011,1900351053,544.42,LIBRARY MULTIMEDIA SUPPLIES LIMITED
Library Management,Music and Video,02/06/2011,1900351054,533.44,LIBRARY MULTIMEDIA SUPPLIES LIMITED
Branstone Farm Studies Centre,B/in Prof Svs - Curr,21/06/2011,5000146702,813.72,REDACTED PERSONAL DATA
WW Landscape Partnership,Pay to Pvte Contract,28/04/2011,5000139121,"3,500.00",REDACTED PERSONAL DATA
Leisure Access System,Pay to Pvte Contract,10/05/2011,5000140432,"2,512.10",CLARITY RETAIL SYSTEMS LTD
Leisure Access System,Pay to Pvte Contract,02/06/2011,5000143944,"14,260.36",CLARITY RETAIL SYSTEMS LTD
Leisure Access System,Pay to Pvte Contract,02/06/2011,5000143946,-567.24,CLARITY RETAIL SYSTEMS LTD
Leisure Access System,Pay to Pvte Contract,03/06/2011,5000144056,"2,809.84",CLARITY RETAIL SYSTEMS LTD
Compliance & Risk Manager,Agency staff,06/05/2011,5000140046,"9,000.00",HERONSFORD SOLUTIONS LTD [SB]
Compliance & Risk Manager,Agency staff,27/05/2011,5000143316,"11,400.00",HERONSFORD SOLUTIONS LTD [SB]
The Heights,Cons Cleaning Materi,15/04/2011,5000137444,"1,223.64",COMPLETE POOL CONTROLS LTD
The Heights,Cons Cleaning Materi,13/06/2011,5000145300,"1,835.46",COMPLETE POOL CONTROLS LTD
Waterside pool,Cons Cleaning Materi,15/06/2011,5000145847,"1,835.45",COMPLETE POOL CONTROLS LTD
The Heights,Cons Cleaning Materi,22/06/2011,5105671365,-611.82,COMPLETE POOL CONTROLS LTD
Waterside pool,Cons Cleaning Materi,22/06/2011,5105671370,-611.81,COMPLETE POOL CONTROLS LTD
Homelessness,Accomm Costs - B&B,04/04/2011,5000135588,594.00,BERTRAM LODGE
Concessionary Fares- Over 60s,Pay to Pvte Contract,11/04/2011,5000136388,937.96,FUJITSU SERVICES LTD
Common Assessment Framework Project,Consultants Fees,05/04/2011,5000135885,"2,795.00",GOLDEN PEAR LTD
Adelaide & Gouldings Fixtures & Fittings,Cap Contractor Pmts,18/05/2011,5000141776,"2,795.00",GOLDEN PEAR LTD
Adelaide & Gouldings Fixtures & Fittings,Cap Contractor Pmts,01/06/2011,5000143705,"2,795.00",GOLDEN PEAR LTD
Local Land Charges,Consultants Fees,05/04/2011,5000135670,"6,396.97",IDOX SOFTWARE LTD
Local Land Charges,Comp Software Licenc,15/04/2011,5000137511,"4,750.00",IDOX SOFTWARE LTD
Director of Resources,Agency staff,06/05/2011,5000140045,"11,625.00",DAVE BURBAGE CONSULTING LTD[SB]
Director of Resources,Agency staff,27/05/2011,5000143317,"13,175.00",DAVE BURBAGE CONSULTING LTD[SB]
"Options,Prevention & Register Team",Grants to Ext Bodies,22/06/2011,5000146794,"6,000.00",ISLAND WOMENS REFUGE [SB]**6840
LD - Residential,Chgs from Ind Provs,15/06/2011,5000145880,"9,836.25",AUTISM SOLUTIONS LTD
LD - Residential,Chgs from Ind Provs,15/06/2011,5000145881,"7,869.00",AUTISM SOLUTIONS LTD
LD - Residential,Chgs from Ind Provs,15/06/2011,5000145883,"7,869.00",AUTISM SOLUTIONS LTD
LD - Residential,Chgs from Ind Provs,15/06/2011,5000145884,"7,869.00",AUTISM SOLUTIONS LTD
LD - Residential,Chgs from Ind Provs,15/06/2011,5000145874,"7,869.00",AUTISM SOLUTIONS LTD
LD - Residential,Chgs from Ind Provs,16/06/2011,5000146047,"9,836.25",AUTISM SOLUTIONS LTD
LD - Residential,Chgs from Ind Provs,16/06/2011,5000146042,"9,836.25",AUTISM SOLUTIONS LTD
LD - Residential,Chgs from Ind Provs,16/06/2011,5000146045,"7,869.00",AUTISM SOLUTIONS LTD
LD - Residential,Chgs from Ind Provs,16/06/2011,5000146046,"7,869.00",AUTISM SOLUTIONS LTD
LD - Residential,Chgs from Ind Provs,16/06/2011,5000146040,"7,869.00",AUTISM SOLUTIONS LTD
LD - Residential,Chgs from Ind Provs,16/06/2011,5000146044,"7,869.00",AUTISM SOLUTIONS LTD
LD - Residential,Chgs from Ind Provs,16/06/2011,5000146033,"-7,869.00",AUTISM SOLUTIONS LTD
LD - Residential,Chgs from Ind Provs,16/06/2011,5000146035,"-7,869.00",AUTISM SOLUTIONS LTD
LD - Residential,Chgs from Ind Provs,16/06/2011,5000146036,"-7,869.00",AUTISM SOLUTIONS LTD
LD - Residential,Chgs from Ind Provs,16/06/2011,5000146037,"-7,869.00",AUTISM SOLUTIONS LTD
LD - Residential,Chgs from Ind Provs,16/06/2011,5000146034,"-9,836.25",AUTISM SOLUTIONS LTD
DINO ISLE Sandown Museum Stocks,Order Settlement,19/06/2011,5000146283,"1,426.14",RUSS BERRIE UK LTD
Pupils with statements - Non-Maint Schs,Pay to Vol and Other,10/05/2011,5000140443,"18,621.00",FARNEY CLOSE SCHOOL LTD
Library Management,Purchase of Books,05/05/2011,1900337478,705.00,GAP BOOKS
Outside Promotions,Pay to Pvte Contract,13/04/2011,1900326147,"1,857.50",ISLE OF WIGHT RAILWAY TRADING LTD
Trading Standards,Publications,27/05/2011,5000143378,"2,776.47",TRADING STANDARDS SOUTH EAST LTD
Trading Standards,Publications,27/05/2011,5000143378,786.00,TRADING STANDARDS SOUTH EAST LTD
Secondary Commissioned Activities,Professional Service,01/04/2011,5000135510,"-1,158.00",BRIGHTON AND HOVE CITY COUNCIL
Elections,Printing Costs,05/04/2011,5000135669,"3,021.42",SCI PRINT LTD
Summary Revenue Account,Parish precepts paid,11/04/2011,1900325247,"11,228.00",NORTHWOOD PARISH COUNCIL
Human Resources,Recruitment Advertis,05/04/2011,5000135695,"7,136.30",SOUTHWEST ONE LTD
Human Resources,Recruitment Advertis,05/04/2011,5000135693,"1,978.35",SOUTHWEST ONE LTD
Human Resources,Recruitment Advertis,07/04/2011,5000136134,"3,084.71",SOUTHWEST ONE LTD
Human Resources,Recruitment Advertis,20/04/2011,5000138297,"-3,084.71",SOUTHWEST ONE LTD
Shared Services Manager,Recruitment Advertis,20/04/2011,5000138298,"3,084.71",SOUTHWEST ONE LTD
Play Development,Operational Equipmen,01/04/2011,5000135489,"2,295.00",SUNTRAP SYSTEMS
Play Development,Operational Equipmen,01/04/2011,5000135489,842.00,SUNTRAP SYSTEMS
Folly Moorings,Pay to Pvte Contract,11/05/2011,5000140559,"1,957.37",FOLLY VENTURES
Folly Moorings,Pay to Pvte Contract,08/06/2011,5000144642,"1,088.32",FOLLY VENTURES
IOW Festival Costs,Pay to Pvte Contract,21/06/2011,5000146571,"2,475.00",FOLLY VENTURES
Ferry Maintenance,Maint of Op Equip,24/05/2011,5000142847,"6,960.00",IRON BROTHERS
Ferry Maintenance,Maint of Op Equip,09/06/2011,5000144986,"6,960.00",IRON BROTHERS
Ferry Maintenance,Maint of Op Equip,09/06/2011,5000144982,"-6,960.00",IRON BROTHERS
Summary Revenue Account,Parish precepts paid,11/04/2011,1900325236,"10,759.00",WHIPPINGHAM PARISH COUNCIL
Parking Management,Professional Service,24/06/2011,1900363055,"9,999.00",TRAFFIC ENFORCEMENT CENTRE
SSEYCCG - Disabled Child Access Ch/care,Train and Conference,01/06/2011,5000143734,600.00,IOW NHS PRIMARY CARE TRUST
SSEYCCG - Disabled Child Access Ch/care,Train and Conference,01/06/2011,5000143750,600.00,IOW NHS PRIMARY CARE TRUST
Fire Capital Projects,Cap Contractor Pmts,20/04/2011,5000138054,630.00,GREEN WOOD BUILDING SRVCS CONSULT'S
CAF (Common Assessment Framework),Pay to Pvte Contract,20/05/2011,5000142277,"1,920.00",REFRAMEWORK LTD
LAC Counselling Contract,Pay to Vol and Other,27/04/2011,5000138953,"18,944.00",ISLE OF WIGHT YOUTH TRUST
Pan Neighbourhood Management,Consultants Fees,07/04/2011,5000136184,"3,181.00",SPECTRUM HOUSING GROUP LTD
Pan Neighbourhood Management,Consultants Fees,07/04/2011,5000136191,"1,500.00",SPECTRUM HOUSING GROUP LTD
Road Safety trailer,Pay to Pvte Contract,31/05/2011,5000143470,600.00,HOCKNULL'S SOLID FUEL MERCHANTS
Sustainable Development Fund,Grants to Ext Bodies,21/04/2011,1900331242,"2,710.25",ISLE OF WIGHT COLLEGE
OA - Residential,Chgs from Ind Provs,03/05/2011,5000139212,"1,945.14",Phoenix Futures
OA - Residential,Chgs from Ind Provs,20/05/2011,5000142332,"1,182.65",Phoenix Futures
OA - Residential,Chgs from Ind Provs,20/05/2011,5000142329,790.00,Phoenix Futures
OA - Residential,Chgs from Ind Provs,09/06/2011,5000144877,"-1,148.79",Phoenix Futures
OA - Residential,Chgs from Ind Provs,14/06/2011,5000145498,"1,148.79",Phoenix Futures
OA - Residential,Chgs from Ind Provs,14/06/2011,5000145546,676.57,Phoenix Futures
OA - Residential,Chgs from Ind Provs,29/06/2011,5000147790,"1,621.65",Phoenix Futures
OA - Residential,Chgs from Ind Provs,29/06/2011,5000147710,"1,617.87",Phoenix Futures
OA - Residential,Chgs from Ind Provs,29/06/2011,5000147788,"-1,617.87",Phoenix Futures
Highways PFI Project,Catering Purchases,14/04/2011,5000137273,619.52,DLA Piper Uk LLP
Highways PFI Project,Professional Service,09/05/2011,5000140164,"6,881.40",DLA Piper Uk LLP
Highways PFI Project,Professional Service,08/06/2011,5000144684,"5,854.60",DLA Piper Uk LLP
One School Pathfinder,Ext Design & Superv,10/05/2011,5000140459,"1,974.00",Gardiner And Theobald Llp
Schools Reorganisation,Ext Design & Superv,10/05/2011,5000140459,"3,214.80",Gardiner And Theobald Llp
Schools Reorganisation,Ext Design & Superv,10/05/2011,5000140459,592.20,Gardiner And Theobald Llp
One School Pathfinder,Ext Design & Superv,13/06/2011,5000145415,634.50,Gardiner And Theobald Llp
Schools Reorganisation,Ext Design & Superv,13/06/2011,5000145415,"1,269.00",Gardiner And Theobald Llp
One School Pathfinder,Ext Design & Superv,22/06/2011,5000146759,719.10,Gardiner And Theobald Llp
Schools Reorganisation,Ext Design & Superv,22/06/2011,5000146759,"3,228.90",Gardiner And Theobald Llp
Childrens Disability Team,Professional Service,17/06/2011,5000146129,"2,991.10",Alison Campbell Ltd
Childrens Disability Team,Professional Service,17/06/2011,5000146130,560.00,Alison Campbell Ltd
Organisational Development ? Leadership,Comp Software Licenc,14/06/2011,5000145429,"1,600.00",Insight People Development Ltd
ICT Refresh Programme,Computer Maintenance,05/04/2011,5000135897,"17,504.22",Logica Uk Limited
ICT Refresh Programme,Computer Maintenance,05/04/2011,5000135896,"-17,504.22",Logica Uk Limited
ICT Refresh Programme,Computer Maintenance,22/06/2011,5105671275,"2,282.00",Logica Uk Limited
ICT Refresh Programme,Computer Maintenance,22/06/2011,5105671277,"-2,282.00",Logica Uk Limited
Summary Revenue Account,Parish precepts paid,11/04/2011,1900325235,"7,778.00",Havenstreet Parish Council
One School Pathfinder,Ext Design & Superv,31/05/2011,5000143618,"1,700.00",Clarke Bond (south West & Wales)ltd
Provision Of Meals,Professional Service,06/06/2011,5000144164,740.00,Cypad Ltd
Gateway and Specialised Diplomas,Grants to Ext Bodies,01/04/2011,5000135537,"8,333.33",Alkemygold Ltd
Outside Promotions,Pay to Pvte Contract,18/04/2011,1900330710,"1,694.35",DW PROMOTIONS
Homelessness Prevention,Accom Csts Serv Usrs,15/04/2011,1900330579,595.00,WATSON BULL & PORTER LETTINGS
Homelessness Prevention,Pay to/Aid Prov to C,26/04/2011,1900331377,"1,740.00",WATSON BULL & PORTER LETTINGS
Homelessness Prevention,Accom Csts Serv Usrs,04/05/2011,1900337217,650.00,WATSON BULL & PORTER LETTINGS
114 Pyle Street,Building & Room Rent,16/06/2011,5000146104,"3,750.00",NB REAL ESTATE
Summary Revenue Account,Parish precepts paid,12/04/2011,1900325358,"117,000.00",BEMBRIDGE PARISH COUNCIL
Agency Placements,Pay to Vol and Other,01/04/2011,5000135411,"11,699.94",Tumblewood Project
Agency Placements,Pay to Vol and Other,01/04/2011,5000135412,"11,699.94",Tumblewood Project
Pupils with statements - Non-Maint Schs,Pay to Vol and Other,01/04/2011,5000135411,"5,014.26",Tumblewood Project
Pupils with statements - Non-Maint Schs,Pay to Vol and Other,01/04/2011,5000135412,"5,014.26",Tumblewood Project
Agency Placements,Pay to Vol and Other,20/04/2011,5000138230,"12,089.93",Tumblewood Project
Pupils with statements - Non-Maint Schs,Pay to Vol and Other,20/04/2011,5000138230,"5,181.41",Tumblewood Project
Agency Placements,Pay to Vol and Other,03/06/2011,5000144031,"11,699.94",Tumblewood Project
Pupils with statements - Non-Maint Schs,Pay to Vol and Other,03/06/2011,5000144031,"5,014.26",Tumblewood Project
Agency Placements,Pay to Vol and Other,14/06/2011,5000145538,"12,089.94",Tumblewood Project
Agency Placements,Pay to Vol and Other,14/06/2011,5000145684,"-3,899.98",Tumblewood Project
Pupils with statements - Non-Maint Schs,Pay to Vol and Other,14/06/2011,5000145538,"5,181.40",Tumblewood Project
Pupils with statements - Non-Maint Schs,Pay to Vol and Other,14/06/2011,5000145684,"-1,671.42",Tumblewood Project
Agency Placements,Pay to Vol and Other,27/06/2011,5000147323,"12,089.93",Tumblewood Project
Pupils with statements - Non-Maint Schs,Pay to Vol and Other,27/06/2011,5000147323,"5,181.41",Tumblewood Project
Agency Placements,Pay to Vol and Other,06/04/2011,5000136069,"1,492.82",The Wessex Autistic Society
Agency Placements,Pay to Vol and Other,06/04/2011,5000136067,"1,492.82",The Wessex Autistic Society
Pupils with statements - Non-Maint Schs,Pay to Vol and Other,06/04/2011,5000136069,"1,221.40",The Wessex Autistic Society
Pupils with statements - Non-Maint Schs,Pay to Vol and Other,06/04/2011,5000136067,"1,221.40",The Wessex Autistic Society
Agency Placements,Pay to Vol and Other,08/04/2011,5000136242,"23,927.40",The Wessex Autistic Society
Pupils with statements - Non-Maint Schs,Pay to Vol and Other,08/04/2011,5000136242,"19,576.98",The Wessex Autistic Society
Agency Placements,Pay to Vol and Other,11/04/2011,5105657372,"10,315.60",The Wessex Autistic Society
Agency Placements,Pay to Vol and Other,11/04/2011,5105657537,"-10,315.60",The Wessex Autistic Society
Agency Placements,Pay to Vol and Other,13/06/2011,5000145406,"57,315.00",The Wessex Autistic Society
Agency Placements,Pay to Vol and Other,13/06/2011,5000145403,"41,029.50",The Wessex Autistic Society
Aiming High for Disabled Children,Grants to Ext Bodies,13/04/2011,1900325448,"1,500.00",NATIONAL AUTISTIC SOCIETY
DINO ISLE Sandown Museum Stocks,Order Settlement,18/05/2011,5000141918,841.70,Blooming Brollies
DINO ISLE Sandown Museum Stocks,Order Settlement,10/06/2011,5000145162,-841.70,Blooming Brollies
Summary Revenue Account,Parish precepts paid,11/04/2011,1900325232,"10,350.00",WROXALL PARISH COUNCIL
Trans. Stocks - St. Light,Order Settlement,26/05/2011,5105666479,"1,183.00",Tofco Ltd
Integrated Community Equipment Service,Operational Equipmen,24/05/2011,5000142792,709.00,JENX LIMITED
Non-Delegated Building Maintenance,Prop Svs-Planned Mtc,04/05/2011,5000139517,"4,233.79",SOUTHERN ELECTRIC
Non-Delegated Building Maintenance,Prop Svs-Planned Mtc,04/05/2011,5000139544,"2,993.44",SOUTHERN ELECTRIC
Public Con - General (was Attendance),Prop Svs-Planned Mtc,10/05/2011,5000140511,"1,250.68",SOUTHERN ELECTRIC
Non-Delegated Building Maintenance,Prop Svs-Planned Mtc,25/05/2011,5000142989,"9,806.74",SOUTHERN ELECTRIC
Sandham Amusements,Pay to Pvte Contract,07/06/2011,5000144464,818.12,SOUTHERN ELECTRIC
SSEYCCG - Every Child a Talker,Gen Educ Materials,08/06/2011,5000144535,675.48,THE CONSORTIUM
Payroll,Admin Fee Income,05/04/2011,1900324543,-815.58,UNISON
Payroll,Admin Fee Income,06/05/2011,1900337562,-761.23,UNISON
Payroll,Admin Fee Income,31/05/2011,1900350398,-751.63,UNISON
Employment & Support Allowance,Comp Software Licenc,03/05/2011,1900337200,"13,650.00",NORTHGATE INFORMATION SOL UK LTD
ICT Contracts,Computer Maintenance,03/05/2011,1900337200,"85,577.90",NORTHGATE INFORMATION SOL UK LTD
Local Housing Allowance,Comp Software Licenc,03/05/2011,1900337200,"2,920.00",NORTHGATE INFORMATION SOL UK LTD
ICT Contracts,Computer Maintenance,16/05/2011,5000141469,"4,050.00",NORTHGATE INFORMATION SOL UK LTD
Trans. Stocks - St. Light,Order Settlement,16/05/2011,5000141337,"16,320.00",ABACUS LIGHTING LTD
Trans. Stocks - St. Light,Order Settlement,17/05/2011,5000141497,"4,372.00",ABACUS LIGHTING LTD
St Light - Mtce Contract,Pay to Pvte Contract,19/05/2011,5105664640,632.81,ABACUS LIGHTING LTD
Trans. Stocks - St. Light,Order Settlement,19/05/2011,5105664640,"6,054.30",ABACUS LIGHTING LTD
Cashiers,Security of Building,27/05/2011,5000143331,504.00,SIGHTGUARD LTD
Business Support SSC Team,Security of Building,29/06/2011,5000147773,504.00,SIGHTGUARD LTD
Car Park cash collection,Minor Works,29/06/2011,5000147717,-695.00,SIGHTGUARD LTD
The Heights,Maint of Op Equip,23/05/2011,5000142565,792.20,HELMSMAN
Outside Promotions,Pay to Pvte Contract,13/04/2011,1900325452,550.00,PLATFORM ONE (IOW) LTD
Outside Promotions,Pay to Pvte Contract,24/05/2011,1900344319,"1,170.00",PLATFORM ONE (IOW) LTD
Outside Promotions,Pay to Pvte Contract,07/06/2011,1900351301,754.00,PLATFORM ONE (IOW) LTD
Community Safety,Professional Service,04/04/2011,5000135612,"4,928.00",SPRUE SAFETY PRODUCTS LTD
Elections,Stationery,15/04/2011,5000137503,"1,075.68",Eagle Envelopes
Elections,Stationery,15/04/2011,5000137504,"1,067.04",Eagle Envelopes
Elections,Stationery,15/04/2011,5000137505,855.36,Eagle Envelopes
Nursery Education,Pay to Pvte Contract,12/04/2011,1900325408,"29,704.56",GATTEN & LAKE PRE-SCHOOL
Fostering,Supp Looked After Ch,23/05/2011,5105664965,"10,344.48",PPC Worldwide Ltd
Fostering,Supp Looked After Ch,23/05/2011,5105664968,"10,344.48",PPC Worldwide Ltd
Fostering,Supp Looked After Ch,23/05/2011,5105664969,"-10,344.48",PPC Worldwide Ltd
Fostering,Supp Looked After Ch,23/05/2011,5105664966,"-10,344.48",PPC Worldwide Ltd
St Light - Energy,St Light Energy Cont,12/04/2011,5000136788,"36,800.51",KENT COUNTY COUNCIL
Newport Library,Gas,13/04/2011,1900326165,793.90,KENT COUNTY COUNCIL
Operations & Fire Resilience,Gas,26/04/2011,1700041708,-704.72,KENT COUNTY COUNCIL
Operations & Fire Resilience,Gas,12/05/2011,1900342680,890.36,KENT COUNTY COUNCIL
St Light - Energy,St Light Energy Cont,17/05/2011,5000141581,"37,987.61",KENT COUNTY COUNCIL
IWHC Community Home - Beaulieu,Gas,24/05/2011,1900344390,641.39,KENT COUNTY COUNCIL
"County Hall,Newport",Gas,25/05/2011,1900344427,"3,139.87",KENT COUNTY COUNCIL
Crematorium,Gas,25/05/2011,1900345203,"3,308.91",KENT COUNTY COUNCIL
Crematorium,Gas,25/05/2011,1900347734,"2,004.36",KENT COUNTY COUNCIL
Gouldings Resource Centre,Gas,25/05/2011,1900345148,"3,368.73",KENT COUNTY COUNCIL
Gouldings Resource Centre,Gas,25/05/2011,1900345193,855.06,KENT COUNTY COUNCIL
Operations & Fire Resilience,Gas,25/05/2011,1900344433,"1,377.10",KENT COUNTY COUNCIL
Operations & Fire Resilience,Gas,25/05/2011,1900345174,565.75,KENT COUNTY COUNCIL
Rew Valley Sports Centre Mgmt,Gas,25/05/2011,1900345150,522.57,KENT COUNTY COUNCIL
St.Nicholas House,Gas,25/05/2011,1900344441,910.38,KENT COUNTY COUNCIL
The Heights,Gas,25/05/2011,1900345149,"2,473.74",KENT COUNTY COUNCIL
The Heights,Gas,25/05/2011,1900345197,"1,026.51",KENT COUNTY COUNCIL
Ventnor Botanic Garden,Gas,25/05/2011,1900345215,"2,163.86",KENT COUNTY COUNCIL
Ryde Town Hall,Gas,26/05/2011,1900349928,610.85,KENT COUNTY COUNCIL
Ventnor Botanic Garden,Gas,26/05/2011,1900349919,727.58,KENT COUNTY COUNCIL
Youth- Cowes,Gas,26/05/2011,1900349920,591.45,KENT COUNTY COUNCIL
School Specific Contingency,Gas,31/05/2011,1900350371,"2,229.31",KENT COUNTY COUNCIL
St Light - Energy,St Light Energy Cont,15/06/2011,5000145858,"34,426.29",KENT COUNTY COUNCIL
Crematorium,Gas,28/06/2011,1900363360,"2,366.83",KENT COUNTY COUNCIL
Gouldings Resource Centre,Gas,30/06/2011,1900363600,975.64,KENT COUNTY COUNCIL
The Heights,Gas,30/06/2011,1900363601,"1,297.50",KENT COUNTY COUNCIL
Image Campaign,Advertising & Public,06/05/2011,5000139947,"19,000.00",LAWTON COMMUNICATIONS GROUP LTD
Image Campaign,Advertising & Public,06/05/2011,5000139945,"3,250.00",LAWTON COMMUNICATIONS GROUP LTD
Image Campaign,Advertising & Public,17/05/2011,5000141715,"4,545.00",LAWTON COMMUNICATIONS GROUP LTD
Image Campaign,Advertising & Public,17/05/2011,5000141713,950.00,LAWTON COMMUNICATIONS GROUP LTD
Image Campaign,Advertising & Public,24/05/2011,5000142765,"5,053.61",LAWTON COMMUNICATIONS GROUP LTD
Image Campaign,Advertising & Public,24/05/2011,5000142766,"4,000.00",LAWTON COMMUNICATIONS GROUP LTD
Image Campaign,Advertising & Public,24/05/2011,5000142764,"1,600.00",LAWTON COMMUNICATIONS GROUP LTD
Image Campaign,Advertising & Public,24/05/2011,5000142763,925.00,LAWTON COMMUNICATIONS GROUP LTD
Image Campaign,Advertising & Public,26/05/2011,5000143150,"19,000.00",LAWTON COMMUNICATIONS GROUP LTD
Image Campaign,Advertising & Public,26/05/2011,5000143153,"9,814.00",LAWTON COMMUNICATIONS GROUP LTD
Image Campaign,Advertising & Public,26/05/2011,5000143152,"3,250.00",LAWTON COMMUNICATIONS GROUP LTD
Image Campaign,Advertising & Public,26/05/2011,5000143155,"2,593.56",LAWTON COMMUNICATIONS GROUP LTD
Image Campaign,Advertising & Public,13/06/2011,5000145306,"5,500.00",LAWTON COMMUNICATIONS GROUP LTD
Image Campaign,Advertising & Public,14/06/2011,5000145591,"5,847.86",LAWTON COMMUNICATIONS GROUP LTD
Image Campaign,Advertising & Public,23/06/2011,5000147008,"3,250.00",LAWTON COMMUNICATIONS GROUP LTD
SP Homelessness,Pay to Pvte Contract,14/04/2011,5000137147,"6,337.31",SOUTH WIGHT HOUSING ASSOC [SB]
SP Learning Disability,Pay to Pvte Contract,14/04/2011,5000137144,"12,299.57",SOUTH WIGHT HOUSING ASSOC [SB]
SP Mental Health,Pay to Pvte Contract,14/04/2011,5000137151,"18,878.09",SOUTH WIGHT HOUSING ASSOC [SB]
SP Mental Health,Pay to Pvte Contract,14/04/2011,5000137148,"12,135.91",SOUTH WIGHT HOUSING ASSOC [SB]
SP Mental Health,Pay to Pvte Contract,14/04/2011,5000137150,"1,620.00",SOUTH WIGHT HOUSING ASSOC [SB]
SP Mental Health,Pay to Pvte Contract,14/04/2011,5000137150,"1,440.00",SOUTH WIGHT HOUSING ASSOC [SB]
SP Older Persons,Pay to Pvte Contract,14/04/2011,5000137152,"1,735.54",SOUTH WIGHT HOUSING ASSOC [SB]
SP Older Persons,Pay to Pvte Contract,14/04/2011,5000137152,"1,088.25",SOUTH WIGHT HOUSING ASSOC [SB]
SP Older Persons,Pay to Pvte Contract,14/04/2011,5000137152,667.54,SOUTH WIGHT HOUSING ASSOC [SB]
SP Older Persons,Pay to Pvte Contract,14/04/2011,5000137152,568.44,SOUTH WIGHT HOUSING ASSOC [SB]
SP Teenage Pregnancy,Pay to Pvte Contract,14/04/2011,5000137150,"3,815.39",SOUTH WIGHT HOUSING ASSOC [SB]
SP Young People,Pay to Pvte Contract,14/04/2011,5000137145,"10,818.31",SOUTH WIGHT HOUSING ASSOC [SB]
SP Young People,Pay to Pvte Contract,14/04/2011,5000137146,"10,083.16",SOUTH WIGHT HOUSING ASSOC [SB]
SP Homelessness,Pay to Pvte Contract,12/05/2011,5000140909,"6,337.31",SOUTH WIGHT HOUSING ASSOC [SB]
SP Learning Disability,Pay to Pvte Contract,12/05/2011,5000140914,"11,678.57",SOUTH WIGHT HOUSING ASSOC [SB]
SP Mental Health,Pay to Pvte Contract,12/05/2011,5000140920,"18,878.09",SOUTH WIGHT HOUSING ASSOC [SB]
SP Mental Health,Pay to Pvte Contract,12/05/2011,5000140919,"12,135.91",SOUTH WIGHT HOUSING ASSOC [SB]
SP Mental Health,Pay to Pvte Contract,12/05/2011,5000140910,"1,440.00",SOUTH WIGHT HOUSING ASSOC [SB]
SP Mental Health,Pay to Pvte Contract,12/05/2011,5000140910,"1,440.00",SOUTH WIGHT HOUSING ASSOC [SB]
SP Mental Health,Pay to Pvte Contract,12/05/2011,5000140894,760.81,SOUTH WIGHT HOUSING ASSOC [SB]
SP Older Persons,Pay to Pvte Contract,12/05/2011,5000140894,"5,667.87",SOUTH WIGHT HOUSING ASSOC [SB]
SP Older Persons,Pay to Pvte Contract,12/05/2011,5000140903,"3,024.94",SOUTH WIGHT HOUSING ASSOC [SB]
SP Older Persons,Pay to Pvte Contract,12/05/2011,5000140903,"2,296.20",SOUTH WIGHT HOUSING ASSOC [SB]
SP Older Persons,Pay to Pvte Contract,12/05/2011,5000140903,"1,908.35",SOUTH WIGHT HOUSING ASSOC [SB]
SP Older Persons,Pay to Pvte Contract,12/05/2011,5000140903,"1,822.14",SOUTH WIGHT HOUSING ASSOC [SB]
SP Older Persons,Pay to Pvte Contract,12/05/2011,5000140903,"1,481.25",SOUTH WIGHT HOUSING ASSOC [SB]
SP Older Persons,Pay to Pvte Contract,12/05/2011,5000140903,"1,329.60",SOUTH WIGHT HOUSING ASSOC [SB]
SP Older Persons,Pay to Pvte Contract,12/05/2011,5000140903,"1,304.40",SOUTH WIGHT HOUSING ASSOC [SB]
SP Older Persons,Pay to Pvte Contract,12/05/2011,5000140903,822.60,SOUTH WIGHT HOUSING ASSOC [SB]
SP Older Persons,Pay to Pvte Contract,12/05/2011,5000140903,723.60,SOUTH WIGHT HOUSING ASSOC [SB]
SP Older Persons,Pay to Pvte Contract,12/05/2011,5000140903,716.40,SOUTH WIGHT HOUSING ASSOC [SB]
SP Teenage Pregnancy,Pay to Pvte Contract,12/05/2011,5000140910,"3,677.14",SOUTH WIGHT HOUSING ASSOC [SB]
SP Young People,Pay to Pvte Contract,12/05/2011,5000140915,"10,818.31",SOUTH WIGHT HOUSING ASSOC [SB]
SP Young People,Pay to Pvte Contract,12/05/2011,5000140911,"10,083.16",SOUTH WIGHT HOUSING ASSOC [SB]
SP Homelessness,Pay to Pvte Contract,09/06/2011,5000144837,"6,337.31",SOUTH WIGHT HOUSING ASSOC [SB]
SP Learning Disability,Pay to Pvte Contract,09/06/2011,5000144758,"15,967.71",SOUTH WIGHT HOUSING ASSOC [SB]
SP Mental Health,Pay to Pvte Contract,09/06/2011,5000144765,"18,878.09",SOUTH WIGHT HOUSING ASSOC [SB]
SP Mental Health,Pay to Pvte Contract,09/06/2011,5000144767,"12,135.91",SOUTH WIGHT HOUSING ASSOC [SB]
SP Mental Health,Pay to Pvte Contract,09/06/2011,5000144755,"8,991.52",SOUTH WIGHT HOUSING ASSOC [SB]
SP Mental Health,Pay to Pvte Contract,09/06/2011,5000144836,"1,620.00",SOUTH WIGHT HOUSING ASSOC [SB]
SP Mental Health,Pay to Pvte Contract,09/06/2011,5000144836,"1,440.00",SOUTH WIGHT HOUSING ASSOC [SB]
SP Older Persons,Pay to Pvte Contract,09/06/2011,5000144750,"3,499.80",SOUTH WIGHT HOUSING ASSOC [SB]
SP Older Persons,Pay to Pvte Contract,09/06/2011,5000144755,"3,263.17",SOUTH WIGHT HOUSING ASSOC [SB]
SP Older Persons,Pay to Pvte Contract,09/06/2011,5000144750,"2,735.40",SOUTH WIGHT HOUSING ASSOC [SB]
SP Older Persons,Pay to Pvte Contract,09/06/2011,5000144750,"1,873.80",SOUTH WIGHT HOUSING ASSOC [SB]
SP Older Persons,Pay to Pvte Contract,09/06/2011,5000144750,"1,793.40",SOUTH WIGHT HOUSING ASSOC [SB]
SP Older Persons,Pay to Pvte Contract,09/06/2011,5000144750,879.26,SOUTH WIGHT HOUSING ASSOC [SB]
SP Older Persons,Pay to Pvte Contract,09/06/2011,5000144750,851.40,SOUTH WIGHT HOUSING ASSOC [SB]
SP Older Persons,Pay to Pvte Contract,09/06/2011,5000144750,651.45,SOUTH WIGHT HOUSING ASSOC [SB]
SP Older Persons,Pay to Pvte Contract,09/06/2011,5000144750,563.40,SOUTH WIGHT HOUSING ASSOC [SB]
SP Teenage Pregnancy,Pay to Pvte Contract,09/06/2011,5000144836,"3,259.29",SOUTH WIGHT HOUSING ASSOC [SB]
SP Young People,Pay to Pvte Contract,09/06/2011,5000144761,"10,818.31",SOUTH WIGHT HOUSING ASSOC [SB]
SP Young People,Pay to Pvte Contract,09/06/2011,5000144760,"10,083.16",SOUTH WIGHT HOUSING ASSOC [SB]
SP Physical Disability,Pay to Pvte Contract,14/04/2011,5000137161,"2,040.00",LEONARD CHESHIRE SOUTH REGION [SP]
SP Physical Disability,Pay to Pvte Contract,12/05/2011,5000140923,"2,040.00",LEONARD CHESHIRE SOUTH REGION [SP]
SP Physical Disability,Pay to Pvte Contract,09/06/2011,5000144785,"2,040.00",LEONARD CHESHIRE SOUTH REGION [SP]
SP Homelessness,Pay to Pvte Contract,14/04/2011,5000137167,"4,320.00",CROSS KEYS SUPPORT GROUP [SP]
SP Homelessness,Pay to Pvte Contract,12/05/2011,5000140930,"4,320.00",CROSS KEYS SUPPORT GROUP [SP]
SP Homelessness,Pay to Pvte Contract,09/06/2011,5000144772,"3,432.86",CROSS KEYS SUPPORT GROUP [SP]
SP Learning Disability,Pay to Pvte Contract,14/04/2011,5000137139,"1,440.00",THE LANTERN RETREAT [SP]
SP Learning Disability,Pay to Pvte Contract,12/05/2011,5000140901,"1,440.00",THE LANTERN RETREAT [SP]
SP Learning Disability,Pay to Pvte Contract,09/06/2011,5000144802,"1,440.00",THE LANTERN RETREAT [SP]
SP Homelessness,Pay to Pvte Contract,14/04/2011,5000137134,"3,394.47",THE SCOTT COMMUNITY LTD [SP]
SP Homelessness,Pay to Pvte Contract,12/05/2011,5000140897,"3,394.47",THE SCOTT COMMUNITY LTD [SP]
SP Homelessness,Pay to Pvte Contract,09/06/2011,5000144825,"3,394.47",THE SCOTT COMMUNITY LTD [SP]
SP Homelessness,Pay to Pvte Contract,14/04/2011,5000137138,"9,879.42",IW LAW CENTRE LTD [SP]
SP Risk of Offending,Pay to Pvte Contract,14/04/2011,5000137138,"1,200.00",IW LAW CENTRE LTD [SP]
SP Homelessness,Pay to Pvte Contract,12/05/2011,5000140900,"6,774.00",IW LAW CENTRE LTD [SP]
SP Risk of Offending,Pay to Pvte Contract,12/05/2011,5000140900,"1,200.00",IW LAW CENTRE LTD [SP]
SP Homelessness,Pay to Pvte Contract,09/06/2011,5000144809,"5,544.21",IW LAW CENTRE LTD [SP]
SP Risk of Offending,Pay to Pvte Contract,09/06/2011,5000144809,"1,200.00",IW LAW CENTRE LTD [SP]
SP Drugs & Alcohol,Pay to Pvte Contract,14/04/2011,5000137136,"5,995.46",REAL WORLD TRUST [SP]
SP Drugs & Alcohol,Pay to Pvte Contract,14/04/2011,5000137136,"2,282.89",REAL WORLD TRUST [SP]
SP Drugs & Alcohol,Pay to Pvte Contract,14/04/2011,5000137136,900.00,REAL WORLD TRUST [SP]
SP Mental Health,Pay to Pvte Contract,14/04/2011,5000137136,"1,382.14",REAL WORLD TRUST [SP]
SP Risk of Offending,Pay to Pvte Contract,14/04/2011,5000137136,855.00,REAL WORLD TRUST [SP]
SP Drugs & Alcohol,Pay to Pvte Contract,12/05/2011,5000140898,"8,806.36",REAL WORLD TRUST [SP]
SP Drugs & Alcohol,Pay to Pvte Contract,12/05/2011,5000140898,"5,995.46",REAL WORLD TRUST [SP]
SP Drugs & Alcohol,Pay to Pvte Contract,12/05/2011,5000140898,"1,234.29",REAL WORLD TRUST [SP]
SP Mental Health,Pay to Pvte Contract,12/05/2011,5000140898,"1,874.57",REAL WORLD TRUST [SP]
SP Drugs & Alcohol,Pay to Pvte Contract,09/06/2011,5000144752,"5,995.46",REAL WORLD TRUST [SP]
SP Drugs & Alcohol,Pay to Pvte Contract,09/06/2011,5000144752,"3,180.11",REAL WORLD TRUST [SP]
SP Drugs & Alcohol,Pay to Pvte Contract,09/06/2011,5000144752,"1,080.00",REAL WORLD TRUST [SP]
SP Mental Health,Pay to Pvte Contract,09/06/2011,5000144752,716.92,REAL WORLD TRUST [SP]
SP Homelessness,Pay to Pvte Contract,14/04/2011,5000137141,"4,836.00",STONHAM [SP]
SP Homelessness,Pay to Pvte Contract,14/04/2011,5000137141,"1,875.86",STONHAM [SP]
SP Risk of Offending,Pay to Pvte Contract,14/04/2011,5000137141,"1,421.80",STONHAM [SP]
SP Homelessness,Pay to Pvte Contract,12/05/2011,5000140902,"4,836.00",STONHAM [SP]
SP Homelessness,Pay to Pvte Contract,12/05/2011,5000140902,"2,283.00",STONHAM [SP]
SP Risk of Offending,Pay to Pvte Contract,12/05/2011,5000140902,"1,851.42",STONHAM [SP]
SP Homelessness,Pay to Pvte Contract,09/06/2011,5000144797,"2,779.93",STONHAM [SP]
SP Homelessness,Pay to Pvte Contract,09/06/2011,5000144797,"1,314.43",STONHAM [SP]
SP Risk of Offending,Pay to Pvte Contract,09/06/2011,5000144797,"1,058.58",STONHAM [SP]
SP Learning Disability,Pay to Pvte Contract,14/04/2011,5000137162,"2,160.00",ISLECARE LTD [SP]
SP Learning Disability,Pay to Pvte Contract,14/04/2011,5000137162,"1,440.00",ISLECARE LTD [SP]
SP Learning Disability,Pay to Pvte Contract,12/05/2011,5000140925,"2,160.00",ISLECARE LTD [SP]
SP Learning Disability,Pay to Pvte Contract,12/05/2011,5000140925,"1,440.00",ISLECARE LTD [SP]
SP Learning Disability,Pay to Pvte Contract,09/06/2011,5000144783,"2,160.00",ISLECARE LTD [SP]
SP Learning Disability,Pay to Pvte Contract,09/06/2011,5000144783,"1,440.00",ISLECARE LTD [SP]
DINO ISLE Sandown Museum Stocks,Order Settlement,05/05/2011,5000139856,"1,483.56",NATURE PLANET APS
Referral & Assessment,Agency staff,05/05/2011,5000139766,"1,441.15",EDEN BROWN LTD
Child Protection Team,Agency staff,06/05/2011,5000140038,"2,188.86",EDEN BROWN LTD
Referral & Assessment,Agency staff,09/05/2011,5000140095,"1,455.58",EDEN BROWN LTD
Referral & Assessment,Agency staff,09/05/2011,5000140146,"1,441.15",EDEN BROWN LTD
Child Protection Team,Agency staff,12/05/2011,5000140971,903.30,EDEN BROWN LTD
Child Protection Team,Agency staff,12/05/2011,5000140956,677.58,EDEN BROWN LTD
Referral & Assessment,Agency staff,17/05/2011,5000141630,"1,455.58",EDEN BROWN LTD
Referral & Assessment,Agency staff,20/05/2011,5000142305,"1,455.58",EDEN BROWN LTD
Referral & Assessment,Agency staff,24/05/2011,5000142730,"1,455.58",EDEN BROWN LTD
Referral & Assessment,Agency staff,26/05/2011,5000143082,"1,180.20",EDEN BROWN LTD
Child Protection Team,Agency staff,07/06/2011,5000144314,"1,101.63",EDEN BROWN LTD
Child Protection Team,Agency staff,16/06/2011,5000146030,"1,096.90",EDEN BROWN LTD
Referral & Assessment,Agency staff,16/06/2011,5000146070,"1,455.58",EDEN BROWN LTD
Referral & Assessment,Agency staff,17/06/2011,5000146278,"1,441.15",EDEN BROWN LTD
Referral & Assessment,Agency staff,17/06/2011,5000146279,"1,441.15",EDEN BROWN LTD
Referral & Assessment,Agency staff,17/06/2011,5000146280,"1,441.15",EDEN BROWN LTD
Referral & Assessment,Agency staff,17/06/2011,5000146277,"1,165.77",EDEN BROWN LTD
Referral & Assessment,Agency staff,17/06/2011,5000146281,"1,122.48",EDEN BROWN LTD
Referral & Assessment,Agency staff,28/06/2011,5000147609,"1,290.80",EDEN BROWN LTD
Referral & Assessment,Agency staff,28/06/2011,5000147608,"1,281.60",EDEN BROWN LTD
Summary Revenue Account,Parish precepts paid,11/04/2011,1900325239,"16,596.00",BRIGHSTONE PARISH COUNCIL
Summary Revenue Account,Parish precepts paid,11/04/2011,1900325242,"10,500.00",CALBOURNE PARISH COUNCIL
Summary Revenue Account,Parish precepts paid,11/04/2011,1900325244,"8,600.00",CHALE PARISH COUNCIL
Summary Revenue Account,Parish precepts paid,11/04/2011,1900325246,"86,700.00",COWES TOWN COUNCIL
Summary Revenue Account,Parish precepts paid,11/04/2011,1900325249,"82,324.00",EAST COWES TOWN COUNCIL
Playbuilder Capital Schemes,Capital Grants,11/05/2011,1900338512,"55,000.00",EAST COWES TOWN COUNCIL
Playbuilder Capital Schemes,Capital Grants,21/06/2011,1900357293,"55,000.00",EAST COWES TOWN COUNCIL
Summary Revenue Account,Parish precepts paid,11/04/2011,1900325254,"8,638.00",FISHBOURNE PARISH COUNCIL
Summary Revenue Account,Parish precepts paid,11/04/2011,1900325258,"7,530.15",CHILLERTON AND GATCOMBE PC
Summary Revenue Account,Parish precepts paid,11/04/2011,1900325259,"14,500.00",GODSHILL PARISH COUNCIL
Summary Revenue Account,Parish precepts paid,11/04/2011,1900325261,"32,000.00",GURNARD PARISH COUNCIL
Summary Revenue Account,Parish precepts paid,11/04/2011,1900325238,"37,500.00",LAKE PARISH COUNCIL
Summary Revenue Account,Parish precepts paid,11/04/2011,1900325240,"29,910.00",NETTLESTONE & SEAVIEW PARISH CN
Summary Revenue Account,Parish precepts paid,11/04/2011,1900325241,"14,380.00",NEWCHURCH PARISH COUNCIL
Summary Revenue Account,Parish precepts paid,11/04/2011,1900325245,"12,200.00",NITON & WHITWELL PARISH COUNCIL
Summary Revenue Account,Parish precepts paid,11/04/2011,1900325248,"6,130.00",ROOKLEY PARISH COUNCIL
Summary Revenue Account,Parish precepts paid,11/04/2011,1900325250,"319,800.00",RYDE TOWN COUNCIL
Summary Revenue Account,Parish precepts paid,12/04/2011,1900325308,"27,849.00",SHALFLEET PARISH COUNCIL
Summary Revenue Account,Parish precepts paid,11/04/2011,1900325233,"6,000.00",SHORWELL PARISH COUNCIL
Summary Revenue Account,Parish precepts paid,12/04/2011,1900325303,"21,650.00",ST HELENS PARISH COUNCIL
Summary Revenue Account,Parish precepts paid,11/04/2011,1900325231,"57,800.00",WOOTTON PARISH COUNCIL
Leader 2009/13 Grant Claims,Grants to Ext Bodies,14/04/2011,1900330350,"2,019.20",WOOTTON PARISH COUNCIL
Summary Revenue Account,Parish precepts paid,11/04/2011,1900325299,"20,318.00",YARMOUTH TOWN COUNCIL
Collection Fund - Account,Police Precept,14/04/2011,1900330403,"675,176.63",CHAPS-HAMPSHIRE POLICE AUTHORITY
Collection Fund - Account,Police Precept,13/05/2011,1900343114,"675,177.00",CHAPS-HAMPSHIRE POLICE AUTHORITY
Collection Fund - Account,Police Precept,15/06/2011,1900356639,"675,177.00",CHAPS-HAMPSHIRE POLICE AUTHORITY
Summary Revenue Account,Loan Interest,25/05/2011,1900349909,"105,872.60",CHAPS-EUROPAISCHE HYPOTHEKENBANK SA
Summary Revenue Account,Loan Interest,20/05/2011,1900344152,"79,441.64",CHAPS-DEPFA ACS BANK
Highways PFI Project,Professional Service,08/04/2011,5105657112,"-9,593.13",PRICEWATERHOUSE COOPERS LLP
Highways PFI Project,Professional Service,12/04/2011,5105657501,"9,593.13",PRICEWATERHOUSE COOPERS LLP
Audit,Pay to Pvte Contract,06/05/2011,5000140025,"18,293.00",PRICEWATERHOUSE COOPERS LLP
Audit,Pay to Pvte Contract,06/05/2011,5000140048,"18,291.00",PRICEWATERHOUSE COOPERS LLP
Highways PFI Project,Professional Service,16/05/2011,5000141449,"6,283.15",PRICEWATERHOUSE COOPERS LLP
Audit,Pay to Pvte Contract,03/06/2011,5000143984,"2,640.00",PRICEWATERHOUSE COOPERS LLP
Highways PFI Project,Professional Service,07/06/2011,5000144465,"40,977.09",PRICEWATERHOUSE COOPERS LLP
CCTV - Control Room,Operational Equipmen,21/06/2011,5000146687,"7,000.00",STRYKER COMMUNICATIONS LTD
CCTV - Control Room,Train and Conference,28/06/2011,5000147527,540.00,STRYKER COMMUNICATIONS LTD
Ferry Maintenance,Vehicle Maint Costs,09/06/2011,5000144991,503.28,SEASAFE SYSTEMS LTD
Aiming High for Disabled Children,Grants to Ext Bodies,13/04/2011,1900326140,"1,500.00",Goodleaf Tree Climbing
Sandown Youth Centre 40% income susp,Bldg/Room Rental Inc,15/04/2011,1900330554,998.22,SANDOWN YOUTH CENTRE
Litigation Costs,Legal Fees - Other P,20/04/2011,5000138037,"4,795.00",CLARKE WILLMOTT LLP
Litigation Costs,Legal Fees - Other P,10/05/2011,5000140374,"4,795.00",CLARKE WILLMOTT LLP
Litigation Costs,Legal Fees - Other P,10/05/2011,5000140368,"-4,795.00",CLARKE WILLMOTT LLP
Integrated Community Equipment Service,Operational Equipmen,23/05/2011,5000142396,620.00,OT STORES LTD
Business Support,Pay to Other LAs,20/04/2011,5000138254,"1,947.85",OXFORDSHIRE COUNTY COUNCIL
Business Support,Pay to Other LAs,04/05/2011,5000139720,"1,942.25",OXFORDSHIRE COUNTY COUNCIL
Business Support,Pay to Other LAs,04/05/2011,5000139719,"-1,968.39",OXFORDSHIRE COUNTY COUNCIL
Directorate,Professional Subs,23/06/2011,5000147009,"1,200.00",OXFORDSHIRE COUNTY COUNCIL
LD - Residential,Chgs from Ind Provs,23/05/2011,5000142403,"10,956.25",EAST SUSSEX COUNTY COUNCIL
Diversity & Workforce,Train and Conference,10/05/2011,5000140364,570.00,LE MAITRE LTD
Homelessness Prevention,Accom Csts Serv Usrs,30/06/2011,1900363593,"1,150.00",MARVINS LTD
Homelessness,Accomm Costs - Lease,06/06/2011,5000144309,"1,981.00",P A STURROCK & R SCOBLE RENTALS
Fire Capital Projects,ICT H/ware & S/ware,04/05/2011,5000139520,"1,495.00",ISLAND TELECOM GROUP
Community Safety,Advertising & Public,03/05/2011,5000139282,620.00,REGIONAL PUBLICATIONS LTD
Legal Services Section,Train and Conference,17/05/2011,5000141493,"1,490.00",College of Law
DINO ISLE Sandown Museum Stocks,Order Settlement,31/05/2011,5000143548,744.34,Essania
DINO ISLE Sandown Museum Stocks,Order Settlement,03/06/2011,5000143953,550.08,Essania
Court Work & Consultancy Services,Legal Fees - Other P,10/05/2011,5000140524,"1,069.93",Parsons Dowd Psychological Ltd
Court Work & Consultancy Services,Legal Fees - Other P,19/05/2011,5000142002,"1,069.93",Parsons Dowd Psychological Ltd
Carnival Learning Centre Youth Music,Pay to Pvte Contract,05/05/2011,5000139774,"1,500.00",CULTUREMIX ARTS LTD
Telephones,Pay to Pvte Contract,13/04/2011,5000136933,"4,851.00",BTS HOLDINGS PLC
Coastal Management,Professional Subs,08/06/2011,5000144643,"3,488.13",HAVANT BOROUGH COUNCIL
Ryde THI,Capital Grants,13/06/2011,1900356541,"10,952.74",REDACTED PERSONAL DATA
Capital Receipts,Cap Contractor Pmts,01/04/2011,5000135471,766.50,SCOTCHER AND CO
Leisure Management & Admin,Advertising & Public,11/05/2011,5000140715,"4,125.00",SCOTCHER AND CO
Leisure Management & Admin,Advertising & Public,11/05/2011,5000140717,"1,012.50",SCOTCHER AND CO
Capital Receipts,Cap Contractor Pmts,18/05/2011,5000141963,600.00,SCOTCHER AND CO
Agency Placements,Pay to Vol and Other,11/04/2011,5000136434,"15,977.00",ST JOHNS SCHOOL AND COLLEGE
Agency Placements,Pay to Vol and Other,11/04/2011,5000136435,"15,977.00",ST JOHNS SCHOOL AND COLLEGE
Agency Placements,Pay to Vol and Other,11/04/2011,5000136436,"-2,574.00",ST JOHNS SCHOOL AND COLLEGE
Pupils with statements - Non-Maint Schs,Pay to Vol and Other,11/04/2011,5000136434,"14,748.00",ST JOHNS SCHOOL AND COLLEGE
Pupils with statements - Non-Maint Schs,Pay to Vol and Other,11/04/2011,5000136435,"14,748.00",ST JOHNS SCHOOL AND COLLEGE
Pupils with statements - Non-Maint Schs,Pay to Vol and Other,11/04/2011,5000136436,"-2,376.00",ST JOHNS SCHOOL AND COLLEGE
Pupils with statements - Non-Maint Schs,Pay to Vol and Other,18/04/2011,5105658644,"-4,950.00",ST JOHNS SCHOOL AND COLLEGE
Agency Placements,Pay to Vol and Other,03/06/2011,5000144077,"15,977.00",ST JOHNS SCHOOL AND COLLEGE
Pupils with statements - Non-Maint Schs,Pay to Vol and Other,03/06/2011,5000144000,"28,458.00",ST JOHNS SCHOOL AND COLLEGE
Pupils with statements - Non-Maint Schs,Pay to Vol and Other,03/06/2011,5000144077,"14,748.00",ST JOHNS SCHOOL AND COLLEGE
Agency Placements,Pay to Vol and Other,07/06/2011,5000144467,"2,574.00",ST JOHNS SCHOOL AND COLLEGE
Pupils with statements - Non-Maint Schs,Pay to Vol and Other,07/06/2011,5000144467,"2,376.00",ST JOHNS SCHOOL AND COLLEGE
Agency Placements,Pay to Vol and Other,28/04/2011,5000138995,"13,171.07",NEW HORIZON CENTRE LTD
Agency Placements,Pay to Vol and Other,03/06/2011,5000143995,"13,610.11",NEW HORIZON CENTRE LTD
Support for Looked After Children,Supp Looked After Ch,03/06/2011,5000144088,524.00,NEW HORIZON CENTRE LTD
Agency Placements,Pay to Vol and Other,14/06/2011,5000145474,"13,171.07",NEW HORIZON CENTRE LTD
Pension Fund Scheme Administration,Pension Investment F,23/06/2011,1900000803,"1,256.00",JP MORGAN CHASE BANK NA
Lynnbottom Landfill Site,Pay to Pvte Contract,14/04/2011,5000137270,"1,526.04",BIOGAS TECHNOLOGY LTD
Lynnbottom Landfill Site,Pay to Pvte Contract,15/04/2011,5000137466,"1,017.36",BIOGAS TECHNOLOGY LTD
Lynnbottom Landfill Site,Pay to Pvte Contract,15/04/2011,5000137465,"-1,526.04",BIOGAS TECHNOLOGY LTD
Env Servs Client Strategy & Contract Mgt,Train and Conference,03/05/2011,5000139368,"1,092.00",BIOGAS TECHNOLOGY LTD
Other Highways maintenance,Cap Contractor Pmts,04/04/2011,5000135551,"2,135.40",FOUNTAINS ENVIRONMENTAL LTD
Other Highways maintenance,Cap Contractor Pmts,04/04/2011,5000135552,569.44,FOUNTAINS ENVIRONMENTAL LTD
Routine Repairs Other Roads,Pay to Pvte Contract,07/04/2011,5105657004,"14,739.69",FOUNTAINS ENVIRONMENTAL LTD
Public Con - General (was Attendance),Pay to Pvte Contract,20/05/2011,5000142306,"9,742.75",FOUNTAINS ENVIRONMENTAL LTD
Routine Repairs Other Roads,Pay to Pvte Contract,24/05/2011,5105665805,"2,304.35",FOUNTAINS ENVIRONMENTAL LTD
Public Con - General (was Attendance),Pay to Pvte Contract,21/06/2011,5000146527,"9,742.75",FOUNTAINS ENVIRONMENTAL LTD
Routine Repairs Other Roads,Pay to Pvte Contract,21/06/2011,5105671021,"12,616.00",FOUNTAINS ENVIRONMENTAL LTD
Routine Repairs Principle Roads,Pay to Pvte Contract,21/06/2011,5105671021,"2,226.35",FOUNTAINS ENVIRONMENTAL LTD
Routine Repairs Other Roads,Pay to Pvte Contract,29/06/2011,5105672470,"12,616.00",FOUNTAINS ENVIRONMENTAL LTD
Routine Repairs Principle Roads,Pay to Pvte Contract,29/06/2011,5105672470,"2,226.35",FOUNTAINS ENVIRONMENTAL LTD
Leader 2009/13 Grant Claims,Grants to Ext Bodies,03/05/2011,1900337129,"38,517.06",THE GARLIC FARM (IOW) LTD
Integrated Community Equipment Service,Operational Equipmen,24/05/2011,5000142756,529.50,DCS JONCARE LTD
Integrated Community Equipment Service,Operational Equipmen,24/05/2011,5000142757,529.50,DCS JONCARE LTD
LEA Developments,Train and Conference,23/05/2011,5000142448,"2,184.00",DRUGS EDUCATION TRAINING
Directorate,Professional Subs,11/05/2011,5000140653,"1,567.50",ASSOC DIRECTORS OF CHILDRENS
RCC Network Coordinator,B/in Prof Svs - Curr,06/05/2011,5000140015,"4,500.00",RURAL COMMUNITY COUNCIL
Voluntary sector funding,Grants to Ext Bodies,11/05/2011,5000140652,"24,060.00",RURAL COMMUNITY COUNCIL
RCC Network Coordinator,B/in Prof Svs - Curr,29/06/2011,5000147699,"9,000.00",RURAL COMMUNITY COUNCIL
Agency Placements,Pay to Vol and Other,04/05/2011,5000139705,"32,012.83",COXLEASE SCHOOL
Agency Placements,Pay to Vol and Other,04/05/2011,5000139708,"-2,872.17",COXLEASE SCHOOL
Pupils with statements - Non-Maint Schs,Pay to Vol and Other,04/05/2011,5000139705,"32,012.84",COXLEASE SCHOOL
Pupils with statements - Non-Maint Schs,Pay to Vol and Other,04/05/2011,5000139708,"-2,872.17",COXLEASE SCHOOL
Agency Placements,Pay to Vol and Other,20/05/2011,5000142250,"2,872.10",COXLEASE SCHOOL
Agency Placements,Pay to Vol and Other,20/05/2011,5000142252,"-2,872.10",COXLEASE SCHOOL
Strategic Projects,ICT H/ware & S/ware,08/06/2011,5000144587,520.00,INCOM TELECOMMUNICATIONS
Thompson House Tuition Centre (PRU),Taxis - Contract Hir,27/05/2011,5000143241,700.00,ROBERT KNOWLAND
Coroner,Consultants Fees,07/06/2011,5000144420,757.76,REDACTED PERSONAL DATA
Coroner,Consultants Fees,17/06/2011,5000146210,556.44,REDACTED PERSONAL DATA
Housing Renewal Assistance,Capital Grants,02/06/2011,1900350816,"8,537.34",A & G HOOKEY LIMITED
Housing Renewal Assistance,Capital Grants,23/06/2011,1900362784,"1,152.30",A & G HOOKEY LIMITED
Pension Fund Scheme Administration,Pension Actuaries Fe,02/06/2011,1900000767,"9,725.00",HYMANS ROBERTSON LLP
Pension Fund Scheme Administration,Comp S/ware & Cons,20/06/2011,1900000802,519.78,EURAPAN LTD
Pension Fund Scheme Administration,Pension Investment F,27/05/2011,1900000722,"73,797.91",SCHRODER INVESTMENT MANAGEMENT LTD
Pension Fund Scheme Administration,Pension Investment F,27/05/2011,1900000722,"34,245.12",SCHRODER INVESTMENT MANAGEMENT LTD
Pension Fund Scheme Administration,Pension Investment F,06/04/2011,1900000695,"1,284.00",2000CHAPS J P MORGAN CHASE BANK NA
Pension Fund Scheme Administration,Pension Investment F,03/05/2011,1900000741,"1,317.00",2000CHAPS J P MORGAN CHASE BANK NA
Rights of Way Operations,Train and Conference,07/04/2011,5000136192,600.00,CRIDMORE FARM COMPANY LTD
Island Games - Opening Ceremony,General Materials,20/05/2011,5000142343,894.35,KEWELL CONVERTERS LTD
Litigation Costs,Legal Fees - Other P,12/04/2011,5000136821,"3,500.00",REDACTED PERSONAL DATA
Housing Renewal Assistance,Capital Grants,03/05/2011,1900337132,"1,659.00",AMAZING GLAZING (IW) LTD
Integrated Community Equipment Service,Operational Equipmen,24/05/2011,5000142826,"1,110.00",PARK HOUSE HEALTHCARE LTD
Disabled Facilities Grants,Capital Grants,14/04/2011,1900330344,795.00,FIRST CHOICE STAIRLIFTS
Disabled Facilities Grants,Capital Grants,17/06/2011,1900356984,895.00,FIRST CHOICE STAIRLIFTS
Disabled Facilities Grants,Capital Grants,30/06/2011,1900363725,895.00,FIRST CHOICE STAIRLIFTS
Coroner,Comp S/ware & Cons,16/05/2011,5000141281,"1,632.00",IRIS SOFTWARE-MERIDIAN LAW LTD
Leader 2009/13 Grant Claims,Grants to Ext Bodies,11/04/2011,1900325257,"11,091.48",CARISBROOKE CASTLE MUSEUM
Court Work & Consultancy Services,Legal Fees - Other P,20/04/2011,5000138035,"3,000.00",HEYES SAMUEL
Staff Benefits,Pay to Pvte Contract,06/05/2011,5000139927,"1,414.21",SG EQUIPMENT FINANCE LIMITED
Staff Benefits,Pay to Pvte Contract,23/05/2011,5000142605,"12,727.89",SG EQUIPMENT FINANCE LIMITED
Armed Forces Day,Catering Purchases,12/05/2011,5000140986,"1,700.00",APPLEY BEACH CAFE
FRS Modernisation,Interview & recruit,09/05/2011,5000140232,555.87,REDACTED PERSONAL DATA
FRS Modernisation,Interview & recruit,10/05/2011,5000140391,-555.87,REDACTED PERSONAL DATA
FRS Modernisation,Interview & recruit,16/05/2011,5000141290,515.00,REDACTED PERSONAL DATA
Vol Sector Grants - Physical Disability,Pay to Vol and Other,15/04/2011,5000137436,"16,250.00",IW SOCIETY FOR THE BLIND[SP]
Child Care Act s17:Child.Disability Team,Professional Service,16/06/2011,5000146063,"1,584.00",IW SOCIETY FOR THE BLIND[SP]
Osel (Subsidy),Pay to Vol and Other,18/05/2011,5000141824,"18,722.00",OSEL ENTERPRISES LTD [SG]
Summary Revenue Account,Loan Interest,21/04/2011,1900331273,"35,625.00",DD-PUBLIC WORKS LOAN BOARD
Summary Revenue Account,Loan Interest,03/05/2011,1900337790,"125,187.50",DD-PUBLIC WORKS LOAN BOARD
Summary Revenue Account,Loan Interest,16/05/2011,1900343190,"214,125.00",DD-PUBLIC WORKS LOAN BOARD
Summary Revenue Account,Loan Interest,31/05/2011,1900351230,"397,200.00",DD-PUBLIC WORKS LOAN BOARD
Summary Revenue Account,Loan Interest,03/06/2011,1900351231,"120,625.00",DD-PUBLIC WORKS LOAN BOARD
Summary Revenue Account,Loan Interest,20/06/2011,1900357269,"162,500.00",DD-PUBLIC WORKS LOAN BOARD
Summary Revenue Account,Loan Interest,30/06/2011,1900363621,"25,000.00",DD-PUBLIC WORKS LOAN BOARD
Housing Benefit,Postage,01/04/2011,1900324843,996.81,DD-ROYAL MAIL WEST TERRITORIES
Council Tax,Postage,08/04/2011,1900325083,537.77,DD-ROYAL MAIL WEST TERRITORIES
Housing Benefit,Postage,08/04/2011,1900325083,683.42,DD-ROYAL MAIL WEST TERRITORIES
Council Tax,Postage,15/04/2011,1900330692,650.80,DD-ROYAL MAIL WEST TERRITORIES
Council Tax,Postage,26/04/2011,1900337114,"12,374.88",DD-ROYAL MAIL WEST TERRITORIES
Housing Benefit,Postage,26/04/2011,1900337114,590.24,DD-ROYAL MAIL WEST TERRITORIES
National Non Domestic Rates,Postage,26/04/2011,1900337114,"1,417.66",DD-ROYAL MAIL WEST TERRITORIES
Housing Benefit,Postage,03/05/2011,1900337792,"2,407.34",DD-ROYAL MAIL WEST TERRITORIES
Housing Benefit,Postage,06/05/2011,1900337793,888.86,DD-ROYAL MAIL WEST TERRITORIES
Council Tax,Postage,13/05/2011,1900343185,754.22,DD-ROYAL MAIL WEST TERRITORIES
Housing Benefit,Postage,13/05/2011,1900343185,665.60,DD-ROYAL MAIL WEST TERRITORIES
Council Tax,Postage,20/05/2011,1900344156,641.57,DD-ROYAL MAIL WEST TERRITORIES
Housing Benefit,Postage,20/05/2011,1900344156,668.87,DD-ROYAL MAIL WEST TERRITORIES
Creditor Payments SSC,Postage,03/06/2011,1900351232,523.55,DD-ROYAL MAIL WEST TERRITORIES
Housing Benefit,Postage,03/06/2011,1900351232,924.65,DD-ROYAL MAIL WEST TERRITORIES
Council Tax,Postage,10/06/2011,1900356553,"1,349.54",DD-ROYAL MAIL WEST TERRITORIES
Leisure Access System,Banking Fees,19/04/2011,1900330968,564.37,DD-STREAMLINE RENTAL & TRANSACTION
Leisure Access System,Banking Fees,20/06/2011,1900357267,591.15,DD-STREAMLINE RENTAL & TRANSACTION
Corporate Management (Treasurers),Banking Fees,18/04/2011,1900331110,"1,021.56",DD-POST OFFICE LTD
Corporate Management (Treasurers),Banking Fees,16/05/2011,1900343197,"1,021.56",DD-POST OFFICE LTD
Corporate Management (Treasurers),Banking Fees,13/06/2011,1900356554,851.30,DD-POST OFFICE LTD
County Hall Central Mail Room,Postage,06/04/2011,1900324889,"7,500.00",DD-POST OFFICE-FRANKING
County Hall Central Mail Room,Postage,27/04/2011,1900336925,"7,500.00",DD-POST OFFICE-FRANKING
County Hall Central Mail Room,Postage,02/06/2011,1900351233,"7,500.00",DD-POST OFFICE-FRANKING
County Hall Central Mail Room,Postage,24/06/2011,1900363156,"7,500.00",DD-POST OFFICE-FRANKING
"Maurick Farm Barn, Pan, Newport",Building & Room Rent,28/04/2011,1900337120,600.00,DD-TOMLINSONS RENT
"Maurick Farm Barn, Pan, Newport",Building & Room Rent,31/05/2011,1900350353,600.00,DD-TOMLINSONS RENT
"Maurick Farm Barn, Pan, Newport",Building & Room Rent,13/06/2011,1900356560,600.00,DD-TOMLINSONS RENT
"Maurick Farm Barn, Pan, Newport",Building & Room Rent,13/06/2011,1700043413,-600.00,DD-TOMLINSONS RENT
"Maurick Farm Barn, Pan, Newport",Building & Room Rent,28/06/2011,1900363352,600.00,DD-TOMLINSONS RENT
Elections,Postage,20/05/2011,1900344160,"3,187.64",DD-ROYAL MAIL-ELECTIONS BULK POST
Elections,Postage,27/05/2011,1900350342,"4,424.05",DD-ROYAL MAIL-ELECTIONS BULK POST
Corporate Management (Treasurers),Banking Fees,14/04/2011,1900330695,"1,818.15",DD-ALLPAY CHARGES
Corporate Management (Treasurers),Banking Fees,16/05/2011,1900343208,"4,053.03",DD-ALLPAY CHARGES
Corporate Management (Treasurers),Banking Fees,14/06/2011,1900363182,"4,211.61",DD-ALLPAY CHARGES
Corporate Management (Treasurers),Banking Fees,14/06/2011,1900357266,660.00,DD-ALLPAY CHARGES
Litigation Costs,Legal Fees - Other P,13/06/2011,1900356547,510.00,DD-LAND REGISTRY
Corporate Management (Treasurers),Banking Fees,20/06/2011,1900363131,"1,250.00",DD-NAT WEST BANK CHARGES
Summary Revenue Account,Banking Fees,30/06/2011,1900363992,"7,327.10",DD-NAT WEST BANK CHARGES
Parking Services,Professional Service,07/06/2011,5000144488,"3,541.85",MCC-PATROL
Elections,NJC Temp Staff GP,27/05/2011,1900350346,807.87,REDACTED PERSONAL DATA
Homelessness,Accomm Costs - B&B,14/04/2011,5105657853,"5,505.50",DALTON ENTERPRISES [HZ]
Homelessness,Accomm Costs - B&B,04/05/2011,5105661485,"5,505.50",DALTON ENTERPRISES [HZ]
Homelessness,Accomm Costs - B&B,01/06/2011,5105666982,"5,505.50",DALTON ENTERPRISES [HZ]
Homelessness,Accomm Costs - B&B,14/04/2011,5105657854,"5,115.00",REDACTED PERSONAL DATA
Homelessness,Accomm Costs - B&B,14/04/2011,5105657854,511.50,REDACTED PERSONAL DATA
Homelessness,Accomm Costs - B&B,04/05/2011,5105661486,"5,115.00",REDACTED PERSONAL DATA
Homelessness,Accomm Costs - B&B,04/05/2011,5105661486,511.50,REDACTED PERSONAL DATA
Homelessness,Accomm Costs - B&B,01/06/2011,5105666983,"5,115.00",REDACTED PERSONAL DATA
Homelessness,Accomm Costs - B&B,01/06/2011,5105666984,511.50,REDACTED PERSONAL DATA
Homelessness,Accomm Costs - Lease,01/04/2011,5105656277,881.44,HUNNYHILL PROPERTIES LTD [HZ]
Homelessness,Accomm Costs - Lease,01/04/2011,5105656277,695.89,HUNNYHILL PROPERTIES LTD [HZ]
Homelessness,Accomm Costs - Lease,04/05/2011,5105661487,881.44,HUNNYHILL PROPERTIES LTD [HZ]
Homelessness,Accomm Costs - Lease,04/05/2011,5105661487,695.89,HUNNYHILL PROPERTIES LTD [HZ]
Homelessness,Accomm Costs - Lease,01/06/2011,5105666985,881.44,HUNNYHILL PROPERTIES LTD [HZ]
Homelessness,Accomm Costs - Lease,01/06/2011,5105666986,695.89,HUNNYHILL PROPERTIES LTD [HZ]
Homelessness,Accomm Costs - Lease,01/04/2011,5105656278,765.48,DALTON PROPERTY LTD [HZ]
Homelessness,Accomm Costs - Lease,01/04/2011,5105656278,730.69,DALTON PROPERTY LTD [HZ]
Homelessness,Accomm Costs - Lease,01/04/2011,5105656278,672.66,DALTON PROPERTY LTD [HZ]
Homelessness,Accomm Costs - Lease,01/04/2011,5105656278,672.66,DALTON PROPERTY LTD [HZ]
Homelessness,Accomm Costs - Lease,01/04/2011,5105656278,672.66,DALTON PROPERTY LTD [HZ]
Homelessness,Accomm Costs - Lease,01/04/2011,5105656278,626.30,DALTON PROPERTY LTD [HZ]
Homelessness,Accomm Costs - Lease,01/04/2011,5105656278,579.89,DALTON PROPERTY LTD [HZ]
Homelessness,Accomm Costs - Lease,01/04/2011,5105656278,579.89,DALTON PROPERTY LTD [HZ]
Homelessness,Accomm Costs - Lease,04/05/2011,5105661488,765.48,DALTON PROPERTY LTD [HZ]
Homelessness,Accomm Costs - Lease,04/05/2011,5105661488,730.69,DALTON PROPERTY LTD [HZ]
Homelessness,Accomm Costs - Lease,04/05/2011,5105661488,672.66,DALTON PROPERTY LTD [HZ]
Homelessness,Accomm Costs - Lease,04/05/2011,5105661488,672.66,DALTON PROPERTY LTD [HZ]
Homelessness,Accomm Costs - Lease,04/05/2011,5105661488,672.66,DALTON PROPERTY LTD [HZ]
Homelessness,Accomm Costs - Lease,04/05/2011,5105661488,626.30,DALTON PROPERTY LTD [HZ]
Homelessness,Accomm Costs - Lease,04/05/2011,5105661488,579.89,DALTON PROPERTY LTD [HZ]
Homelessness,Accomm Costs - Lease,04/05/2011,5105661488,579.89,DALTON PROPERTY LTD [HZ]
Homelessness,Accomm Costs - Lease,01/06/2011,5105666992,765.48,DALTON PROPERTY LTD [HZ]
Homelessness,Accomm Costs - Lease,01/06/2011,5105666987,730.69,DALTON PROPERTY LTD [HZ]
Homelessness,Accomm Costs - Lease,01/06/2011,5105666990,672.66,DALTON PROPERTY LTD [HZ]
Homelessness,Accomm Costs - Lease,01/06/2011,5105666991,672.66,DALTON PROPERTY LTD [HZ]
Homelessness,Accomm Costs - Lease,01/06/2011,5105666994,672.66,DALTON PROPERTY LTD [HZ]
Homelessness,Accomm Costs - Lease,01/06/2011,5105666993,626.30,DALTON PROPERTY LTD [HZ]
Homelessness,Accomm Costs - Lease,01/06/2011,5105666988,579.89,DALTON PROPERTY LTD [HZ]
Homelessness,Accomm Costs - Lease,01/06/2011,5105666989,579.89,DALTON PROPERTY LTD [HZ]
Homelessness,Accomm Costs - Lease,01/04/2011,5105656279,780.00,REDACTED PERSONAL DATA
Homelessness,Accomm Costs - Lease,01/04/2011,5105656279,750.01,REDACTED PERSONAL DATA
Homelessness,Accomm Costs - Lease,04/05/2011,5105661489,780.00,REDACTED PERSONAL DATA
Homelessness,Accomm Costs - Lease,04/05/2011,5105661489,750.01,REDACTED PERSONAL DATA
Homelessness,Accomm Costs - Lease,01/06/2011,5105666995,780.00,REDACTED PERSONAL DATA
Homelessness,Accomm Costs - Lease,01/06/2011,5105666996,750.01,REDACTED PERSONAL DATA
Homelessness,Accomm Costs - Lease,01/04/2011,5105656280,695.89,REDACTED PERSONAL DATA
Homelessness,Accomm Costs - Lease,01/04/2011,5105656280,695.89,REDACTED PERSONAL DATA
Homelessness,Accomm Costs - Lease,01/04/2011,5105656280,695.89,REDACTED PERSONAL DATA
Homelessness,Accomm Costs - Lease,01/04/2011,5105656280,695.89,REDACTED PERSONAL DATA
Homelessness,Accomm Costs - Lease,01/04/2011,5105656280,695.89,REDACTED PERSONAL DATA
Homelessness,Accomm Costs - Lease,04/05/2011,5105661490,695.89,REDACTED PERSONAL DATA
Homelessness,Accomm Costs - Lease,04/05/2011,5105661490,695.89,REDACTED PERSONAL DATA
Homelessness,Accomm Costs - Lease,04/05/2011,5105661490,695.89,REDACTED PERSONAL DATA
Homelessness,Accomm Costs - Lease,04/05/2011,5105661490,695.89,REDACTED PERSONAL DATA
Homelessness,Accomm Costs - Lease,04/05/2011,5105661490,695.89,REDACTED PERSONAL DATA
Homelessness,Accomm Costs - Lease,01/06/2011,5105666997,695.89,REDACTED PERSONAL DATA
Homelessness,Accomm Costs - Lease,01/06/2011,5105666998,695.89,REDACTED PERSONAL DATA
Homelessness,Accomm Costs - Lease,01/06/2011,5105666999,695.89,REDACTED PERSONAL DATA
Homelessness,Accomm Costs - Lease,01/06/2011,5105667000,695.89,REDACTED PERSONAL DATA
Homelessness,Accomm Costs - Lease,01/06/2011,5105667001,695.89,REDACTED PERSONAL DATA
Homelessness,Accomm Costs - Lease,01/04/2011,5105656281,815.49,REDACTED PERSONAL DATA
Homelessness,Accomm Costs - Lease,04/05/2011,5105661491,815.49,REDACTED PERSONAL DATA
Homelessness,Accomm Costs - Lease,01/06/2011,5105667002,815.49,REDACTED PERSONAL DATA
Homelessness,Accomm Costs - Lease,01/04/2011,5105656282,780.00,K&D ISLAND PROPERTY MANAGEMENT [HZ]
Homelessness,Accomm Costs - Lease,04/05/2011,5105661492,780.00,K&D ISLAND PROPERTY MANAGEMENT [HZ]
Homelessness,Accomm Costs - Lease,01/06/2011,5105667003,780.00,K&D ISLAND PROPERTY MANAGEMENT [HZ]
Homelessness,Accomm Costs - Lease,30/06/2011,5000147885,"5,895.00",K&D ISLAND PROPERTY MANAGEMENT [HZ]
Homelessness,Accomm Costs - Lease,01/04/2011,5105656283,695.89,REDACTED PERSONAL DATA
Homelessness,Accomm Costs - Lease,01/04/2011,5105656283,695.89,REDACTED PERSONAL DATA
Homelessness,Accomm Costs - Lease,04/05/2011,5105661493,695.89,REDACTED PERSONAL DATA
Homelessness,Accomm Costs - Lease,04/05/2011,5105661493,695.89,REDACTED PERSONAL DATA
Homelessness,Accomm Costs - Lease,01/06/2011,5105667004,695.89,REDACTED PERSONAL DATA
Homelessness,Accomm Costs - Lease,01/06/2011,5105667005,695.89,REDACTED PERSONAL DATA
Homelessness,Accomm Costs - Lease,01/04/2011,5105656284,780.00,REDACTED PERSONAL DATA
Homelessness,Accomm Costs - Lease,04/05/2011,5105661494,780.00,REDACTED PERSONAL DATA
Homelessness,Accomm Costs - Lease,01/06/2011,5105667006,780.00,REDACTED PERSONAL DATA
Homelessness,Accomm Costs - Lease,01/04/2011,5105656285,835.08,REDACTED PERSONAL DATA
Homelessness,Accomm Costs - Lease,01/04/2011,5105656285,789.01,REDACTED PERSONAL DATA
Homelessness,Accomm Costs - Lease,01/04/2011,5105656285,649.83,REDACTED PERSONAL DATA
Homelessness,Accomm Costs - Lease,04/05/2011,5105661495,835.08,REDACTED PERSONAL DATA
Homelessness,Accomm Costs - Lease,04/05/2011,5105661495,789.01,REDACTED PERSONAL DATA
Homelessness,Accomm Costs - Lease,04/05/2011,5105661495,649.83,REDACTED PERSONAL DATA
Homelessness,Accomm Costs - Lease,01/06/2011,5105667009,835.08,REDACTED PERSONAL DATA
Homelessness,Accomm Costs - Lease,01/06/2011,5105667008,789.01,REDACTED PERSONAL DATA
Homelessness,Accomm Costs - Lease,01/06/2011,5105667007,649.83,REDACTED PERSONAL DATA
Homelessness,Accomm Costs - Lease,01/04/2011,5105656286,780.00,REDACTED PERSONAL DATA
Homelessness,Accomm Costs - Lease,04/05/2011,5105661496,780.00,REDACTED PERSONAL DATA
Homelessness,Accomm Costs - Lease,01/06/2011,5105667010,780.00,REDACTED PERSONAL DATA
Homelessness,Accomm Costs - Lease,01/04/2011,5105656287,780.00,REDACTED PERSONAL DATA
Homelessness,Accomm Costs - Lease,04/05/2011,5105661497,780.00,REDACTED PERSONAL DATA
Homelessness,Accomm Costs - Lease,01/06/2011,5105667011,780.00,REDACTED PERSONAL DATA
Homelessness,Accomm Costs - Lease,01/04/2011,5105656288,859.95,REDACTED PERSONAL DATA
Homelessness,Accomm Costs - Lease,04/05/2011,5105661498,859.95,REDACTED PERSONAL DATA
Homelessness,Accomm Costs - Lease,01/06/2011,5105667012,859.95,REDACTED PERSONAL DATA
Homelessness,Accomm Costs - Lease,01/04/2011,5105656289,888.33,REDACTED PERSONAL DATA
Homelessness,Accomm Costs - Lease,01/04/2011,5105656289,866.67,REDACTED PERSONAL DATA
Homelessness,Accomm Costs - Lease,01/04/2011,5105656289,866.67,REDACTED PERSONAL DATA
Homelessness,Accomm Costs - Lease,01/04/2011,5105656289,799.50,REDACTED PERSONAL DATA
Homelessness,Accomm Costs - Lease,14/04/2011,5105657855,799.50,REDACTED PERSONAL DATA
Homelessness,Accomm Costs - Lease,04/05/2011,5105661499,888.33,REDACTED PERSONAL DATA
Homelessness,Accomm Costs - Lease,04/05/2011,5105661499,866.67,REDACTED PERSONAL DATA
Homelessness,Accomm Costs - Lease,04/05/2011,5105661499,866.67,REDACTED PERSONAL DATA
Homelessness,Accomm Costs - Lease,04/05/2011,5105661499,799.50,REDACTED PERSONAL DATA
Homelessness,Accomm Costs - Lease,04/05/2011,5105661499,799.50,REDACTED PERSONAL DATA
Homelessness,Accomm Costs - Lease,01/06/2011,5105667016,888.33,REDACTED PERSONAL DATA
Homelessness,Accomm Costs - Lease,01/06/2011,5105667014,866.67,REDACTED PERSONAL DATA
Homelessness,Accomm Costs - Lease,01/06/2011,5105667015,866.67,REDACTED PERSONAL DATA
Homelessness,Accomm Costs - Lease,01/06/2011,5105667013,799.50,REDACTED PERSONAL DATA
Homelessness,Accomm Costs - Lease,01/06/2011,5105667017,799.50,REDACTED PERSONAL DATA
Homelessness,Accomm Costs - Lease,01/04/2011,5105656290,888.33,REDACTED PERSONAL DATA
Homelessness,Accomm Costs - Lease,01/04/2011,5105656290,814.71,REDACTED PERSONAL DATA
Homelessness,Accomm Costs - Lease,04/05/2011,5105661500,888.33,REDACTED PERSONAL DATA
Homelessness,Accomm Costs - Lease,04/05/2011,5105661500,814.71,REDACTED PERSONAL DATA
Homelessness,Accomm Costs - Lease,01/06/2011,5105667018,888.33,REDACTED PERSONAL DATA
Homelessness,Accomm Costs - Lease,01/06/2011,5105667019,814.71,REDACTED PERSONAL DATA
Homelessness,Accomm Costs - Lease,01/04/2011,5105656291,788.67,REDACTED PERSONAL DATA
Homelessness,Accomm Costs - Lease,04/05/2011,5105661501,788.67,REDACTED PERSONAL DATA
Homelessness,Accomm Costs - Lease,01/06/2011,5105667020,788.67,REDACTED PERSONAL DATA
Homelessness,Accomm Costs - Lease,01/04/2011,5105656292,649.83,REDACTED PERSONAL DATA
Homelessness,Accomm Costs - Lease,04/05/2011,5105661502,649.83,REDACTED PERSONAL DATA
Homelessness,Accomm Costs - Lease,01/06/2011,5105667021,649.83,REDACTED PERSONAL DATA
Homelessness,Accomm Costs - Lease,01/04/2011,5105656293,835.08,REDACTED PERSONAL DATA
Homelessness,Accomm Costs - Lease,01/04/2011,5105656293,814.71,REDACTED PERSONAL DATA
Homelessness,Accomm Costs - Lease,01/04/2011,5105656293,814.71,REDACTED PERSONAL DATA
Homelessness,Accomm Costs - Lease,01/04/2011,5105656293,789.01,REDACTED PERSONAL DATA
Homelessness,Accomm Costs - Lease,01/04/2011,5105656293,789.01,REDACTED PERSONAL DATA
Homelessness,Accomm Costs - Lease,01/04/2011,5105656293,789.01,REDACTED PERSONAL DATA
Homelessness,Accomm Costs - Lease,01/04/2011,5105656293,789.01,REDACTED PERSONAL DATA
Homelessness,Accomm Costs - Lease,01/04/2011,5105656293,649.83,REDACTED PERSONAL DATA
Homelessness,Accomm Costs - Lease,01/04/2011,5105656293,649.83,REDACTED PERSONAL DATA
Homelessness,Accomm Costs - Lease,01/04/2011,5105656293,649.83,REDACTED PERSONAL DATA
Homelessness,Accomm Costs - Lease,01/04/2011,5105656293,649.83,REDACTED PERSONAL DATA
Homelessness,Accomm Costs - Lease,01/04/2011,5105656293,649.83,REDACTED PERSONAL DATA
Homelessness,Accomm Costs - Lease,01/04/2011,5105656293,649.83,REDACTED PERSONAL DATA
Homelessness,Accomm Costs - Lease,04/05/2011,5105661503,835.08,REDACTED PERSONAL DATA
Homelessness,Accomm Costs - Lease,04/05/2011,5105661503,814.71,REDACTED PERSONAL DATA
Homelessness,Accomm Costs - Lease,04/05/2011,5105661503,814.71,REDACTED PERSONAL DATA
Homelessness,Accomm Costs - Lease,04/05/2011,5105661503,789.01,REDACTED PERSONAL DATA
Homelessness,Accomm Costs - Lease,04/05/2011,5105661503,789.01,REDACTED PERSONAL DATA
Homelessness,Accomm Costs - Lease,04/05/2011,5105661503,789.01,REDACTED PERSONAL DATA
Homelessness,Accomm Costs - Lease,04/05/2011,5105661503,789.01,REDACTED PERSONAL DATA
Homelessness,Accomm Costs - Lease,04/05/2011,5105661503,649.83,REDACTED PERSONAL DATA
Homelessness,Accomm Costs - Lease,04/05/2011,5105661503,649.83,REDACTED PERSONAL DATA
Homelessness,Accomm Costs - Lease,04/05/2011,5105661503,649.83,REDACTED PERSONAL DATA
Homelessness,Accomm Costs - Lease,04/05/2011,5105661503,649.83,REDACTED PERSONAL DATA
Homelessness,Accomm Costs - Lease,04/05/2011,5105661503,649.83,REDACTED PERSONAL DATA
Homelessness,Accomm Costs - Lease,04/05/2011,5105661503,649.83,REDACTED PERSONAL DATA
Homelessness,Accomm Costs - Lease,01/06/2011,5105667033,835.08,REDACTED PERSONAL DATA
Homelessness,Accomm Costs - Lease,01/06/2011,5105667022,814.71,REDACTED PERSONAL DATA
Homelessness,Accomm Costs - Lease,01/06/2011,5105667032,814.71,REDACTED PERSONAL DATA
Homelessness,Accomm Costs - Lease,01/06/2011,5105667026,789.01,REDACTED PERSONAL DATA
Homelessness,Accomm Costs - Lease,01/06/2011,5105667029,789.01,REDACTED PERSONAL DATA
Homelessness,Accomm Costs - Lease,01/06/2011,5105667030,789.01,REDACTED PERSONAL DATA
Homelessness,Accomm Costs - Lease,01/06/2011,5105667031,789.01,REDACTED PERSONAL DATA
Homelessness,Accomm Costs - Lease,01/06/2011,5105667023,649.83,REDACTED PERSONAL DATA
Homelessness,Accomm Costs - Lease,01/06/2011,5105667024,649.83,REDACTED PERSONAL DATA
Homelessness,Accomm Costs - Lease,01/06/2011,5105667025,649.83,REDACTED PERSONAL DATA
Homelessness,Accomm Costs - Lease,01/06/2011,5105667027,649.83,REDACTED PERSONAL DATA
Homelessness,Accomm Costs - Lease,01/06/2011,5105667028,649.83,REDACTED PERSONAL DATA
Homelessness,Accomm Costs - Lease,01/06/2011,5105667034,649.83,REDACTED PERSONAL DATA
Homelessness,Accomm Costs - Lease,01/04/2011,5105656294,742.26,REDACTED PERSONAL DATA
Homelessness,Accomm Costs - Lease,04/05/2011,5105661504,742.26,REDACTED PERSONAL DATA
Homelessness,Accomm Costs - Lease,01/06/2011,5105667035,742.26,REDACTED PERSONAL DATA
Homelessness,Accomm Costs - Lease,01/04/2011,5105656295,977.17,REDACTED PERSONAL DATA
Homelessness,Accomm Costs - Lease,01/04/2011,5105656295,927.85,REDACTED PERSONAL DATA
